{"text_format":"2","workbook":"xlsx","n_sheets":15,"sheets":["RESUMO MODULO TOTAL","CRONOGRAMA","CCU","Mob"," Canteiro","CPU CODEVASF","Adm Local","Projeto Executivo","BDI","ENC. SOCIAIS"," Consumo Material Betuminoso","Transp. EAI","Transp. RR-2C","Resumo_Transp","Mom. Transporte"],"not_rendered":{"charts":0,"images":22,"macros":0,"external_links":202,"defined_names":40836,"comments":3,"pivot_tables":0},"unopened":[],"bounds":{"document_bytes":16777216,"sheet_cells":100000,"run_cost":"one","rows_first":2000,"rows_last":500,"rows_between":2000,"halvings":0,"cell_chars":16384,"cell_head_chars":4096},"cells_cut":0,"cells_raw":0,"read":"whole","date_system":"1900"}

{"sheet":"RESUMO MODULO TOTAL","index":0,"n_rows":62,"n_cols":24,"rows_kept":62,"cut":false,"hidden":false,"merged":[[59,1,59,7],[60,1,60,7],[61,1,61,7],[1,6,1,7],[4,2,5,7],[6,1,6,11],[57,1,57,7],[58,1,58,7]]}
[]
[{"$nulls":4},"   Ministério da Integração e do Desenvolvimento Regional",null,"Encargos Sociais",null,"Total de m²",210000,"Base Referencial SICRO:"," Abril/2024",null,"N1","TERRAPLENAGEM",{"$f":"(SUMIF($O$10:$O$55,O2,$L$10:$L$55)/$L$56)","v":{"$error":"#DIV/0!"}},{"$f":"(SUMIF($O$10:$O$57,O2,$L$10:$L$57))","v":0},"FGV"]
[{"$nulls":4},"   Companhia de Desenvolvimento dos Vales do São Francisco e do Parnaíba",null,"Horista",{"$f":"'ENC. SOCIAIS'!F51","v":108.84},"R$/m²",{"$f":"ROUND(L56/J2,2)","v":0},"Base Referencial SINAPI:"," 04/2024",null,"N2","PAVIMENTAÇÃO",{"$f":"(SUMIF($O$10:$O$55,O3,$L$10:$L$55)/$L$56)","v":{"$error":"#DIV/0!"}},{"$f":"(SUMIF($O$10:$O$57,O3,$L$10:$L$57))","v":0},"FGV"]
[{"$nulls":4},"   9ª Superintendência Regional",null,"Mensalista",{"$f":"'ENC. SOCIAIS'!G51","v":67.239999999999995},"Nº de módulos",15,"Data do Orçamento:","Agosto - 2024",null,"N3","DRENAGEM",{"$error":"#DIV/0!"},0,"FGV"]
[null,"OBRA:","Execução De Serviços De Pavimentação Com Tratamento Superficial Duplo Em Vias De Municípios Diversos Inseridos Na Área De Atuação Da Codevasf, No Estado De Goiás ",{"$nulls":5},"Valor total do SRP",{"$f":"$L$56","v":0},"BDI-SERVIÇO %",{"$f":"BDI!$C$17","v":0},null,"N4","INCC",{"$f":"(SUMIF($O$10:$O$55,O5,$L$10:$L$55)/$L$56)","v":{"$error":"#DIV/0!"}},{"$f":"(SUMIF($O$10:$O$57,O5,$L$10:$L$57))","v":0},"FGV"]
[{"$nulls":8},"Valor total por módulo",{"$f":"ROUND(J5/J4,2)","v":0},"BDI - FORN. %",{"$f":"BDI!$G$17*100","v":15},null,"N5","TOTAL",{"$f":"SUM(P2:P7)","v":{"$error":"#DIV/0!"}},{"$f":"SUM(Q2:Q5)","v":0}]
[null,"PLANILHA DE ORÇAMENTAÇÃO"]
[null,"ITEM","CÓDIGO","FONTE","DISCRIMINAÇÃO","TIPO","UNID.","QUANT.","VR.UNIT.S/BDI","PR. UNIT.C/BDI","C. TOT.S/BDI","P. TOT.C/BDI"]
[]
[null,1,null,null,"MOBILIZAÇÃO/DESMOBILIZAÇÃO"]
[null,"1.1","Mob","Codevasf","Mobilização","SERV","kmxfrente",9000,null,{"$f":"TRUNC(IF(F11=\"SERV\",I11*(1+$L$5/100),I11*(1+$L$6/100)),2)","v":0},{"$f":"TRUNC(H11*I11,2)","v":0},{"$f":"TRUNC(J11*H11,2)","v":0},null,{"$f":"L11/$L$56","v":{"$error":"#DIV/0!"}},"INCC"]
[null,"1.2","Mob","Codevasf","Desmobilização","SERV","kmxfrente",9000,null,{"$f":"TRUNC(IF(F12=\"SERV\",I12*(1+$L$5/100),I12*(1+$L$6/100)),2)","v":0},{"$f":"TRUNC(H12*I12,2)","v":0},{"$f":"TRUNC(J12*H12,2)","v":0},null,{"$f":"L12/$L$56","v":{"$error":"#DIV/0!"}},"INCC"]
[null,2,null,null,"INSTALAÇÃO DE CANTEIRO"]
[null,"2.1","Canteiro","Codevasf","Canteiro de Obras e Almoxarifado","SERV","frente",15,null,{"$f":"TRUNC(IF(F14=\"SERV\",I14*(1+$L$5/100),I14*(1+$L$6/100)),2)","v":0},{"$f":"TRUNC(H14*I14,2)","v":0},{"$f":"TRUNC(J14*H14,2)","v":0},null,{"$f":"L14/$L$56","v":{"$error":"#DIV/0!"}},"INCC"]
[null,"2.2",103689,"SINAPI","Fornecimento e instalação de placa de obra com chapa galvanizada e estrutura de madeira. af_03/2022_ps","SERV","m²",240,null,0,0,0,null,{"$error":"#DIV/0!"},"INCC"]
[null,3,null,null,"ADMINISTRAÇÃO LOCAL DA OBRA"]
[null,"3.1","Adm Local","Codevasf","Administração Local da Obra","SERV","unid.",1,null,{"$f":"TRUNC(IF(F17=\"SERV\",I17*(1+$L$5/100),I17*(1+$L$6/100)),2)","v":0},{"$f":"TRUNC(H17*I17,2)","v":0},{"$f":"TRUNC(J17*H17,2)","v":0},null,{"$f":"L17/$L$56","v":{"$error":"#DIV/0!"}},"incc"]
[null,4,null,null,"TERRAPLANAGEM"]
[null,"4.1",5502114,"SICRO","Escavação, carga e transporte de material de 1ª categoria - DMT de 1.000 a 1.200 m - caminho de serviço em leito natural - com escavadeira e caminhão basculante de 14 m³","SERV","m³",68250,null,{"$f":"TRUNC(IF(F19=\"SERV\",I19*(1+$L$5/100),I19*(1+$L$6/100)),2)","v":0},{"$f":"TRUNC(H19*I19,2)","v":0},{"$f":"TRUNC(J19*H19,2)","v":0},null,{"$f":"L19/$L$56","v":{"$error":"#DIV/0!"}},"TERRAPLENAGEM"]
[null,"4.2",4413942,"SICRO","Espalhamento de material em bota-fora","SERV","m³",68250,null,0,0,0,null,{"$error":"#DIV/0!"},"TERRAPLENAGEM",{"$nulls":8},1]
[null,5,null,null,"PAVIMENTAÇÃO"]
[null,"5.1",4915637,"SICRO","Capa selante - areia comercial","SERV","m²",210000,null,{"$f":"TRUNC(IF(F22=\"SERV\",I22*(1+$L$5/100),I22*(1+$L$6/100)),2)","v":0},{"$f":"TRUNC(H22*I22,2)","v":0},{"$f":"TRUNC(J22*H22,2)","v":0},null,{"$f":"L22/$L$56","v":{"$error":"#DIV/0!"}},"PAVIMENTAÇÃO"]
[null,"5.2",4011370,"SICRO","Tratamento superficial duplo com emulsão - brita comercial","SERV","m²",210000,null,0,0,0,null,{"$error":"#DIV/0!"},"PAVIMENTAÇÃO"]
[null,"5.3",4011352,"SICRO","Imprimação com emulsão asfáltica","SERV","m²",210000,null,0,0,0,null,{"$error":"#DIV/0!"},"PAVIMENTAÇÃO"]
[null,"5.4",4011256,"SICRO","Base estabilizada granulometricamente com mistura solo brita (70% - 30%) na pista com material de jazida e brita comercial","SERV","m³",31500,null,0,0,0,null,{"$error":"#DIV/0!"},"PAVIMENTAÇÃO"]
[null,"5.5",4011233,"SICRO","Sub-base estabilizada granulometricamente com mistura solo brita (70% - 30%) na pista com material de jazida e brita comercial","SERV","m³",31500,null,0,0,0,null,{"$error":"#DIV/0!"},"PAVIMENTAÇÃO"]
[null,"5.6",4011209,"SICRO","Regularização do subleito","SERV","m²",210000,null,0,0,0,null,{"$error":"#DIV/0!"},"PAVIMENTAÇÃO"]
[null,6,null,null,"AQUISIÇÃO E TRANSPORTE DO MATERIAL BETUMINOSO"]
[null,"6.1","CPU-14","CODEVASF","AQUISIÇÃO DE EAI","FORN","t",273,null,{"$f":"TRUNC(IF(F29=\"SERV\",I29*(1+$L$5/100),I29*(1+$L$6/100)),2)","v":0},{"$f":"TRUNC(H29*I29,2)","v":0},{"$f":"TRUNC(J29*H29,2)","v":0},null,{"$f":"L29/$L$56","v":{"$error":"#DIV/0!"}},"PAVIMENTAÇÃO"]
[null,"6.2","CPU-18","CODEVASF","TRANSPORTE DE EAI","FORN","t",273,null,0,0,0,null,{"$error":"#DIV/0!"},"PAVIMENTAÇÃO"]
[null,"6.3","CPU-15","CODEVASF","AQUISIÇÃO DE EMULSÃO ASFÁLTICA RR-2C","FORN","t",888.3,null,0,0,0,null,{"$error":"#DIV/0!"},"PAVIMENTAÇÃO"]
[null,"6.4","CPU-19","CODEVASF","TRANSPORTE RR-2C","FORN","t",888.3,null,0,0,0,null,{"$error":"#DIV/0!"},"PAVIMENTAÇÃO"]
[null,7,null,null,"SINALIZAÇÃO"]
[null,"7.1",5213440,"SICRO","Placa de regulamentação em aço D = 0,60 m - película retrorrefletiva tipo I + SI - fornecimento e implantação","SERV","unid.",90,null,{"$f":"TRUNC(IF(F34=\"SERV\",I34*(1+$L$5/100),I34*(1+$L$6/100)),2)","v":0},{"$f":"TRUNC(H34*I34,2)","v":0},{"$f":"TRUNC(J34*H34,2)","v":0},null,{"$f":"L34/$L$56","v":{"$error":"#DIV/0!"}},"INCC"]
[null,"7.2",5213464,"SICRO","Placa de advertência em aço, lado de 0,60 m - película retrorrefletiva tipo I + SI - fornecimento e implantação","SERV","unid.",90,null,0,0,0,null,{"$error":"#DIV/0!"},"INCC"]
[null,"7.3",5213863,"SICRO","Suporte metálico galvanizado para placa de advertência ou regulamentação - lado ou diâmetro de 0,60 m - fornecimento e implantação","SERV","unid.",180,null,0,0,0,null,{"$error":"#DIV/0!"},"INCC"]
[null,"7.4",5213400,"SICRO","Pintura de faixa com tinta acrílica - espessura de 0,4 mm","SERV","m²",7200,null,0,0,0,null,{"$error":"#DIV/0!"},"INCC"]
[null,8,null,null,"DRENAGEM"]
[null,"8.1","2003943-A","Codevasf","Meio-fio de concreto - MFC 03 moldado no local com extrusora e concreto betoneira - areia e brita comerciais","SERV","m",54000,null,{"$f":"TRUNC(IF(F39=\"SERV\",I39*(1+$L$5/100),I39*(1+$L$6/100)),2)","v":0},{"$f":"TRUNC(H39*I39,2)","v":0},{"$f":"TRUNC(J39*H39,2)","v":0},null,{"$f":"L39/$L$56","v":{"$error":"#DIV/0!"}},"DRENAGEM"]
[null,"8.2","2003947-A","Codevasf","Meio-fio de concreto - MFC 05 moldado no local com extrusora e concreto betoneira - areia e brita comerciais","SERV","m",6000,null,0,0,0,null,{"$error":"#DIV/0!"},"DRENAGEM"]
[null,"8.3",4915724,"SICRO","Caiação mecanizada com fixador de cal","SERV","m²",7200,null,0,0,0,null,{"$error":"#DIV/0!"},"DRENAGEM"]
[null,9,null,null,"SERVIÇOS COMPLEMENTARES"]
[null,"9.1","CPU-12","Codevasf","Conserto de quebra no ramal na rua sem pavimento com fornecimento de material hidráulico","SERV","m",3000,null,{"$f":"TRUNC(IF(F43=\"SERV\",I43*(1+$L$5/100),I43*(1+$L$6/100)),2)","v":0},{"$f":"TRUNC(H43*I43,2)","v":0},{"$f":"TRUNC(J43*H43,2)","v":0},null,{"$f":"L43/$L$56","v":{"$error":"#DIV/0!"}},"INCC"]
[null,10,null,null,"PROJETO EXECUTIVO"]
[null,"10.1","Composição Própria","Codevasf","Projeto Executivo","SERV","m²",210000,null,{"$f":"TRUNC(IF(F45=\"SERV\",I45*(1+$L$5/100),I45*(1+$L$6/100)),2)","v":0},{"$f":"TRUNC(H45*I45,2)","v":0},{"$f":"TRUNC(J45*H45,2)","v":0},null,{"$f":"L45/$L$56","v":{"$error":"#DIV/0!"}},"incc"]
[null,11,null,null,"MOMENTO DE TRANSPORTE"]
[null,"11.1",5914359,"SICRO","Transporte com caminhão basculante de 10 m³ - rodovia em leito natural","SERV","txkm",142087.09,null,{"$f":"TRUNC(IF(F47=\"SERV\",I47*(1+$L$5/100),I47*(1+$L$6/100)),2)","v":0},{"$f":"TRUNC(H47*I47,2)","v":0},{"$f":"TRUNC(J47*H47,2)","v":0},null,{"$f":"L47/$L$56","v":{"$error":"#DIV/0!"}},"INCC"]
[null,"11.2",5914374,"SICRO","Transporte com caminhão basculante de 10 m³ - rodovia em revestimento primário","SERV","txkm",142087.09,null,0,0,0,null,{"$error":"#DIV/0!"},"INCC"]
[null,"11.3",5914389,"SICRO","Transporte com caminhão basculante de 10 m³ - rodovia pavimentada","SERV","txkm",1136696.72,null,0,0,0,null,{"$error":"#DIV/0!"},"INCC"]
[null,"11.4",5914314,"SICRO","Transporte com caminhão basculante de 6 m³ - rodovia em leito natural","SERV","txkm",913.5,null,0,0,0,null,{"$error":"#DIV/0!"},"INCC"]
[null,"11.5",5914329,"SICRO","Transporte com caminhão basculante de 6 m³ - rodovia em revestimento primário","SERV","txkm",913.5,null,0,0,0,null,{"$error":"#DIV/0!"},"INCC"]
[null,"11.6",5914344,"SICRO","Transporte com caminhão basculante de 6 m³ - rodovia pavimentada","SERV","txkm",7308,null,0,0,0,null,{"$error":"#DIV/0!"},"INCC"]
[null,"11.7",5914449,"SICRO","Transporte com caminhão carroceria de 15 t - rodovia em leito natural","SERV","txkm",683.44,null,0,0,0,null,{"$error":"#DIV/0!"},"INCC"]
[null,"11.8",5914464,"SICRO","Transporte com caminhão carroceria de 15 t - rodovia em revestimento primário","SERV","txkm",683.44,null,0,0,0,null,{"$error":"#DIV/0!"},"INCC"]
[null,"11.9",5914479,"SICRO","Transporte com caminhão carroceria de 15 t - rodovia pavimentada","SERV","txkm",5467.53,null,0,0,0,null,{"$error":"#DIV/0!"},"INCC"]
[null,"x","x","x","VALOR TOTAL DO SRP","x","x","x","x",null,"VALOR TOTAL DO SRP",{"$f":"(SUM(L9:L55))","v":0}]
[]
[null,"QUANT. O valor da quantidade foi arredondado em 2 casas decimais. Esta coluna já está com as fórmulas e os valores não poderão ser alterados pelo proponente."]
[null,"VR.UNIT.S/BDI O valor da valor unitário sem BDI deverá ser arredondado em 2 casas decimais. "]
[null,"PR. UNIT.C/BDI O valor do preço unitário com BDI será obtido ao TRUNCAR, em duas casas decimais, a equação \"VR.UNIT.S/BDI x (1+BDI/100)\". Esta coluna já está com as fórmulas."]
[null,"C. TOT.S/BDI O valor do custo total sem BDI será obtido ao TRUNCAR, em duas casas decimais, a equação \"QUANT. x VR.UNIT.S/BDI \". Esta coluna já está com as fórmulas."]
[null,"P. TOT.C/BDI O valor do custo total com BDI será obtido ao TRUNCAR, em duas casas decimais, a equação \"QUANT. x PR.UNIT.C/BDI \". Esta coluna já está com as fórmulas."]

{"sheet":"CRONOGRAMA","index":1,"n_rows":36,"n_cols":17,"rows_kept":36,"cut":false,"hidden":false,"merged":[[30,0,30,1],[1,0,1,14],[2,0,2,14],[27,0,27,1],[28,0,28,1],[29,0,29,1]]}
[]
[{"$f":"'RESUMO MODULO TOTAL'!$C$5","v":"Execução De Serviços De Pavimentação Com Tratamento Superficial Duplo Em Vias De Municípios Diversos Inseridos Na Área De Atuação Da Codevasf, No Estado De Goiás "}]
["Cronograma Físico e Financeiro "]
["Item","Descrição","Total Por Etapa","30 DIAS","60 DIAS","90 DIAS","120 DIAS","150 DIAS","180 DIAS","210 DIAS","240 DIAS","270 DIAS","300 DIAS","330 DIAS","360 DIAS"]
[1,"MOBILIZAÇÃO/DESMOBILIZAÇÃO",{"$f":"SUM(D5:O5)","v":1},0.5,{"$nulls":10},0.5]
[null,null,{"$f":"SUM('RESUMO MODULO TOTAL'!L11:L12)","v":0},{"$f":"$C$6*D5","v":0},{"$nulls":10},{"$f":"$C$6*O5","v":0},{"$f":"SUM(D6:O6)","v":0},{"$f":"IF(P6=C6,\"OK\",\"\")","v":"OK"}]
[2,"INSTALAÇÃO DE CANTEIRO",{"$f":"SUM(D7:O7)","v":1},0.1,0.5,0.4]
[null,null,{"$f":"SUM('RESUMO MODULO TOTAL'!L14:L15)","v":0},{"$f":"$C$8*D7","v":0},{"$f":"$C$8*E7","v":0},0,0,0,0,0,0,0,0,0,0,{"$f":"SUM(D8:O8)","v":0},{"$f":"IF(P8=C8,\"OK\",\"\")","v":"OK"}]
[3,"ADMINISTRAÇÃO LOCAL DA OBRA",{"$f":"SUM(D9:O9)","v":{"$error":"#DIV/0!"}},{"$f":"(D6+D8+D12+D14+D16+D18+D20+D22+D24+D26)/($O$33-$C$10)","v":{"$error":"#DIV/0!"}},{"$error":"#DIV/0!"},{"$error":"#DIV/0!"},{"$error":"#DIV/0!"},{"$error":"#DIV/0!"},{"$error":"#DIV/0!"},{"$error":"#DIV/0!"},{"$error":"#DIV/0!"},{"$error":"#DIV/0!"},{"$error":"#DIV/0!"},{"$error":"#DIV/0!"},{"$f":"(O6+O8+O12+O14+O16+O18+O20+O22+O24+O26)/($O$33-$C$10)","v":{"$error":"#DIV/0!"}}]
[null,null,{"$f":"SUM('RESUMO MODULO TOTAL'!L17)","v":0},{"$f":"$C$10*D9","v":{"$error":"#DIV/0!"}},{"$f":"$C$10*E9","v":{"$error":"#DIV/0!"}},{"$f":"$C$10*F9","v":{"$error":"#DIV/0!"}},{"$error":"#DIV/0!"},{"$error":"#DIV/0!"},{"$error":"#DIV/0!"},{"$error":"#DIV/0!"},{"$error":"#DIV/0!"},{"$error":"#DIV/0!"},{"$error":"#DIV/0!"},{"$error":"#DIV/0!"},{"$error":"#DIV/0!"},{"$f":"SUM(D10:O10)","v":{"$error":"#DIV/0!"}},{"$f":"IF(P10=C10,\"OK\",\"\")","v":{"$error":"#DIV/0!"}}]
[4,"TERRAPLANAGEM",{"$f":"SUM(D11:O11)","v":1},null,null,{"$f":"1/4","v":0.25},{"$f":"1/4","v":0.25},{"$f":"1/4","v":0.25},{"$f":"1/4","v":0.25}]
[null,null,{"$f":"SUM('RESUMO MODULO TOTAL'!L19:L20)","v":0},{"$f":"$C$14*D11","v":0},{"$f":"$C$12*E11","v":0},0,0,0,0,0,0,0,0,0,0,{"$f":"SUM(D12:O12)","v":0},{"$f":"IF(P12=C12,\"OK\",\"\")","v":"OK"}]
[5,"PAVIMENTAÇÃO",{"$f":"SUM(D13:O13)","v":0.99999999999999989},{"$nulls":5},{"$f":"1/6","v":0.16666666666666666},{"$f":"1/6","v":0.16666666666666666},0.16666666666666666,0.16666666666666666,0.16666666666666666,0.16666666666666666]
[null,null,{"$f":"SUM('RESUMO MODULO TOTAL'!L22:L27)","v":0},{"$f":"$C$14*D13","v":0},{"$f":"$C$14*E13","v":0},0,0,0,0,0,0,0,0,0,0,{"$f":"SUM(D14:O14)","v":0},{"$f":"IF(P14=C14,\"OK\",\"\")","v":"OK"}]
[6,"AQUISIÇÃO E TRANSPORTE DE MATERIAL BETUMINOSO",{"$f":"SUM(D15:O15)","v":0.99999999999999989},{"$nulls":5},{"$f":"1/6","v":0.16666666666666666},0.16666666666666666,0.16666666666666666,0.16666666666666666,0.16666666666666666,0.16666666666666666]
[null,null,{"$f":"SUM('RESUMO MODULO TOTAL'!L29:L32)","v":0},{"$f":"$C$16*D15","v":0},{"$f":"$C$16*E15","v":0},0,0,0,0,0,0,0,0,0,0,{"$f":"SUM(D16:O16)","v":0},{"$f":"IF(P16=C16,\"OK\",\"\")","v":"OK"}]
[7,"SINALIZAÇÃO",{"$f":"SUM(D17:O17)","v":1},{"$nulls":11},1]
[null,null,{"$f":"SUM('RESUMO MODULO TOTAL'!L34:L37)","v":0},{"$f":"$C$18*D17","v":0},{"$f":"$C$18*E17","v":0},0,0,0,0,0,0,0,0,0,0,{"$f":"SUM(D18:O18)","v":0},{"$f":"IF(P18=C18,\"OK\",\"\")","v":"OK"}]
[8,"DRENAGEM",{"$f":"SUM(D19:O19)","v":1},{"$nulls":10},0.5,0.5]
[null,null,{"$f":"SUM('RESUMO MODULO TOTAL'!L39:L41)","v":0},{"$f":"$C$20*D19","v":0},{"$f":"$C$20*E19","v":0},0,0,0,0,0,0,0,0,0,0,{"$f":"SUM(D20:O20)","v":0},{"$f":"IF(P20=C20,\"OK\",\"\")","v":"OK"}]
[9,"SERVIÇOS COMPLEMENTARES",{"$f":"SUM(D21:O21)","v":1},{"$nulls":4},0.5,0.5]
[null,null,{"$f":"SUM('RESUMO MODULO TOTAL'!L43)","v":0},{"$f":"$C$22*D21","v":0},{"$f":"$C$22*E21","v":0},0,0,0,0,0,0,0,0,0,0,{"$f":"SUM(D22:O22)","v":0},{"$f":"IF(P22=C22,\"OK\",\"\")","v":"OK"}]
[10,"PROJETO EXECUTIVO",{"$f":"SUM(D23:O23)","v":1},1]
[null,null,{"$f":"'RESUMO MODULO TOTAL'!L45","v":0},{"$f":"$C$24*D23","v":0},{"$f":"$C$24*E23","v":0},0,0,0,0,0,0,0,0,0,0,{"$f":"SUM(D24:O24)","v":0},{"$f":"IF(P24=C24,\"OK\",\"\")","v":"OK"}]
[11,"MOMENTO DE TRANSPORTE",{"$f":"SUM(D25:O25)","v":1},null,null,0.1,0.1,0.1,0.15,0.1,0.1,0.1,0.1,0.1,0.05]
[null,null,{"$f":"SUM('RESUMO MODULO TOTAL'!L47:L55)","v":0},{"$f":"$C$26*D25","v":0},{"$f":"$C$26*E25","v":0},0,0,0,0,0,0,0,0,0,0,{"$f":"SUM(D26:O26)","v":0},{"$f":"IF(P26=C26,\"OK\",\"\")","v":"OK"}]
[]
["Porcentagem",null,null,{"$f":"SUM(D6+D8+D10+D12+D14+D16+D18+D20+D22+D24+D26)/$O$33","v":{"$error":"#DIV/0!"}},{"$f":"SUM(E6+E8+E10+E12+E14+E16+E18+E20+E22+E24+E26)/$O$33","v":{"$error":"#DIV/0!"}},{"$error":"#DIV/0!"},{"$error":"#DIV/0!"},{"$error":"#DIV/0!"},{"$error":"#DIV/0!"},{"$error":"#DIV/0!"},{"$error":"#DIV/0!"},{"$error":"#DIV/0!"},{"$error":"#DIV/0!"},{"$error":"#DIV/0!"},{"$f":"SUM(O6+O8+O10+O12+O14+O16+O18+O20+O22+O24+O26)/$O$33","v":{"$error":"#DIV/0!"}}]
["Custo",null,null,{"$f":"$O$33*D28","v":{"$error":"#DIV/0!"}},{"$f":"$O$33*E28","v":{"$error":"#DIV/0!"}},{"$f":"$O$33*F28","v":{"$error":"#DIV/0!"}},{"$error":"#DIV/0!"},{"$error":"#DIV/0!"},{"$error":"#DIV/0!"},{"$error":"#DIV/0!"},{"$error":"#DIV/0!"},{"$error":"#DIV/0!"},{"$error":"#DIV/0!"},{"$error":"#DIV/0!"},{"$error":"#DIV/0!"}]
["Porcentagem Acumulado",null,null,{"$f":"D28","v":{"$error":"#DIV/0!"}},{"$f":"D30+E28","v":{"$error":"#DIV/0!"}},{"$f":"E30+F28","v":{"$error":"#DIV/0!"}},{"$error":"#DIV/0!"},{"$error":"#DIV/0!"},{"$error":"#DIV/0!"},{"$error":"#DIV/0!"},{"$error":"#DIV/0!"},{"$error":"#DIV/0!"},{"$error":"#DIV/0!"},{"$error":"#DIV/0!"},{"$f":"N30+O28","v":{"$error":"#DIV/0!"}}]
["Custo Acumulado",null,null,{"$f":"D29","v":{"$error":"#DIV/0!"}},{"$f":"D31+E29","v":{"$error":"#DIV/0!"}},{"$error":"#DIV/0!"},{"$error":"#DIV/0!"},{"$error":"#DIV/0!"},{"$error":"#DIV/0!"},{"$error":"#DIV/0!"},{"$error":"#DIV/0!"},{"$error":"#DIV/0!"},{"$error":"#DIV/0!"},{"$error":"#DIV/0!"},{"$error":"#DIV/0!"}]
[]
[null,null,null,"Total Geral",{"$nulls":9},"R$",{"$f":"C6+C8+C10+C12+C14+C16+C18+C20+C22+C24+C26","v":0}]
[]
[{"$nulls":14},{"$f":"O31-O33","v":{"$error":"#DIV/0!"}}]
[{"$nulls":14},{"$f":"'RESUMO MODULO TOTAL'!L56-O33","v":0}]

{"sheet":"CCU","index":2,"n_rows":974,"n_cols":14,"rows_kept":974,"cut":false,"hidden":false,"merged":[]}
[".",".",".",".",".",".",".",".",".","Obs",null,null,"repetição","https://www.gov.br/dnit/pt-br/assuntos/planejamento-e-pesquisa/custos-e-pagamentos/custos-e-pagamentos-dnit/sistemas-de-custos/sicro_antiga/centro-oeste/centro-oeste"]
["CGCIT",{"$nulls":7},"DNIT","Principal",{"$f":"IF(LEFT(A2,2)=\"E9\",A2,\"\")","v":""},null,"2003943-A","Meio-fio de concreto - MFC 03 moldado no local com extrusora e concreto betoneira e lançamento manual - areia e brita comerciais"]
["SISTEMA DE CUSTOS REFERENCIAIS DE OBRAS - SICRO",null,null,"Goiás",{"$nulls":5},"Principal",{"$f":"IF(LEFT(A3,2)=\"E9\",A3,\"\")","v":""},null,"2003943-A","Meio-fio de concreto - MFC 03 moldado no local com extrusora e concreto betoneira e lançamento manual - areia e brita comerciais"]
["Custo Unitário de Referência",null,null,"Abril/2024",null,null,"Produção da equipe ",74.11,"m","Principal","",null,"2003943-A","Meio-fio de concreto - MFC 03 moldado no local com extrusora e concreto betoneira e lançamento manual - areia e brita comerciais"]
["2003943-A","Meio-fio de concreto - MFC 03 moldado no local com extrusora e concreto betoneira e lançamento manual - areia e brita comerciais",{"$nulls":5},"Valores em reais (R$)",null,"Principal","",null,"2003943-A","Meio-fio de concreto - MFC 03 moldado no local com extrusora e concreto betoneira e lançamento manual - areia e brita comerciais"]
["A - EQUIPAMENTOS",null,"Quantidade","Utilização",null,"Custo Horário",null,null,"Custo","Principal","",null,"2003943-A","Meio-fio de concreto - MFC 03 moldado no local com extrusora e concreto betoneira e lançamento manual - areia e brita comerciais"]
[null,null,null,"Operativa","Improdutiva","Produtivo","Improdutivo",null,"Horário Total","Principal","",null,"2003943-A","Meio-fio de concreto - MFC 03 moldado no local com extrusora e concreto betoneira e lançamento manual - areia e brita comerciais"]
["E9103","Extrusora para meio-fio de concreto - 10,44 kW",1,1,0,{"$nulls":4},"Principal","E9103",1,"2003943-A","Meio-fio de concreto - MFC 03 moldado no local com extrusora e concreto betoneira e lançamento manual - areia e brita comerciais"]
[{"$nulls":6},"Custo horário total de equipamentos",null,null,"Principal","",null,"2003943-A","Meio-fio de concreto - MFC 03 moldado no local com extrusora e concreto betoneira e lançamento manual - areia e brita comerciais"]
["B - MÃO DE OBRA",null,"Quantidade","Unidade",null,"Custo Horário","Custo Horário Total",null,null,"Principal","",null,"2003943-A","Meio-fio de concreto - MFC 03 moldado no local com extrusora e concreto betoneira e lançamento manual - areia e brita comerciais"]
["P9821","Pedreiro",1,"h",{"$nulls":5},"Principal","",null,"2003943-A","Meio-fio de concreto - MFC 03 moldado no local com extrusora e concreto betoneira e lançamento manual - areia e brita comerciais"]
["P9824","Servente",2,"h",{"$nulls":5},"Principal","",null,"2003943-A","Meio-fio de concreto - MFC 03 moldado no local com extrusora e concreto betoneira e lançamento manual - areia e brita comerciais"]
[{"$nulls":6},"Custo horário total de mão de obra",null,null,"Principal","",null,"2003943-A","Meio-fio de concreto - MFC 03 moldado no local com extrusora e concreto betoneira e lançamento manual - areia e brita comerciais"]
[{"$nulls":6},"Custo horário total de execução",null,null,"Principal","",null,"2003943-A","Meio-fio de concreto - MFC 03 moldado no local com extrusora e concreto betoneira e lançamento manual - areia e brita comerciais"]
[{"$nulls":6},"Custo unitário de execução",null,null,"Principal","",null,"2003943-A","Meio-fio de concreto - MFC 03 moldado no local com extrusora e concreto betoneira e lançamento manual - areia e brita comerciais"]
[{"$nulls":6},"Custo do FIC",null,null,"Principal","",null,"2003943-A","Meio-fio de concreto - MFC 03 moldado no local com extrusora e concreto betoneira e lançamento manual - areia e brita comerciais"]
[{"$nulls":6},"Custo do FIT",null,null,"Principal","",null,"2003943-A","Meio-fio de concreto - MFC 03 moldado no local com extrusora e concreto betoneira e lançamento manual - areia e brita comerciais"]
["C - MATERIAL",null,"Quantidade","Unidade",null,"Preço Unitário","Custo Unitário",null,null,"Principal","",null,"2003943-A","Meio-fio de concreto - MFC 03 moldado no local com extrusora e concreto betoneira e lançamento manual - areia e brita comerciais"]
[{"$nulls":6},"Custo unitário total de material",null,null,"Principal","",null,"2003943-A","Meio-fio de concreto - MFC 03 moldado no local com extrusora e concreto betoneira e lançamento manual - areia e brita comerciais"]
["D - ATIVIDADES AUXILIARES",null,"Quantidade","Unidade",null,"Custo Unitário","Custo Unitário",null,null,"Principal","",null,"2003943-A","Meio-fio de concreto - MFC 03 moldado no local com extrusora e concreto betoneira e lançamento manual - areia e brita comerciais"]
[1107892,"Concreto fck = 20 MPa - confecção em betoneira e lançamento manual - areia e brita comerciais",4.2000000000000003E-2,"m³",{"$nulls":5},"Principal","",null,"2003943-A","Meio-fio de concreto - MFC 03 moldado no local com extrusora e concreto betoneira e lançamento manual - areia e brita comerciais"]
["2003842","Enchimento de junta de concreto com argamassa asfáltica de densidade 1.700 kg/m³ - espessura de 1 cm",5.9499999999999997E-2,"kg",{"$nulls":5},"Principal","",null,"2003943-A","Meio-fio de concreto - MFC 03 moldado no local com extrusora e concreto betoneira e lançamento manual - areia e brita comerciais"]
["4805750","Escavação manual em material de 1ª categoria na profundidade de até 1 m",0.03,"m³",{"$nulls":5},"Principal","",null,"2003943-A","Meio-fio de concreto - MFC 03 moldado no local com extrusora e concreto betoneira e lançamento manual - areia e brita comerciais"]
[{"$nulls":6},"Custo total de atividades auxiliares",null,null,"Principal","",null,"2003943-A","Meio-fio de concreto - MFC 03 moldado no local com extrusora e concreto betoneira e lançamento manual - areia e brita comerciais"]
[{"$nulls":6},"Subtotal",null,null,"Principal","",null,"2003943-A","Meio-fio de concreto - MFC 03 moldado no local com extrusora e concreto betoneira e lançamento manual - areia e brita comerciais"]
["E - TEMPO FIXO",null,"Código","Quantidade","Unidade",null,"Custo Unitário","Custo Unitário",null,"Principal","",null,"2003943-A","Meio-fio de concreto - MFC 03 moldado no local com extrusora e concreto betoneira e lançamento manual - areia e brita comerciais"]
[{"$nulls":6},"Custo unitário total de tempo fixo",null,null,"Principal","",null,"2003943-A","Meio-fio de concreto - MFC 03 moldado no local com extrusora e concreto betoneira e lançamento manual - areia e brita comerciais"]
["F - MOMENTO DE TRANSPORTE",null,"Quantidade","Unidade","DMT",null,null,null,"Custo Unitário","Principal","",null,"2003943-A","Meio-fio de concreto - MFC 03 moldado no local com extrusora e concreto betoneira e lançamento manual - areia e brita comerciais"]
[{"$nulls":4},"LN","RP","P",null,null,"Principal","",null,"2003943-A","Meio-fio de concreto - MFC 03 moldado no local com extrusora e concreto betoneira e lançamento manual - areia e brita comerciais"]
[{"$nulls":6},"Custo unitário total de transporte",null,null,"Principal","",null,"2003943-A","Meio-fio de concreto - MFC 03 moldado no local com extrusora e concreto betoneira e lançamento manual - areia e brita comerciais"]
[{"$nulls":4},"Custo unitário direto total",null,null,null,{"$f":"ROUND(I25,2)","v":0},"Principal","",null,"2003943-A","Meio-fio de concreto - MFC 03 moldado no local com extrusora e concreto betoneira e lançamento manual - areia e brita comerciais"]
["CGCIT",{"$nulls":7},"DNIT","Principal","",null,"2003947-A","Meio-fio de concreto - MFC 05 moldado no local com extrusora e concreto betoneira e lançamento manual - areia e brita comerciais"]
["SISTEMA DE CUSTOS REFERENCIAIS DE OBRAS - SICRO",null,null,"Goiás",{"$nulls":5},"Principal","",null,"2003947-A","Meio-fio de concreto - MFC 05 moldado no local com extrusora e concreto betoneira e lançamento manual - areia e brita comerciais"]
["Custo Unitário de Referência",null,null,"Abril/2024",null,null,"Produção da equipe ",93.19,"m","Principal","",null,"2003947-A","Meio-fio de concreto - MFC 05 moldado no local com extrusora e concreto betoneira e lançamento manual - areia e brita comerciais"]
["2003947","Meio-fio de concreto - MFC 05 moldado no local com extrusora e concreto betoneira e lançamento manual - areia e brita comerciais",{"$nulls":5},"Valores em reais (R$)",null,"Principal","",null,"2003947-A","Meio-fio de concreto - MFC 05 moldado no local com extrusora e concreto betoneira e lançamento manual - areia e brita comerciais"]
["A - EQUIPAMENTOS",null,"Quantidade","Utilização",null,"Custo Horário",null,null,"Custo","Principal","",null,"2003947-A","Meio-fio de concreto - MFC 05 moldado no local com extrusora e concreto betoneira e lançamento manual - areia e brita comerciais"]
[null,null,null,"Operativa","Improdutiva","Produtivo","Improdutivo",null,"Horário Total","Principal","",null,"2003947-A","Meio-fio de concreto - MFC 05 moldado no local com extrusora e concreto betoneira e lançamento manual - areia e brita comerciais"]
["E9103","Extrusora para meio-fio de concreto - 10,44 kW",1,1,0,{"$nulls":4},"Principal","E9103",null,"2003947-A","Meio-fio de concreto - MFC 05 moldado no local com extrusora e concreto betoneira e lançamento manual - areia e brita comerciais"]
[{"$nulls":6},"Custo horário total de equipamentos",null,null,"Principal","",null,"2003947-A","Meio-fio de concreto - MFC 05 moldado no local com extrusora e concreto betoneira e lançamento manual - areia e brita comerciais"]
["B - MÃO DE OBRA",null,"Quantidade","Unidade",null,"Custo Horário","Custo Horário Total",null,null,"Principal","",null,"2003947-A","Meio-fio de concreto - MFC 05 moldado no local com extrusora e concreto betoneira e lançamento manual - areia e brita comerciais"]
["P9821","Pedreiro",1,"h",{"$nulls":5},"Principal","",null,"2003947-A","Meio-fio de concreto - MFC 05 moldado no local com extrusora e concreto betoneira e lançamento manual - areia e brita comerciais"]
["P9824","Servente",2,"h",{"$nulls":5},"Principal","",null,"2003947-A","Meio-fio de concreto - MFC 05 moldado no local com extrusora e concreto betoneira e lançamento manual - areia e brita comerciais"]
[{"$nulls":6},"Custo horário total de mão de obra",null,null,"Principal","",null,"2003947-A","Meio-fio de concreto - MFC 05 moldado no local com extrusora e concreto betoneira e lançamento manual - areia e brita comerciais"]
[{"$nulls":6},"Custo horário total de execução",null,null,"Principal","",null,"2003947-A","Meio-fio de concreto - MFC 05 moldado no local com extrusora e concreto betoneira e lançamento manual - areia e brita comerciais"]
[{"$nulls":6},"Custo unitário de execução",null,null,"Principal","",null,"2003947-A","Meio-fio de concreto - MFC 05 moldado no local com extrusora e concreto betoneira e lançamento manual - areia e brita comerciais"]
[{"$nulls":6},"Custo do FIC",null,null,"Principal","",null,"2003947-A","Meio-fio de concreto - MFC 05 moldado no local com extrusora e concreto betoneira e lançamento manual - areia e brita comerciais"]
[{"$nulls":6},"Custo do FIT",null,null,"Principal","",null,"2003947-A","Meio-fio de concreto - MFC 05 moldado no local com extrusora e concreto betoneira e lançamento manual - areia e brita comerciais"]
["C - MATERIAL",null,"Quantidade","Unidade",null,"Preço Unitário","Custo Unitário",null,null,"Principal","",null,"2003947-A","Meio-fio de concreto - MFC 05 moldado no local com extrusora e concreto betoneira e lançamento manual - areia e brita comerciais"]
[{"$nulls":6},"Custo unitário total de material",null,null,"Principal","",null,"2003947-A","Meio-fio de concreto - MFC 05 moldado no local com extrusora e concreto betoneira e lançamento manual - areia e brita comerciais"]
["D - ATIVIDADES AUXILIARES",null,"Quantidade","Unidade",null,"Custo Unitário","Custo Unitário",null,null,"Principal","",null,"2003947-A","Meio-fio de concreto - MFC 05 moldado no local com extrusora e concreto betoneira e lançamento manual - areia e brita comerciais"]
[1107892,"Concreto fck = 20 MPa - confecção em betoneira e lançamento manual - areia e brita comerciais",3.3399999999999999E-2,"m³",{"$nulls":5},"Principal","",null,"2003947-A","Meio-fio de concreto - MFC 05 moldado no local com extrusora e concreto betoneira e lançamento manual - areia e brita comerciais"]
["2003842","Enchimento de junta de concreto com argamassa asfáltica de densidade 1.700 kg/m³ - espessura de 1 cm",4.7300000000000002E-2,"kg",{"$nulls":5},"Principal","",null,"2003947-A","Meio-fio de concreto - MFC 05 moldado no local com extrusora e concreto betoneira e lançamento manual - areia e brita comerciais"]
["4805750","Escavação manual em material de 1ª categoria na profundidade de até 1 m",1.7999999999999999E-2,"m³",{"$nulls":5},"Principal","",null,"2003947-A","Meio-fio de concreto - MFC 05 moldado no local com extrusora e concreto betoneira e lançamento manual - areia e brita comerciais"]
[{"$nulls":6},"Custo total de atividades auxiliares",null,null,"Principal","",null,"2003947-A","Meio-fio de concreto - MFC 05 moldado no local com extrusora e concreto betoneira e lançamento manual - areia e brita comerciais"]
[{"$nulls":6},"Subtotal",null,null,"Principal","",null,"2003947-A","Meio-fio de concreto - MFC 05 moldado no local com extrusora e concreto betoneira e lançamento manual - areia e brita comerciais"]
["E - TEMPO FIXO",null,"Código","Quantidade","Unidade",null,"Custo Unitário","Custo Unitário",null,"Principal","",null,"2003947-A","Meio-fio de concreto - MFC 05 moldado no local com extrusora e concreto betoneira e lançamento manual - areia e brita comerciais"]
[{"$nulls":6},"Custo unitário total de tempo fixo",null,null,"Principal","",null,"2003947-A","Meio-fio de concreto - MFC 05 moldado no local com extrusora e concreto betoneira e lançamento manual - areia e brita comerciais"]
["F - MOMENTO DE TRANSPORTE",null,"Quantidade","Unidade","DMT",null,null,null,"Custo Unitário","Principal","",null,"2003947-A","Meio-fio de concreto - MFC 05 moldado no local com extrusora e concreto betoneira e lançamento manual - areia e brita comerciais"]
[{"$nulls":4},"LN","RP","P",null,null,"Principal","",null,"2003947-A","Meio-fio de concreto - MFC 05 moldado no local com extrusora e concreto betoneira e lançamento manual - areia e brita comerciais"]
[{"$nulls":6},"Custo unitário total de transporte",null,null,"Principal","",null,"2003947-A","Meio-fio de concreto - MFC 05 moldado no local com extrusora e concreto betoneira e lançamento manual - areia e brita comerciais"]
[{"$nulls":4},"Custo unitário direto total",{"$nulls":4},"Principal","",null,"2003947-A","Meio-fio de concreto - MFC 05 moldado no local com extrusora e concreto betoneira e lançamento manual - areia e brita comerciais"]
["CGCIT",{"$nulls":7},"DNIT","Principal","",null,"4011209","Regularização do subleito"]
["SISTEMA DE CUSTOS REFERENCIAIS DE OBRAS - SICRO",null,null,"Goiás",null,null,"FIC",2.725E-2,null,"Principal","",null,"4011209","Regularização do subleito"]
["Custo Unitário de Referência",null,null,"Abril/2024",null,null,"Produção da equipe ",1121.33,"m²","Principal","",null,"4011209","Regularização do subleito"]
["4011209","Regularização do subleito",{"$nulls":5},"Valores em reais (R$)",null,"Principal","",null,"4011209","Regularização do subleito"]
["A - EQUIPAMENTOS",null,"Quantidade","Utilização",null,"Custo Horário",null,null,"Custo","Principal","",null,"4011209","Regularização do subleito"]
[null,null,null,"Operativa","Improdutiva","Produtivo","Improdutivo",null,"Horário Total","Principal",{"$f":"IF(LEFT(A67,2)=\"E9\",A67,\"\")","v":""},null,"4011209","Regularização do subleito"]
["E9571","Caminhão tanque com capacidade de 10.000 l - 188 kW",2,0.51,0.49,{"$nulls":4},"Principal","E9571",2,"4011209","Regularização do subleito"]
["E9518","Grade de 24 discos rebocável de D = 60 cm (24\")",1,0.69,0.31,{"$nulls":4},"Principal","E9518",1,"4011209","Regularização do subleito"]
["E9524","Motoniveladora - 93 kW",1,0.71,0.28999999999999998,{"$nulls":4},"Principal","E9524",1,"4011209","Regularização do subleito"]
["E9762","Rolo compactador de pneus autopropelido de 27 t - 85 kW",1,0.96,0.04,{"$nulls":4},"Principal","E9762",1,"4011209","Regularização do subleito"]
["E9685","Rolo compactador pé de carneiro vibratório autopropelido por pneus de 11,6 t - 82 kW",1,1,0,{"$nulls":4},"Principal","E9685",1,"4011209","Regularização do subleito"]
["E9577","Trator agrícola sobre pneus - 77 kW",1,0.69,0.31,{"$nulls":4},"Principal","E9577",1,"4011209","Regularização do subleito"]
[{"$nulls":6},"Custo horário total de equipamentos",null,null,"Principal","",null,"4011209","Regularização do subleito"]
["B - MÃO DE OBRA",null,"Quantidade","Unidade",null,"Custo Horário","Custo Horário Total",null,null,"Principal","",null,"4011209","Regularização do subleito"]
["P9824","Servente",1,"h",{"$nulls":5},"Principal","",null,"4011209","Regularização do subleito"]
[{"$nulls":6},"Custo horário total de mão de obra",null,null,"Principal","",null,"4011209","Regularização do subleito"]
[{"$nulls":6},"Custo horário total de execução",null,null,"Principal","",null,"4011209","Regularização do subleito"]
[{"$nulls":6},"Custo unitário de execução",null,null,"Principal","",null,"4011209","Regularização do subleito"]
[{"$nulls":6},"Custo do FIC",null,null,"Principal","",null,"4011209","Regularização do subleito"]
[{"$nulls":6},"Custo do FIT",null,null,"Principal","",null,"4011209","Regularização do subleito"]
["C - MATERIAL",null,"Quantidade","Unidade",null,"Preço Unitário","Custo Unitário",null,null,"Principal","",null,"4011209","Regularização do subleito"]
[{"$nulls":6},"Custo unitário total de material",null,null,"Principal","",null,"4011209","Regularização do subleito"]
["D - ATIVIDADES AUXILIARES",null,"Quantidade","Unidade",null,"Custo Unitário","Custo Unitário",null,null,"Principal","",null,"4011209","Regularização do subleito"]
[{"$nulls":6},"Custo total de atividades auxiliares",null,null,"Principal","",null,"4011209","Regularização do subleito"]
[{"$nulls":6},"Subtotal",null,null,"Principal","",null,"4011209","Regularização do subleito"]
["E - TEMPO FIXO",null,"Código","Quantidade","Unidade",null,"Custo Unitário","Custo Unitário",null,"Principal","",null,"4011209","Regularização do subleito"]
[{"$nulls":6},"Custo unitário total de tempo fixo",null,null,"Principal","",null,"4011209","Regularização do subleito"]
["F - MOMENTO DE TRANSPORTE",null,"Quantidade","Unidade","DMT",null,null,null,"Custo Unitário","Principal","",null,"4011209","Regularização do subleito"]
[{"$nulls":4},"LN","RP","P",null,null,"Principal","",null,"4011209","Regularização do subleito"]
[{"$nulls":6},"Custo unitário total de transporte",null,null,"Principal","",null,"4011209","Regularização do subleito"]
[{"$nulls":4},"Custo unitário direto total",{"$nulls":4},"Principal","",null,"4011209","Regularização do subleito"]
["CGCIT",{"$nulls":7},"DNIT","Principal","",null,"4011233","Sub-base estabilizada granulometricamente com mistura solo brita (70% - 30%) na pista com material de jazida e brita comercial"]
["SISTEMA DE CUSTOS REFERENCIAIS DE OBRAS - SICRO",null,null,"Goiás",null,null,"FIC",2.725E-2,null,"Principal","",null,"4011233","Sub-base estabilizada granulometricamente com mistura solo brita (70% - 30%) na pista com material de jazida e brita comercial"]
["Custo Unitário de Referência",null,null,"Abril/2024",null,null,"Produção da equipe ",150.88,"m³","Principal","",null,"4011233","Sub-base estabilizada granulometricamente com mistura solo brita (70% - 30%) na pista com material de jazida e brita comercial"]
["4011233","Sub-base estabilizada granulometricamente com mistura solo brita (70% - 30%) na pista com material de jazida e brita comercial",{"$nulls":5},"Valores em reais (R$)",null,"Principal","",null,"4011233","Sub-base estabilizada granulometricamente com mistura solo brita (70% - 30%) na pista com material de jazida e brita comercial"]
["A - EQUIPAMENTOS",null,"Quantidade","Utilização",null,"Custo Horário",null,null,"Custo","Principal","",null,"4011233","Sub-base estabilizada granulometricamente com mistura solo brita (70% - 30%) na pista com material de jazida e brita comercial"]
[null,null,null,"Operativa","Improdutiva","Produtivo","Improdutivo",null,"Horário Total","Principal","",null,"4011233","Sub-base estabilizada granulometricamente com mistura solo brita (70% - 30%) na pista com material de jazida e brita comercial"]
["E9571","Caminhão tanque com capacidade de 10.000 l - 188 kW",1,0.83,0.17,{"$nulls":4},"Principal","E9571",null,"4011233","Sub-base estabilizada granulometricamente com mistura solo brita (70% - 30%) na pista com material de jazida e brita comercial"]
["E9518","Grade de 24 discos rebocável de D = 60 cm (24\")",1,0.62,0.38,{"$nulls":4},"Principal","E9518",null,"4011233","Sub-base estabilizada granulometricamente com mistura solo brita (70% - 30%) na pista com material de jazida e brita comercial"]
["E9524","Motoniveladora - 93 kW",1,1,0,{"$nulls":4},"Principal","E9524",null,"4011233","Sub-base estabilizada granulometricamente com mistura solo brita (70% - 30%) na pista com material de jazida e brita comercial"]
["E9762","Rolo compactador de pneus autopropelido de 27 t - 85 kW",1,0.65,0.35,{"$nulls":4},"Principal","E9762",null,"4011233","Sub-base estabilizada granulometricamente com mistura solo brita (70% - 30%) na pista com material de jazida e brita comercial"]
["E9685","Rolo compactador pé de carneiro vibratório autopropelido por pneus de 11,6 t - 82 kW",1,0.67,0.33,{"$nulls":4},"Principal","E9685",null,"4011233","Sub-base estabilizada granulometricamente com mistura solo brita (70% - 30%) na pista com material de jazida e brita comercial"]
["E9577","Trator agrícola sobre pneus - 77 kW",1,0.62,0.38,{"$nulls":4},"Principal","E9577",null,"4011233","Sub-base estabilizada granulometricamente com mistura solo brita (70% - 30%) na pista com material de jazida e brita comercial"]
[{"$nulls":6},"Custo horário total de equipamentos",null,null,"Principal","",null,"4011233","Sub-base estabilizada granulometricamente com mistura solo brita (70% - 30%) na pista com material de jazida e brita comercial"]
["B - MÃO DE OBRA",null,"Quantidade","Unidade",null,"Custo Horário","Custo Horário Total",null,null,"Principal","",null,"4011233","Sub-base estabilizada granulometricamente com mistura solo brita (70% - 30%) na pista com material de jazida e brita comercial"]
["P9824","Servente",1,"h",{"$nulls":5},"Principal","",null,"4011233","Sub-base estabilizada granulometricamente com mistura solo brita (70% - 30%) na pista com material de jazida e brita comercial"]
[{"$nulls":6},"Custo horário total de mão de obra",null,null,"Principal","",null,"4011233","Sub-base estabilizada granulometricamente com mistura solo brita (70% - 30%) na pista com material de jazida e brita comercial"]
[{"$nulls":6},"Custo horário total de execução",null,null,"Principal","",null,"4011233","Sub-base estabilizada granulometricamente com mistura solo brita (70% - 30%) na pista com material de jazida e brita comercial"]
[{"$nulls":6},"Custo unitário de execução",null,null,"Principal","",null,"4011233","Sub-base estabilizada granulometricamente com mistura solo brita (70% - 30%) na pista com material de jazida e brita comercial"]
[{"$nulls":6},"Custo do FIC",null,null,"Principal","",null,"4011233","Sub-base estabilizada granulometricamente com mistura solo brita (70% - 30%) na pista com material de jazida e brita comercial"]
[{"$nulls":6},"Custo do FIT",null,null,"Principal","",null,"4011233","Sub-base estabilizada granulometricamente com mistura solo brita (70% - 30%) na pista com material de jazida e brita comercial"]
["C - MATERIAL",null,"Quantidade","Unidade",null,"Preço Unitário","Custo Unitário",null,null,"Principal","",null,"4011233","Sub-base estabilizada granulometricamente com mistura solo brita (70% - 30%) na pista com material de jazida e brita comercial"]
["M0191","Brita 1",0.41260000000000002,"m³",{"$nulls":5},"Principal","",null,"4011233","Sub-base estabilizada granulometricamente com mistura solo brita (70% - 30%) na pista com material de jazida e brita comercial"]
[{"$nulls":6},"Custo unitário total de material",null,null,"Principal","",null,"4011233","Sub-base estabilizada granulometricamente com mistura solo brita (70% - 30%) na pista com material de jazida e brita comercial"]
["D - ATIVIDADES AUXILIARES",null,"Quantidade","Unidade",null,"Custo Unitário","Custo Unitário",null,null,"Principal","",null,"4011233","Sub-base estabilizada granulometricamente com mistura solo brita (70% - 30%) na pista com material de jazida e brita comercial"]
["4016096","Escavação e carga de material de jazida com escavadeira hidráulica de 1,56 m³",0.77019000000000004,"m³",{"$nulls":5},"Principal","",null,"4011233","Sub-base estabilizada granulometricamente com mistura solo brita (70% - 30%) na pista com material de jazida e brita comercial"]
[{"$nulls":6},"Custo total de atividades auxiliares",null,null,"Principal","",null,"4011233","Sub-base estabilizada granulometricamente com mistura solo brita (70% - 30%) na pista com material de jazida e brita comercial"]
[{"$nulls":6},"Subtotal",null,null,"Principal","",null,"4011233","Sub-base estabilizada granulometricamente com mistura solo brita (70% - 30%) na pista com material de jazida e brita comercial"]
["E - TEMPO FIXO",null,"Código","Quantidade","Unidade",null,"Custo Unitário","Custo Unitário",null,"Principal","",null,"4011233","Sub-base estabilizada granulometricamente com mistura solo brita (70% - 30%) na pista com material de jazida e brita comercial"]
["4016096","Escavação e carga de material de jazida com escavadeira hidráulica de 1,56 m³ - Caminhão basculante 10 m³","5914354",1.44411,"t",{"$nulls":4},"Principal","",null,"4011233","Sub-base estabilizada granulometricamente com mistura solo brita (70% - 30%) na pista com material de jazida e brita comercial"]
["M0191","Brita 1 - Caminhão basculante 10 m³","5914647",0.61890000000000001,"t",{"$nulls":4},"Principal","",null,"4011233","Sub-base estabilizada granulometricamente com mistura solo brita (70% - 30%) na pista com material de jazida e brita comercial"]
[{"$nulls":6},"Custo unitário total de tempo fixo",null,null,"Principal","",null,"4011233","Sub-base estabilizada granulometricamente com mistura solo brita (70% - 30%) na pista com material de jazida e brita comercial"]
["F - MOMENTO DE TRANSPORTE",null,"Quantidade","Unidade","DMT",null,null,null,"Custo Unitário","Principal","",null,"4011233","Sub-base estabilizada granulometricamente com mistura solo brita (70% - 30%) na pista com material de jazida e brita comercial"]
[{"$nulls":4},"LN","RP","P",null,null,"Principal","",null,"4011233","Sub-base estabilizada granulometricamente com mistura solo brita (70% - 30%) na pista com material de jazida e brita comercial"]
["4016096","Escavação e carga de material de jazida com escavadeira hidráulica de 1,56 m³ - Caminhão basculante 10 m³",1.44411,"tkm","5914359","5914374","5914389",null,null,"Principal","",null,"4011233","Sub-base estabilizada granulometricamente com mistura solo brita (70% - 30%) na pista com material de jazida e brita comercial"]
["M0191","Brita 1 - Caminhão basculante 10 m³",0.61890000000000001,"tkm","5914359","5914374","5914389",null,null,"Principal","",null,"4011233","Sub-base estabilizada granulometricamente com mistura solo brita (70% - 30%) na pista com material de jazida e brita comercial"]
[{"$nulls":6},"Custo unitário total de transporte",null,null,"Principal","",null,"4011233","Sub-base estabilizada granulometricamente com mistura solo brita (70% - 30%) na pista com material de jazida e brita comercial"]
[{"$nulls":4},"Custo unitário direto total",{"$nulls":4},"Principal","",null,"4011233","Sub-base estabilizada granulometricamente com mistura solo brita (70% - 30%) na pista com material de jazida e brita comercial"]
["CGCIT",{"$nulls":7},"DNIT","Principal","",null,"4011256","Base estabilizada granulometricamente com mistura solo brita (70% - 30%) na pista com material de jazida e brita comercial"]
["SISTEMA DE CUSTOS REFERENCIAIS DE OBRAS - SICRO",null,null,"Goiás",null,null,"FIC",2.725E-2,null,"Principal",{"$f":"IF(LEFT(A131,2)=\"E9\",A131,\"\")","v":""},null,"4011256","Base estabilizada granulometricamente com mistura solo brita (70% - 30%) na pista com material de jazida e brita comercial"]
["Custo Unitário de Referência",null,null,"Abril/2024",null,null,"Produção da equipe ",150.88,"m³","Principal","",null,"4011256","Base estabilizada granulometricamente com mistura solo brita (70% - 30%) na pista com material de jazida e brita comercial"]
["4011256","Base estabilizada granulometricamente com mistura solo brita (70% - 30%) na pista com material de jazida e brita comercial",{"$nulls":5},"Valores em reais (R$)",null,"Principal","",null,"4011256","Base estabilizada granulometricamente com mistura solo brita (70% - 30%) na pista com material de jazida e brita comercial"]
["A - EQUIPAMENTOS",null,"Quantidade","Utilização",null,"Custo Horário",null,null,"Custo","Principal","",null,"4011256","Base estabilizada granulometricamente com mistura solo brita (70% - 30%) na pista com material de jazida e brita comercial"]
[null,null,null,"Operativa","Improdutiva","Produtivo","Improdutivo",null,"Horário Total","Principal","",null,"4011256","Base estabilizada granulometricamente com mistura solo brita (70% - 30%) na pista com material de jazida e brita comercial"]
["E9571","Caminhão tanque com capacidade de 10.000 l - 188 kW",1,0.83,0.17,{"$nulls":4},"Principal","E9571",null,"4011256","Base estabilizada granulometricamente com mistura solo brita (70% - 30%) na pista com material de jazida e brita comercial"]
["E9518","Grade de 24 discos rebocável de D = 60 cm (24\")",1,0.62,0.38,{"$nulls":4},"Principal","E9518",null,"4011256","Base estabilizada granulometricamente com mistura solo brita (70% - 30%) na pista com material de jazida e brita comercial"]
["E9524","Motoniveladora - 93 kW",1,1,0,{"$nulls":4},"Principal","E9524",null,"4011256","Base estabilizada granulometricamente com mistura solo brita (70% - 30%) na pista com material de jazida e brita comercial"]
["E9762","Rolo compactador de pneus autopropelido de 27 t - 85 kW",1,0.86,0.14000000000000001,{"$nulls":4},"Principal","E9762",null,"4011256","Base estabilizada granulometricamente com mistura solo brita (70% - 30%) na pista com material de jazida e brita comercial"]
["E9685","Rolo compactador pé de carneiro vibratório autopropelido por pneus de 11,6 t - 82 kW",1,0.9,0.1,{"$nulls":4},"Principal","E9685",null,"4011256","Base estabilizada granulometricamente com mistura solo brita (70% - 30%) na pista com material de jazida e brita comercial"]
["E9577","Trator agrícola sobre pneus - 77 kW",1,0.62,0.38,{"$nulls":4},"Principal","E9577",null,"4011256","Base estabilizada granulometricamente com mistura solo brita (70% - 30%) na pista com material de jazida e brita comercial"]
[{"$nulls":6},"Custo horário total de equipamentos",null,null,"Principal","",null,"4011256","Base estabilizada granulometricamente com mistura solo brita (70% - 30%) na pista com material de jazida e brita comercial"]
["B - MÃO DE OBRA",null,"Quantidade","Unidade",null,"Custo Horário","Custo Horário Total",null,null,"Principal","",null,"4011256","Base estabilizada granulometricamente com mistura solo brita (70% - 30%) na pista com material de jazida e brita comercial"]
["P9824","Servente",1,"h",{"$nulls":5},"Principal","",null,"4011256","Base estabilizada granulometricamente com mistura solo brita (70% - 30%) na pista com material de jazida e brita comercial"]
[{"$nulls":6},"Custo horário total de mão de obra",null,null,"Principal","",null,"4011256","Base estabilizada granulometricamente com mistura solo brita (70% - 30%) na pista com material de jazida e brita comercial"]
[{"$nulls":6},"Custo horário total de execução",null,null,"Principal","",null,"4011256","Base estabilizada granulometricamente com mistura solo brita (70% - 30%) na pista com material de jazida e brita comercial"]
[{"$nulls":6},"Custo unitário de execução",null,null,"Principal","",null,"4011256","Base estabilizada granulometricamente com mistura solo brita (70% - 30%) na pista com material de jazida e brita comercial"]
[{"$nulls":6},"Custo do FIC",null,null,"Principal","",null,"4011256","Base estabilizada granulometricamente com mistura solo brita (70% - 30%) na pista com material de jazida e brita comercial"]
[{"$nulls":6},"Custo do FIT",null,null,"Principal","",null,"4011256","Base estabilizada granulometricamente com mistura solo brita (70% - 30%) na pista com material de jazida e brita comercial"]
["C - MATERIAL",null,"Quantidade","Unidade",null,"Preço Unitário","Custo Unitário",null,null,"Principal","",null,"4011256","Base estabilizada granulometricamente com mistura solo brita (70% - 30%) na pista com material de jazida e brita comercial"]
["M0191","Brita 1",0.41260000000000002,"m³",{"$nulls":5},"Principal","",null,"4011256","Base estabilizada granulometricamente com mistura solo brita (70% - 30%) na pista com material de jazida e brita comercial"]
[{"$nulls":6},"Custo unitário total de material",null,null,"Principal","",null,"4011256","Base estabilizada granulometricamente com mistura solo brita (70% - 30%) na pista com material de jazida e brita comercial"]
["D - ATIVIDADES AUXILIARES",null,"Quantidade","Unidade",null,"Custo Unitário","Custo Unitário",null,null,"Principal","",null,"4011256","Base estabilizada granulometricamente com mistura solo brita (70% - 30%) na pista com material de jazida e brita comercial"]
["4016096","Escavação e carga de material de jazida com escavadeira hidráulica de 1,56 m³",0.77019000000000004,"m³",{"$nulls":5},"Principal","",null,"4011256","Base estabilizada granulometricamente com mistura solo brita (70% - 30%) na pista com material de jazida e brita comercial"]
[{"$nulls":6},"Custo total de atividades auxiliares",null,null,"Principal","",null,"4011256","Base estabilizada granulometricamente com mistura solo brita (70% - 30%) na pista com material de jazida e brita comercial"]
[{"$nulls":6},"Subtotal",null,null,"Principal","",null,"4011256","Base estabilizada granulometricamente com mistura solo brita (70% - 30%) na pista com material de jazida e brita comercial"]
["E - TEMPO FIXO",null,"Código","Quantidade","Unidade",null,"Custo Unitário","Custo Unitário",null,"Principal","",null,"4011256","Base estabilizada granulometricamente com mistura solo brita (70% - 30%) na pista com material de jazida e brita comercial"]
["4016096","Escavação e carga de material de jazida com escavadeira hidráulica de 1,56 m³ - Caminhão basculante 10 m³","5914354",1.44411,"t",{"$nulls":4},"Principal","",null,"4011256","Base estabilizada granulometricamente com mistura solo brita (70% - 30%) na pista com material de jazida e brita comercial"]
["M0191","Brita 1 - Caminhão basculante 10 m³","5914647",0.61890000000000001,"t",{"$nulls":4},"Principal","",null,"4011256","Base estabilizada granulometricamente com mistura solo brita (70% - 30%) na pista com material de jazida e brita comercial"]
[{"$nulls":6},"Custo unitário total de tempo fixo",null,null,"Principal","",null,"4011256","Base estabilizada granulometricamente com mistura solo brita (70% - 30%) na pista com material de jazida e brita comercial"]
["F - MOMENTO DE TRANSPORTE",null,"Quantidade","Unidade","DMT",null,null,null,"Custo Unitário","Principal","",null,"4011256","Base estabilizada granulometricamente com mistura solo brita (70% - 30%) na pista com material de jazida e brita comercial"]
[{"$nulls":4},"LN","RP","P",null,null,"Principal","",null,"4011256","Base estabilizada granulometricamente com mistura solo brita (70% - 30%) na pista com material de jazida e brita comercial"]
["4016096","Escavação e carga de material de jazida com escavadeira hidráulica de 1,56 m³ - Caminhão basculante 10 m³",1.44411,"tkm","5914359","5914374","5914389",null,null,"Principal","",null,"4011256","Base estabilizada granulometricamente com mistura solo brita (70% - 30%) na pista com material de jazida e brita comercial"]
["M0191","Brita 1 - Caminhão basculante 10 m³",0.61890000000000001,"tkm","5914359","5914374","5914389",null,null,"Principal","",null,"4011256","Base estabilizada granulometricamente com mistura solo brita (70% - 30%) na pista com material de jazida e brita comercial"]
[{"$nulls":6},"Custo unitário total de transporte",null,null,"Principal","",null,"4011256","Base estabilizada granulometricamente com mistura solo brita (70% - 30%) na pista com material de jazida e brita comercial"]
[{"$nulls":4},"Custo unitário direto total",{"$nulls":4},"Principal","",null,"4011256","Base estabilizada granulometricamente com mistura solo brita (70% - 30%) na pista com material de jazida e brita comercial"]
["CGCIT",{"$nulls":7},"DNIT","Principal","",null,"4011352","Imprimação com emulsão asfáltica"]
["SISTEMA DE CUSTOS REFERENCIAIS DE OBRAS - SICRO",null,null,"Goiás",null,null,"FIC",4.5399999999999998E-3,null,"Principal","",null,"4011352","Imprimação com emulsão asfáltica"]
["Custo Unitário de Referência",null,null,"Abril/2024",null,null,"Produção da equipe ",1038.46,"m²","Principal","",null,"4011352","Imprimação com emulsão asfáltica"]
["4011352","Imprimação com emulsão asfáltica",{"$nulls":5},"Valores em reais (R$)",null,"Principal","",null,"4011352","Imprimação com emulsão asfáltica"]
["A - EQUIPAMENTOS",null,"Quantidade","Utilização",null,"Custo Horário",null,null,"Custo","Principal","",null,"4011352","Imprimação com emulsão asfáltica"]
[null,null,null,"Operativa","Improdutiva","Produtivo","Improdutivo",null,"Horário Total","Principal","",null,"4011352","Imprimação com emulsão asfáltica"]
["E9509","Caminhão tanque distribuidor de asfalto com capacidade de 6.000 l - 7 kW/136 kW",1,1,0,{"$nulls":4},"Principal","E9509",1,"4011352","Imprimação com emulsão asfáltica"]
["E9558","Tanque de estocagem de asfalto com capacidade de 30.000 l",2,1,0,{"$nulls":4},"Principal","E9558",2,"4011352","Imprimação com emulsão asfáltica"]
[{"$nulls":6},"Custo horário total de equipamentos",null,null,"Principal","",null,"4011352","Imprimação com emulsão asfáltica"]
["B - MÃO DE OBRA",null,"Quantidade","Unidade",null,"Custo Horário","Custo Horário Total",null,null,"Principal","",null,"4011352","Imprimação com emulsão asfáltica"]
["P9824","Servente",2,"h",{"$nulls":5},"Principal","",null,"4011352","Imprimação com emulsão asfáltica"]
[{"$nulls":6},"Custo horário total de mão de obra",null,null,"Principal","",null,"4011352","Imprimação com emulsão asfáltica"]
[{"$nulls":6},"Custo horário total de execução",null,null,"Principal","",null,"4011352","Imprimação com emulsão asfáltica"]
[{"$nulls":6},"Custo unitário de execução",null,null,"Principal","",null,"4011352","Imprimação com emulsão asfáltica"]
[{"$nulls":6},"Custo do FIC",null,null,"Principal","",null,"4011352","Imprimação com emulsão asfáltica"]
[{"$nulls":6},"Custo do FIT",null,null,"Principal","",null,"4011352","Imprimação com emulsão asfáltica"]
["C - MATERIAL",null,"Quantidade","Unidade",null,"Preço Unitário","Custo Unitário",null,null,"Principal","",null,"4011352","Imprimação com emulsão asfáltica"]
["M2092","Emulsão asfáltica para imprimação",1.2999999999999999E-3,"t",{"$nulls":5},"Principal","",null,"4011352","Imprimação com emulsão asfáltica"]
[{"$nulls":6},"Custo unitário total de material",null,null,"Principal","",null,"4011352","Imprimação com emulsão asfáltica"]
["D - ATIVIDADES AUXILIARES",null,"Quantidade","Unidade",null,"Custo Unitário","Custo Unitário",null,null,"Principal","",null,"4011352","Imprimação com emulsão asfáltica"]
[{"$nulls":6},"Custo total de atividades auxiliares",null,null,"Principal","",null,"4011352","Imprimação com emulsão asfáltica"]
[{"$nulls":6},"Subtotal",null,null,"Principal","",null,"4011352","Imprimação com emulsão asfáltica"]
["E - TEMPO FIXO",null,"Código","Quantidade","Unidade",null,"Custo Unitário","Custo Unitário",null,"Principal","",null,"4011352","Imprimação com emulsão asfáltica"]
[{"$nulls":6},"Custo unitário total de tempo fixo",null,null,"Principal","",null,"4011352","Imprimação com emulsão asfáltica"]
["F - MOMENTO DE TRANSPORTE",null,"Quantidade","Unidade","DMT",null,null,null,"Custo Unitário","Principal","",null,"4011352","Imprimação com emulsão asfáltica"]
[{"$nulls":4},"LN","RP","P",null,null,"Principal","",null,"4011352","Imprimação com emulsão asfáltica"]
[{"$nulls":6},"Custo unitário total de transporte",null,null,"Principal","",null,"4011352","Imprimação com emulsão asfáltica"]
[{"$nulls":4},"Custo unitário direto total",{"$nulls":4},"Principal","",null,"4011352","Imprimação com emulsão asfáltica"]
["CGCIT",{"$nulls":7},"DNIT","Principal",{"$f":"IF(LEFT(A195,2)=\"E9\",A195,\"\")","v":""},null,"4011370","Tratamento superficial duplo com emulsão - brita comercial"]
["SISTEMA DE CUSTOS REFERENCIAIS DE OBRAS - SICRO",null,null,"Goiás",null,null,"FIC",4.5399999999999998E-3,null,"Principal","",null,"4011370","Tratamento superficial duplo com emulsão - brita comercial"]
["Custo Unitário de Referência",null,null,"Abril/2024",null,null,"Produção da equipe ",361.93,"m²","Principal","",null,"4011370","Tratamento superficial duplo com emulsão - brita comercial"]
["4011370","Tratamento superficial duplo com emulsão - brita comercial",{"$nulls":5},"Valores em reais (R$)",null,"Principal","",null,"4011370","Tratamento superficial duplo com emulsão - brita comercial"]
["A - EQUIPAMENTOS",null,"Quantidade","Utilização",null,"Custo Horário",null,null,"Custo","Principal","",null,"4011370","Tratamento superficial duplo com emulsão - brita comercial"]
[null,null,null,"Operativa","Improdutiva","Produtivo","Improdutivo",null,"Horário Total","Principal","",null,"4011370","Tratamento superficial duplo com emulsão - brita comercial"]
["E9509","Caminhão tanque distribuidor de asfalto com capacidade de 6.000 l - 7 kW/136 kW",1,1,0,{"$nulls":4},"Principal","E9509",null,"4011370","Tratamento superficial duplo com emulsão - brita comercial"]
["E9583","Distribuidor de agregados rebocável com capacidade de 1,9 m³",1,0.28000000000000003,0.72,{"$nulls":4},"Principal","E9583",1,"4011370","Tratamento superficial duplo com emulsão - brita comercial"]
["E9762","Rolo compactador de pneus autopropelido de 27 t - 85 kW",1,0.31,0.69,{"$nulls":4},"Principal","E9762",null,"4011370","Tratamento superficial duplo com emulsão - brita comercial"]
["E9558","Tanque de estocagem de asfalto com capacidade de 30.000 l",2,1,0,{"$nulls":4},"Principal","E9558",null,"4011370","Tratamento superficial duplo com emulsão - brita comercial"]
[{"$nulls":6},"Custo horário total de equipamentos",null,null,"Principal","",null,"4011370","Tratamento superficial duplo com emulsão - brita comercial"]
["B - MÃO DE OBRA",null,"Quantidade","Unidade",null,"Custo Horário","Custo Horário Total",null,null,"Principal","",null,"4011370","Tratamento superficial duplo com emulsão - brita comercial"]
["P9824","Servente",8,"h",{"$nulls":5},"Principal","",null,"4011370","Tratamento superficial duplo com emulsão - brita comercial"]
[null,null,"Custo horário total de mão de obra",{"$nulls":6},"Principal","",null,"4011370","Tratamento superficial duplo com emulsão - brita comercial"]
[null,null,"Custo horário total de execução",{"$nulls":6},"Principal","",null,"4011370","Tratamento superficial duplo com emulsão - brita comercial"]
[null,null,"Custo unitário de execução",{"$nulls":6},"Principal","",null,"4011370","Tratamento superficial duplo com emulsão - brita comercial"]
[{"$nulls":6},"Custo do FIC",null,null,"Principal","",null,"4011370","Tratamento superficial duplo com emulsão - brita comercial"]
[{"$nulls":6},"Custo do FIT",null,null,"Principal","",null,"4011370","Tratamento superficial duplo com emulsão - brita comercial"]
["C - MATERIAL",null,"Quantidade","Unidade",null,"Preço Unitário","Custo Unitário",null,null,"Principal","",null,"4011370","Tratamento superficial duplo com emulsão - brita comercial"]
["M0005","Brita 0",7.3299999999999997E-3,"m³",{"$nulls":5},"Principal","",null,"4011370","Tratamento superficial duplo com emulsão - brita comercial"]
["M0191","Brita 1",1.4999999999999999E-2,"m³",{"$nulls":5},"Principal","",null,"4011370","Tratamento superficial duplo com emulsão - brita comercial"]
["M2097","Emulsão asfáltica - RR-2C",3.7299999999999998E-3,"t",{"$nulls":5},"Principal","",null,"4011370","Tratamento superficial duplo com emulsão - brita comercial"]
[null,null,"Custo unitário total de material",{"$nulls":6},"Principal","",null,"4011370","Tratamento superficial duplo com emulsão - brita comercial"]
["D - ATIVIDADES AUXILIARES",null,"Quantidade","Unidade",null,"Custo Unitário","Custo Unitário",null,null,"Principal","",null,"4011370","Tratamento superficial duplo com emulsão - brita comercial"]
[null,null,"Custo total de atividades auxiliares",{"$nulls":6},"Principal","",null,"4011370","Tratamento superficial duplo com emulsão - brita comercial"]
[{"$nulls":6},"Subtotal",null,null,"Principal","",null,"4011370","Tratamento superficial duplo com emulsão - brita comercial"]
["E - TEMPO FIXO",null,"Código","Quantidade","Unidade",null,"Custo Unitário","Custo Unitário",null,"Principal","",null,"4011370","Tratamento superficial duplo com emulsão - brita comercial"]
["M0005","Brita 0 - Caminhão basculante 10 m³","5914648",1.0999999999999999E-2,"t",{"$nulls":4},"Principal","",null,"4011370","Tratamento superficial duplo com emulsão - brita comercial"]
["M0191","Brita 1 - Caminhão basculante 10 m³","5914648",2.2499999999999999E-2,"t",{"$nulls":4},"Principal","",null,"4011370","Tratamento superficial duplo com emulsão - brita comercial"]
[null,null,"Custo unitário total de tempo fixo",{"$nulls":6},"Principal","",null,"4011370","Tratamento superficial duplo com emulsão - brita comercial"]
["F - MOMENTO DE TRANSPORTE",null,"Quantidade","Unidade","DMT",null,null,null,"Custo Unitário","Principal","",null,"4011370","Tratamento superficial duplo com emulsão - brita comercial"]
[{"$nulls":4},"LN","RP","P",null,null,"Principal","",null,"4011370","Tratamento superficial duplo com emulsão - brita comercial"]
["M0005","Brita 0 - Caminhão basculante 10 m³",1.0999999999999999E-2,"tkm","5914359","5914374","5914389",null,null,"Principal","",null,"4011370","Tratamento superficial duplo com emulsão - brita comercial"]
["M0191","Brita 1 - Caminhão basculante 10 m³",2.2499999999999999E-2,"tkm","5914359","5914374","5914389",null,null,"Principal","",null,"4011370","Tratamento superficial duplo com emulsão - brita comercial"]
[null,null,"Custo unitário total de transporte",{"$nulls":6},"Principal","",null,"4011370","Tratamento superficial duplo com emulsão - brita comercial"]
[{"$nulls":4},"Custo unitário direto total",{"$nulls":4},"Principal","",null,"4011370","Tratamento superficial duplo com emulsão - brita comercial"]
["CGCIT",{"$nulls":7},"DNIT","Principal","",null,"4413942","Espalhamento de material em bota-fora"]
["SISTEMA DE CUSTOS REFERENCIAIS DE OBRAS - SICRO",null,null,"Goiás",null,null,"FIC",2.725E-2,null,"Principal","",null,"4413942","Espalhamento de material em bota-fora"]
["Custo Unitário de Referência",null,null,"Abril/2024",null,null,"Produção da equipe ",176.81,"m³","Principal","",null,"4413942","Espalhamento de material em bota-fora"]
["4413942","Espalhamento de material em bota-fora",{"$nulls":5},"Valores em reais (R$)",null,"Principal","",null,"4413942","Espalhamento de material em bota-fora"]
["A - EQUIPAMENTOS",null,"Quantidade","Utilização",null,"Custo Horário",null,null,"Custo","Principal","",null,"4413942","Espalhamento de material em bota-fora"]
[null,null,null,"Operativa","Improdutiva","Produtivo","Improdutivo",null,"Horário Total","Principal","",null,"4413942","Espalhamento de material em bota-fora"]
["E9540","Trator sobre esteiras com lâmina - 127 kW",1,1,0,{"$nulls":4},"Principal",{"$f":"IF(LEFT(A237,2)=\"E9\",A237,\"\")","v":"E9540"},1,"4413942","Espalhamento de material em bota-fora"]
[{"$nulls":6},"Custo horário total de equipamentos",null,null,"Principal","",null,"4413942","Espalhamento de material em bota-fora"]
["B - MÃO DE OBRA",null,"Quantidade","Unidade",null,"Custo Horário","Custo Horário Total",null,null,"Principal","",null,"4413942","Espalhamento de material em bota-fora"]
["P9824","Servente",1,"h",{"$nulls":5},"Principal","",null,"4413942","Espalhamento de material em bota-fora"]
[{"$nulls":6},"Custo horário total de mão de obra",null,null,"Principal","",null,"4413942","Espalhamento de material em bota-fora"]
[{"$nulls":6},"Custo horário total de execução",null,null,"Principal","",null,"4413942","Espalhamento de material em bota-fora"]
[{"$nulls":6},"Custo unitário de execução",null,null,"Principal","",null,"4413942","Espalhamento de material em bota-fora"]
[{"$nulls":6},"Custo do FIC",null,null,"Principal","",null,"4413942","Espalhamento de material em bota-fora"]
[{"$nulls":6},"Custo do FIT",null,null,"Principal","",null,"4413942","Espalhamento de material em bota-fora"]
["C - MATERIAL",null,"Quantidade","Unidade",null,"Preço Unitário","Custo Unitário",null,null,"Principal","",null,"4413942","Espalhamento de material em bota-fora"]
[{"$nulls":6},"Custo unitário total de material",null,null,"Principal","",null,"4413942","Espalhamento de material em bota-fora"]
["D - ATIVIDADES AUXILIARES",null,"Quantidade","Unidade",null,"Custo Unitário","Custo Unitário",null,null,"Principal","",null,"4413942","Espalhamento de material em bota-fora"]
[{"$nulls":6},"Custo total de atividades auxiliares",null,null,"Principal","",null,"4413942","Espalhamento de material em bota-fora"]
[{"$nulls":6},"Subtotal",null,null,"Principal","",null,"4413942","Espalhamento de material em bota-fora"]
["E - TEMPO FIXO",null,"Código","Quantidade","Unidade",null,"Custo Unitário","Custo Unitário",null,"Principal","",null,"4413942","Espalhamento de material em bota-fora"]
[{"$nulls":6},"Custo unitário total de tempo fixo",null,null,"Principal","",null,"4413942","Espalhamento de material em bota-fora"]
["F - MOMENTO DE TRANSPORTE",null,"Quantidade","Unidade","DMT",null,null,null,"Custo Unitário","Principal","",null,"4413942","Espalhamento de material em bota-fora"]
[{"$nulls":4},"LN","RP","P",null,null,"Principal","",null,"4413942","Espalhamento de material em bota-fora"]
[{"$nulls":6},"Custo unitário total de transporte",null,null,"Principal","",null,"4413942","Espalhamento de material em bota-fora"]
[{"$nulls":4},"Custo unitário direto total",{"$nulls":4},"Principal","",null,"4413942","Espalhamento de material em bota-fora"]
["CGCIT",{"$nulls":7},"DNIT","Principal","",null,"4915637","Capa selante - areia comercial"]
["SISTEMA DE CUSTOS REFERENCIAIS DE OBRAS - SICRO",null,null,"Goiás",null,null,"FIC",4.5399999999999998E-3,null,"Principal","",null,"4915637","Capa selante - areia comercial"]
["Custo Unitário de Referência",null,null,"Abril/2024",null,null,"Produção da equipe ",1350,"m²","Principal","",null,"4915637","Capa selante - areia comercial"]
["4915637","Capa selante - areia comercial",{"$nulls":5},"Valores em reais (R$)",null,"Principal","",null,"4915637","Capa selante - areia comercial"]
["A - EQUIPAMENTOS",null,"Quantidade","Utilização",null,"Custo Horário",null,null,"Custo","Principal","",null,"4915637","Capa selante - areia comercial"]
[null,null,null,"Operativa","Improdutiva","Produtivo","Improdutivo",null,"Horário Total","Principal","",null,"4915637","Capa selante - areia comercial"]
["E9509","Caminhão tanque distribuidor de asfalto com capacidade de 6.000 l - 7 kW/136 kW",1,1,0,{"$nulls":4},"Principal","E9509",null,"4915637","Capa selante - areia comercial"]
["E9583","Distribuidor de agregados rebocável com capacidade de 1,9 m³",1,0.26,0.74,{"$nulls":4},"Principal","E9583",null,"4915637","Capa selante - areia comercial"]
["E9762","Rolo compactador de pneus autopropelido de 27 t - 85 kW",1,0.78,0.22,{"$nulls":4},"Principal","E9762",null,"4915637","Capa selante - areia comercial"]
["E9558","Tanque de estocagem de asfalto com capacidade de 30.000 l",2,1,0,{"$nulls":4},"Principal","E9558",null,"4915637","Capa selante - areia comercial"]
[{"$nulls":6},"Custo horário total de equipamentos",null,null,"Principal","",null,"4915637","Capa selante - areia comercial"]
["B - MÃO DE OBRA",null,"Quantidade","Unidade",null,"Custo Horário","Custo Horário Total",null,null,"Principal","",null,"4915637","Capa selante - areia comercial"]
["P9824","Servente",8,"h",{"$nulls":5},"Principal","",null,"4915637","Capa selante - areia comercial"]
[null,null,"Custo horário total de mão de obra",{"$nulls":6},"Principal","",null,"4915637","Capa selante - areia comercial"]
[null,null,"Custo horário total de execução",{"$nulls":6},"Principal","",null,"4915637","Capa selante - areia comercial"]
[null,null,"Custo unitário de execução",{"$nulls":6},"Principal","",null,"4915637","Capa selante - areia comercial"]
[{"$nulls":6},"Custo do FIC",null,null,"Principal","",null,"4915637","Capa selante - areia comercial"]
[{"$nulls":6},"Custo do FIT",null,null,"Principal","",null,"4915637","Capa selante - areia comercial"]
["C - MATERIAL",null,"Quantidade","Unidade",null,"Preço Unitário","Custo Unitário",null,null,"Principal","",null,"4915637","Capa selante - areia comercial"]
["M0028","Areia média",2.8999999999999998E-3,"m³",{"$nulls":5},"Principal","",null,"4915637","Capa selante - areia comercial"]
["M2097","Emulsão asfáltica - RR-2C",5.0000000000000001E-4,"t",{"$nulls":5},"Principal","",null,"4915637","Capa selante - areia comercial"]
[null,null,"Custo unitário total de material",{"$nulls":6},"Principal","",null,"4915637","Capa selante - areia comercial"]
["D - ATIVIDADES AUXILIARES",null,"Quantidade","Unidade",null,"Custo Unitário","Custo Unitário",null,null,"Principal","",null,"4915637","Capa selante - areia comercial"]
[null,null,"Custo total de atividades auxiliares",{"$nulls":6},"Principal","",null,"4915637","Capa selante - areia comercial"]
[{"$nulls":6},"Subtotal",null,null,"Principal","",null,"4915637","Capa selante - areia comercial"]
["E - TEMPO FIXO",null,"Código","Quantidade","Unidade",null,"Custo Unitário","Custo Unitário",null,"Principal","",null,"4915637","Capa selante - areia comercial"]
["M0028","Areia média - Caminhão basculante 6 m³","5914642",4.3499999999999997E-3,"t",{"$nulls":4},"Principal","",null,"4915637","Capa selante - areia comercial"]
[null,null,"Custo unitário total de tempo fixo",{"$nulls":6},"Principal","",null,"4915637","Capa selante - areia comercial"]
["F - MOMENTO DE TRANSPORTE",null,"Quantidade","Unidade","DMT",null,null,null,"Custo Unitário","Principal","",null,"4915637","Capa selante - areia comercial"]
[{"$nulls":4},"LN","RP","P",null,null,"Principal","",null,"4915637","Capa selante - areia comercial"]
["M0028","Areia média - Caminhão basculante 6 m³",4.3499999999999997E-3,"tkm","5914314","5914329","5914344",null,null,"Principal","",null,"4915637","Capa selante - areia comercial"]
[null,null,"Custo unitário total de transporte",{"$nulls":6},"Principal","",null,"4915637","Capa selante - areia comercial"]
[{"$nulls":4},"Custo unitário direto total",{"$nulls":4},"Principal","",null,"4915637","Capa selante - areia comercial"]
["CGCIT",{"$nulls":7},"DNIT","Principal","",null,"4915724","Caiação mecanizada com fixador de cal"]
["SISTEMA DE CUSTOS REFERENCIAIS DE OBRAS - SICRO",null,null,"Goiás",{"$nulls":5},"Principal","",null,"4915724","Caiação mecanizada com fixador de cal"]
["Custo Unitário de Referência",null,null,"Abril/2024",null,null,"Produção da equipe ",155.59,"m²","Principal","",null,"4915724","Caiação mecanizada com fixador de cal"]
["4915724","Caiação mecanizada com fixador de cal",{"$nulls":5},"Valores em reais (R$)",null,"Principal","",null,"4915724","Caiação mecanizada com fixador de cal"]
["A - EQUIPAMENTOS",null,"Quantidade","Utilização",null,"Custo Horário",null,null,"Custo","Principal","",null,"4915724","Caiação mecanizada com fixador de cal"]
[null,null,null,"Operativa","Improdutiva","Produtivo","Improdutivo",null,"Horário Total","Principal","",null,"4915724","Caiação mecanizada com fixador de cal"]
["E9256","Equipamento para pintura com cal rebocável com dois bicos aplicadores e capacidade de 2.200 l",1,1,0,{"$nulls":4},"Principal","E9256",1,"4915724","Caiação mecanizada com fixador de cal"]
["E9156","Soprador de ar costal - 2,6 kW",1,1,0,{"$nulls":4},"Principal","E9156",1,"4915724","Caiação mecanizada com fixador de cal"]
["E9577","Trator agrícola sobre pneus - 77 kW",1,1,0,{"$nulls":4},"Principal","E9577",null,"4915724","Caiação mecanizada com fixador de cal"]
[{"$nulls":6},"Custo horário total de equipamentos",null,null,"Principal","",null,"4915724","Caiação mecanizada com fixador de cal"]
["B - MÃO DE OBRA",null,"Quantidade","Unidade",null,"Custo Horário","Custo Horário Total",null,null,"Principal","",null,"4915724","Caiação mecanizada com fixador de cal"]
["P9824","Servente",2,"h",{"$nulls":5},"Principal","",null,"4915724","Caiação mecanizada com fixador de cal"]
[{"$nulls":6},"Custo horário total de mão de obra",null,null,"Principal","",null,"4915724","Caiação mecanizada com fixador de cal"]
[{"$nulls":6},"Custo horário total de execução",null,null,"Principal","",null,"4915724","Caiação mecanizada com fixador de cal"]
[{"$nulls":6},"Custo unitário de execução",null,null,"Principal","",null,"4915724","Caiação mecanizada com fixador de cal"]
[{"$nulls":6},"Custo do FIC",null,null,"Principal","",null,"4915724","Caiação mecanizada com fixador de cal"]
[{"$nulls":6},"Custo do FIT",null,null,"Principal","",null,"4915724","Caiação mecanizada com fixador de cal"]
["C - MATERIAL",null,"Quantidade","Unidade",null,"Preço Unitário","Custo Unitário",null,null,"Principal","",null,"4915724","Caiação mecanizada com fixador de cal"]
["M0345","Cal hidratada - saco",0.41654999999999998,"kg",{"$nulls":5},"Principal","",null,"4915724","Caiação mecanizada com fixador de cal"]
["M0729","Fixador de cal para pintura",6.8999999999999997E-4,"l",{"$nulls":5},"Principal","",null,"4915724","Caiação mecanizada com fixador de cal"]
["M0043","Óleo diesel",1.389E-2,"l",{"$nulls":5},"Principal","",null,"4915724","Caiação mecanizada com fixador de cal"]
[{"$nulls":6},"Custo unitário total de material",null,null,"Principal","",null,"4915724","Caiação mecanizada com fixador de cal"]
["D - ATIVIDADES AUXILIARES",null,"Quantidade","Unidade",null,"Custo Unitário","Custo Unitário",null,null,"Principal","",null,"4915724","Caiação mecanizada com fixador de cal"]
[{"$nulls":6},"Custo total de atividades auxiliares",null,null,"Principal","",null,"4915724","Caiação mecanizada com fixador de cal"]
[{"$nulls":6},"Subtotal",null,null,"Principal","",null,"4915724","Caiação mecanizada com fixador de cal"]
["E - TEMPO FIXO",null,"Código","Quantidade","Unidade",null,"Custo Unitário","Custo Unitário",null,"Principal","",null,"4915724","Caiação mecanizada com fixador de cal"]
[{"$nulls":6},"Custo unitário total de tempo fixo",null,null,"Principal","",null,"4915724","Caiação mecanizada com fixador de cal"]
["F - MOMENTO DE TRANSPORTE",null,"Quantidade","Unidade","DMT",null,null,null,"Custo Unitário","Principal","",null,"4915724","Caiação mecanizada com fixador de cal"]
[{"$nulls":4},"LN","RP","P",null,null,"Principal","",null,"4915724","Caiação mecanizada com fixador de cal"]
[{"$nulls":6},"Custo unitário total de transporte",null,null,"Principal","",null,"4915724","Caiação mecanizada com fixador de cal"]
[{"$nulls":4},"Custo unitário direto total",{"$nulls":4},"Principal","",null,"4915724","Caiação mecanizada com fixador de cal"]
["CGCIT",{"$nulls":7},"DNIT","Principal","",null,"5213400","Pintura de faixa com tinta acrílica - espessura de 0,4 mm"]
["SISTEMA DE CUSTOS REFERENCIAIS DE OBRAS - SICRO",null,null,"Goiás",{"$nulls":5},"Principal","",null,"5213400","Pintura de faixa com tinta acrílica - espessura de 0,4 mm"]
["Custo Unitário de Referência",null,null,"Abril/2024",null,null,"Produção da equipe ",177.07,"m²","Principal","",null,"5213400","Pintura de faixa com tinta acrílica - espessura de 0,4 mm"]
["5213400","Pintura de faixa com tinta acrílica - espessura de 0,4 mm",{"$nulls":5},"Valores em reais (R$)",null,"Principal","",null,"5213400","Pintura de faixa com tinta acrílica - espessura de 0,4 mm"]
["A - EQUIPAMENTOS",null,"Quantidade","Utilização",null,"Custo Horário",null,null,"Custo","Principal","",null,"5213400","Pintura de faixa com tinta acrílica - espessura de 0,4 mm"]
[null,null,null,"Operativa","Improdutiva","Produtivo","Improdutivo",null,"Horário Total","Principal","",null,"5213400","Pintura de faixa com tinta acrílica - espessura de 0,4 mm"]
["E9644","Caminhão demarcador de faixas com sistema de pintura a frio - 28 kW/115 kW",1,1,0,{"$nulls":4},"Principal","E9644",1,"5213400","Pintura de faixa com tinta acrílica - espessura de 0,4 mm"]
[{"$nulls":6},"Custo horário total de equipamentos",null,null,"Principal","",null,"5213400","Pintura de faixa com tinta acrílica - espessura de 0,4 mm"]
["B - MÃO DE OBRA",null,"Quantidade","Unidade",null,"Custo Horário","Custo Horário Total",null,null,"Principal","",null,"5213400","Pintura de faixa com tinta acrílica - espessura de 0,4 mm"]
["P9853","Pré-marcador",1,"h",{"$nulls":5},"Principal","",null,"5213400","Pintura de faixa com tinta acrílica - espessura de 0,4 mm"]
["P9824","Servente",4,"h",{"$nulls":5},"Principal","",null,"5213400","Pintura de faixa com tinta acrílica - espessura de 0,4 mm"]
[{"$nulls":6},"Custo horário total de mão de obra",null,null,"Principal","",null,"5213400","Pintura de faixa com tinta acrílica - espessura de 0,4 mm"]
[{"$nulls":6},"Custo horário total de execução",null,null,"Principal",{"$f":"IF(LEFT(A333,2)=\"E9\",A333,\"\")","v":""},null,"5213400","Pintura de faixa com tinta acrílica - espessura de 0,4 mm"]
[{"$nulls":6},"Custo unitário de execução",null,null,"Principal","",null,"5213400","Pintura de faixa com tinta acrílica - espessura de 0,4 mm"]
[{"$nulls":6},"Custo do FIC",null,null,"Principal","",null,"5213400","Pintura de faixa com tinta acrílica - espessura de 0,4 mm"]
[{"$nulls":6},"Custo do FIT",null,null,"Principal","",null,"5213400","Pintura de faixa com tinta acrílica - espessura de 0,4 mm"]
["C - MATERIAL",null,"Quantidade","Unidade",null,"Preço Unitário","Custo Unitário",null,null,"Principal","",null,"5213400","Pintura de faixa com tinta acrílica - espessura de 0,4 mm"]
["M2037","Microesferas refletivas de vidro tipo I-B",0.08,"kg",{"$nulls":5},"Principal","",null,"5213400","Pintura de faixa com tinta acrílica - espessura de 0,4 mm"]
["M2038","Microesferas refletivas de vidro tipo II-A",0.35,"kg",{"$nulls":5},"Principal","",null,"5213400","Pintura de faixa com tinta acrílica - espessura de 0,4 mm"]
["M2034","Solvente para tinta à base de resina acrílica",0.02,"l",{"$nulls":5},"Principal","",null,"5213400","Pintura de faixa com tinta acrílica - espessura de 0,4 mm"]
["M2044","Tinta à base de resina acrílica emulsionada em água para pré-marcação viária",9.7000000000000005E-4,"l",{"$nulls":5},"Principal","",null,"5213400","Pintura de faixa com tinta acrílica - espessura de 0,4 mm"]
["M2027","Tinta à base de resina acrílica estirenada para demarcação viária",0.4,"l",{"$nulls":5},"Principal","",null,"5213400","Pintura de faixa com tinta acrílica - espessura de 0,4 mm"]
[{"$nulls":6},"Custo unitário total de material",null,null,"Principal","",null,"5213400","Pintura de faixa com tinta acrílica - espessura de 0,4 mm"]
["D - ATIVIDADES AUXILIARES",null,"Quantidade","Unidade",null,"Custo Unitário","Custo Unitário",null,null,"Principal","",null,"5213400","Pintura de faixa com tinta acrílica - espessura de 0,4 mm"]
[{"$nulls":6},"Custo total de atividades auxiliares",null,null,"Principal","",null,"5213400","Pintura de faixa com tinta acrílica - espessura de 0,4 mm"]
[{"$nulls":6},"Subtotal",null,null,"Principal","",null,"5213400","Pintura de faixa com tinta acrílica - espessura de 0,4 mm"]
["E - TEMPO FIXO",null,"Código","Quantidade","Unidade",null,"Custo Unitário","Custo Unitário",null,"Principal","",null,"5213400","Pintura de faixa com tinta acrílica - espessura de 0,4 mm"]
["M2037","Microesferas refletivas de vidro tipo I-B - Caminhão carroceria 15 t","5914655",8.0000000000000007E-5,"t",{"$nulls":4},"Principal","",null,"5213400","Pintura de faixa com tinta acrílica - espessura de 0,4 mm"]
["M2038","Microesferas refletivas de vidro tipo II-A - Caminhão carroceria 15 t","5914655",3.5E-4,"t",{"$nulls":4},"Principal","",null,"5213400","Pintura de faixa com tinta acrílica - espessura de 0,4 mm"]
["M2034","Solvente para tinta à base de resina acrílica - Caminhão carroceria 15 t","5914655",2.0000000000000002E-5,"t",{"$nulls":4},"Principal","",null,"5213400","Pintura de faixa com tinta acrílica - espessura de 0,4 mm"]
["M2027","Tinta à base de resina acrílica estirenada para demarcação viária - Caminhão carroceria 15 t","5914655",5.5000000000000003E-4,"t",{"$nulls":4},"Principal","",null,"5213400","Pintura de faixa com tinta acrílica - espessura de 0,4 mm"]
[{"$nulls":6},"Custo unitário total de tempo fixo",null,null,"Principal","",null,"5213400","Pintura de faixa com tinta acrílica - espessura de 0,4 mm"]
["F - MOMENTO DE TRANSPORTE",null,"Quantidade","Unidade","DMT",null,null,null,"Custo Unitário","Principal","",null,"5213400","Pintura de faixa com tinta acrílica - espessura de 0,4 mm"]
[{"$nulls":4},"LN","RP","P",null,null,"Principal","",null,"5213400","Pintura de faixa com tinta acrílica - espessura de 0,4 mm"]
["M2037","Microesferas refletivas de vidro tipo I-B - Caminhão carroceria 15 t",8.0000000000000007E-5,"tkm","5914449","5914464","5914479",null,null,"Principal","",null,"5213400","Pintura de faixa com tinta acrílica - espessura de 0,4 mm"]
["M2038","Microesferas refletivas de vidro tipo II-A - Caminhão carroceria 15 t",3.5E-4,"tkm","5914449","5914464","5914479",null,null,"Principal","",null,"5213400","Pintura de faixa com tinta acrílica - espessura de 0,4 mm"]
["M2034","Solvente para tinta à base de resina acrílica - Caminhão carroceria 15 t",2.0000000000000002E-5,"tkm","5914449","5914464","5914479",null,null,"Principal","",null,"5213400","Pintura de faixa com tinta acrílica - espessura de 0,4 mm"]
["M2027","Tinta à base de resina acrílica estirenada para demarcação viária - Caminhão carroceria 15 t",5.5000000000000003E-4,"tkm","5914449","5914464","5914479",null,null,"Principal","",null,"5213400","Pintura de faixa com tinta acrílica - espessura de 0,4 mm"]
[{"$nulls":6},"Custo unitário total de transporte",null,null,"Principal","",null,"5213400","Pintura de faixa com tinta acrílica - espessura de 0,4 mm"]
[{"$nulls":4},"Custo unitário direto total",{"$nulls":4},"Principal","",null,"5213400","Pintura de faixa com tinta acrílica - espessura de 0,4 mm"]
["CGCIT",{"$nulls":7},"DNIT","Principal","",null,"5213440","Placa de regulamentação em aço D = 0,60 m - película retrorrefletiva tipo I + SI - fornecimento e implantação"]
["SISTEMA DE CUSTOS REFERENCIAIS DE OBRAS - SICRO",null,null,"Goiás",{"$nulls":5},"Principal","",null,"5213440","Placa de regulamentação em aço D = 0,60 m - película retrorrefletiva tipo I + SI - fornecimento e implantação"]
["Custo Unitário de Referência",null,null,"Abril/2024",null,null,"Produção da equipe ",3,"un","Principal","",null,"5213440","Placa de regulamentação em aço D = 0,60 m - película retrorrefletiva tipo I + SI - fornecimento e implantação"]
["5213440","Placa de regulamentação em aço D = 0,60 m - película retrorrefletiva tipo I + SI - fornecimento e implantação",{"$nulls":5},"Valores em reais (R$)",null,"Principal","",null,"5213440","Placa de regulamentação em aço D = 0,60 m - película retrorrefletiva tipo I + SI - fornecimento e implantação"]
["A - EQUIPAMENTOS",null,"Quantidade","Utilização",null,"Custo Horário",null,null,"Custo","Principal","",null,"5213440","Placa de regulamentação em aço D = 0,60 m - película retrorrefletiva tipo I + SI - fornecimento e implantação"]
[null,null,null,"Operativa","Improdutiva","Produtivo","Improdutivo",null,"Horário Total","Principal","",null,"5213440","Placa de regulamentação em aço D = 0,60 m - película retrorrefletiva tipo I + SI - fornecimento e implantação"]
["E9687","Caminhão carroceria com capacidade de 5 t - 115 kW",1,0.3,0.7,{"$nulls":4},"Principal","E9687",1,"5213440","Placa de regulamentação em aço D = 0,60 m - película retrorrefletiva tipo I + SI - fornecimento e implantação"]
[{"$nulls":6},"Custo horário total de equipamentos",null,null,"Principal","",null,"5213440","Placa de regulamentação em aço D = 0,60 m - película retrorrefletiva tipo I + SI - fornecimento e implantação"]
["B - MÃO DE OBRA",null,"Quantidade","Unidade",null,"Custo Horário","Custo Horário Total",null,null,"Principal","",null,"5213440","Placa de regulamentação em aço D = 0,60 m - película retrorrefletiva tipo I + SI - fornecimento e implantação"]
["P9830","Montador",1,"h",{"$nulls":5},"Principal","",null,"5213440","Placa de regulamentação em aço D = 0,60 m - película retrorrefletiva tipo I + SI - fornecimento e implantação"]
["P9824","Servente",2,"h",{"$nulls":5},"Principal","",null,"5213440","Placa de regulamentação em aço D = 0,60 m - película retrorrefletiva tipo I + SI - fornecimento e implantação"]
[{"$nulls":6},"Custo horário total de mão de obra",null,null,"Principal","",null,"5213440","Placa de regulamentação em aço D = 0,60 m - película retrorrefletiva tipo I + SI - fornecimento e implantação"]
[{"$nulls":6},"Custo horário total de execução",null,null,"Principal","",null,"5213440","Placa de regulamentação em aço D = 0,60 m - película retrorrefletiva tipo I + SI - fornecimento e implantação"]
[{"$nulls":6},"Custo unitário de execução",null,null,"Principal","",null,"5213440","Placa de regulamentação em aço D = 0,60 m - película retrorrefletiva tipo I + SI - fornecimento e implantação"]
[{"$nulls":6},"Custo do FIC",null,null,"Principal","",null,"5213440","Placa de regulamentação em aço D = 0,60 m - película retrorrefletiva tipo I + SI - fornecimento e implantação"]
[{"$nulls":6},"Custo do FIT",null,null,"Principal","",null,"5213440","Placa de regulamentação em aço D = 0,60 m - película retrorrefletiva tipo I + SI - fornecimento e implantação"]
["C - MATERIAL",null,"Quantidade","Unidade",null,"Preço Unitário","Custo Unitário",null,null,"Principal","",null,"5213440","Placa de regulamentação em aço D = 0,60 m - película retrorrefletiva tipo I + SI - fornecimento e implantação"]
[{"$nulls":6},"Custo unitário total de material",null,null,"Principal","",null,"5213440","Placa de regulamentação em aço D = 0,60 m - película retrorrefletiva tipo I + SI - fornecimento e implantação"]
["D - ATIVIDADES AUXILIARES",null,"Quantidade","Unidade",null,"Custo Unitário","Custo Unitário",null,null,"Principal","",null,"5213440","Placa de regulamentação em aço D = 0,60 m - película retrorrefletiva tipo I + SI - fornecimento e implantação"]
["5213414","Placa em aço nº 16 galvanizado com película retrorrefletiva tipo I + SI - confecção",0.35993999999999998,"m²",{"$nulls":5},"Principal","",null,"5213440","Placa de regulamentação em aço D = 0,60 m - película retrorrefletiva tipo I + SI - fornecimento e implantação"]
[{"$nulls":6},"Custo total de atividades auxiliares",null,null,"Principal","",null,"5213440","Placa de regulamentação em aço D = 0,60 m - película retrorrefletiva tipo I + SI - fornecimento e implantação"]
[{"$nulls":6},"Subtotal",null,null,"Principal","",null,"5213440","Placa de regulamentação em aço D = 0,60 m - película retrorrefletiva tipo I + SI - fornecimento e implantação"]
["E - TEMPO FIXO",null,"Código","Quantidade","Unidade",null,"Custo Unitário","Custo Unitário",null,"Principal","",null,"5213440","Placa de regulamentação em aço D = 0,60 m - película retrorrefletiva tipo I + SI - fornecimento e implantação"]
[{"$nulls":6},"Custo unitário total de tempo fixo",null,null,"Principal","",null,"5213440","Placa de regulamentação em aço D = 0,60 m - película retrorrefletiva tipo I + SI - fornecimento e implantação"]
["F - MOMENTO DE TRANSPORTE",null,"Quantidade","Unidade","DMT",null,null,null,"Custo Unitário","Principal","",null,"5213440","Placa de regulamentação em aço D = 0,60 m - película retrorrefletiva tipo I + SI - fornecimento e implantação"]
[{"$nulls":4},"LN","RP","P",null,null,"Principal","",null,"5213440","Placa de regulamentação em aço D = 0,60 m - película retrorrefletiva tipo I + SI - fornecimento e implantação"]
[{"$nulls":6},"Custo unitário total de transporte",null,null,"Principal","",null,"5213440","Placa de regulamentação em aço D = 0,60 m - película retrorrefletiva tipo I + SI - fornecimento e implantação"]
[{"$nulls":4},"Custo unitário direto total",{"$nulls":4},"Principal","",null,"5213440","Placa de regulamentação em aço D = 0,60 m - película retrorrefletiva tipo I + SI - fornecimento e implantação"]
["CGCIT",{"$nulls":7},"DNIT","Principal","",null,"5213464","Placa de advertência em aço, lado de 0,60 m - película retrorrefletiva tipo I + SI - fornecimento e implantação"]
["SISTEMA DE CUSTOS REFERENCIAIS DE OBRAS - SICRO",null,null,"Goiás",{"$nulls":5},"Principal","",null,"5213464","Placa de advertência em aço, lado de 0,60 m - película retrorrefletiva tipo I + SI - fornecimento e implantação"]
["Custo Unitário de Referência",null,null,"Abril/2024",null,null,"Produção da equipe ",3,"un","Principal","",null,"5213464","Placa de advertência em aço, lado de 0,60 m - película retrorrefletiva tipo I + SI - fornecimento e implantação"]
["5213464","Placa de advertência em aço, lado de 0,60 m - película retrorrefletiva tipo I + SI - fornecimento e implantação",{"$nulls":5},"Valores em reais (R$)",null,"Principal","",null,"5213464","Placa de advertência em aço, lado de 0,60 m - película retrorrefletiva tipo I + SI - fornecimento e implantação"]
["A - EQUIPAMENTOS",null,"Quantidade","Utilização",null,"Custo Horário",null,null,"Custo","Principal","",null,"5213464","Placa de advertência em aço, lado de 0,60 m - película retrorrefletiva tipo I + SI - fornecimento e implantação"]
[null,null,null,"Operativa","Improdutiva","Produtivo","Improdutivo",null,"Horário Total","Principal","",null,"5213464","Placa de advertência em aço, lado de 0,60 m - película retrorrefletiva tipo I + SI - fornecimento e implantação"]
["E9687","Caminhão carroceria com capacidade de 5 t - 115 kW",1,0.3,0.7,{"$nulls":4},"Principal","E9687",null,"5213464","Placa de advertência em aço, lado de 0,60 m - película retrorrefletiva tipo I + SI - fornecimento e implantação"]
[{"$nulls":6},"Custo horário total de equipamentos",null,null,"Principal","",null,"5213464","Placa de advertência em aço, lado de 0,60 m - película retrorrefletiva tipo I + SI - fornecimento e implantação"]
["B - MÃO DE OBRA",null,"Quantidade","Unidade",null,"Custo Horário","Custo Horário Total",null,null,"Principal",{"$f":"IF(LEFT(A397,2)=\"E9\",A397,\"\")","v":""},null,"5213464","Placa de advertência em aço, lado de 0,60 m - película retrorrefletiva tipo I + SI - fornecimento e implantação"]
["P9830","Montador",1,"h",{"$nulls":5},"Principal","",null,"5213464","Placa de advertência em aço, lado de 0,60 m - película retrorrefletiva tipo I + SI - fornecimento e implantação"]
["P9824","Servente",2,"h",{"$nulls":5},"Principal","",null,"5213464","Placa de advertência em aço, lado de 0,60 m - película retrorrefletiva tipo I + SI - fornecimento e implantação"]
[{"$nulls":6},"Custo horário total de mão de obra",null,null,"Principal","",null,"5213464","Placa de advertência em aço, lado de 0,60 m - película retrorrefletiva tipo I + SI - fornecimento e implantação"]
[{"$nulls":6},"Custo horário total de execução",null,null,"Principal","",null,"5213464","Placa de advertência em aço, lado de 0,60 m - película retrorrefletiva tipo I + SI - fornecimento e implantação"]
[{"$nulls":6},"Custo unitário de execução",null,null,"Principal","",null,"5213464","Placa de advertência em aço, lado de 0,60 m - película retrorrefletiva tipo I + SI - fornecimento e implantação"]
[{"$nulls":6},"Custo do FIC",null,null,"Principal","",null,"5213464","Placa de advertência em aço, lado de 0,60 m - película retrorrefletiva tipo I + SI - fornecimento e implantação"]
[{"$nulls":6},"Custo do FIT",null,null,"Principal","",null,"5213464","Placa de advertência em aço, lado de 0,60 m - película retrorrefletiva tipo I + SI - fornecimento e implantação"]
["C - MATERIAL",null,"Quantidade","Unidade",null,"Preço Unitário","Custo Unitário",null,null,"Principal","",null,"5213464","Placa de advertência em aço, lado de 0,60 m - película retrorrefletiva tipo I + SI - fornecimento e implantação"]
[{"$nulls":6},"Custo unitário total de material",null,null,"Principal","",null,"5213464","Placa de advertência em aço, lado de 0,60 m - película retrorrefletiva tipo I + SI - fornecimento e implantação"]
["D - ATIVIDADES AUXILIARES",null,"Quantidade","Unidade",null,"Custo Unitário","Custo Unitário",null,null,"Principal","",null,"5213464","Placa de advertência em aço, lado de 0,60 m - película retrorrefletiva tipo I + SI - fornecimento e implantação"]
["5213414","Placa em aço nº 16 galvanizado com película retrorrefletiva tipo I + SI - confecção",0.36,"m²",{"$nulls":5},"Principal","",null,"5213464","Placa de advertência em aço, lado de 0,60 m - película retrorrefletiva tipo I + SI - fornecimento e implantação"]
[{"$nulls":6},"Custo total de atividades auxiliares",null,null,"Principal","",null,"5213464","Placa de advertência em aço, lado de 0,60 m - película retrorrefletiva tipo I + SI - fornecimento e implantação"]
[{"$nulls":6},"Subtotal",null,null,"Principal","",null,"5213464","Placa de advertência em aço, lado de 0,60 m - película retrorrefletiva tipo I + SI - fornecimento e implantação"]
["E - TEMPO FIXO",null,"Código","Quantidade","Unidade",null,"Custo Unitário","Custo Unitário",null,"Principal","",null,"5213464","Placa de advertência em aço, lado de 0,60 m - película retrorrefletiva tipo I + SI - fornecimento e implantação"]
[{"$nulls":6},"Custo unitário total de tempo fixo",null,null,"Principal","",null,"5213464","Placa de advertência em aço, lado de 0,60 m - película retrorrefletiva tipo I + SI - fornecimento e implantação"]
["F - MOMENTO DE TRANSPORTE",null,"Quantidade","Unidade","DMT",null,null,null,"Custo Unitário","Principal","",null,"5213464","Placa de advertência em aço, lado de 0,60 m - película retrorrefletiva tipo I + SI - fornecimento e implantação"]
[{"$nulls":4},"LN","RP","P",null,null,"Principal","",null,"5213464","Placa de advertência em aço, lado de 0,60 m - película retrorrefletiva tipo I + SI - fornecimento e implantação"]
[{"$nulls":6},"Custo unitário total de transporte",null,null,"Principal","",null,"5213464","Placa de advertência em aço, lado de 0,60 m - película retrorrefletiva tipo I + SI - fornecimento e implantação"]
[{"$nulls":4},"Custo unitário direto total",{"$nulls":4},"Principal","",null,"5213464","Placa de advertência em aço, lado de 0,60 m - película retrorrefletiva tipo I + SI - fornecimento e implantação"]
["CGCIT",{"$nulls":7},"DNIT","Principal","",null,"5213863","Suporte metálico galvanizado para placa de advertência ou regulamentação - lado ou diâmetro de 0,60 m - fornecimento e implantação"]
["SISTEMA DE CUSTOS REFERENCIAIS DE OBRAS - SICRO",null,null,"Goiás",{"$nulls":5},"Principal","",null,"5213863","Suporte metálico galvanizado para placa de advertência ou regulamentação - lado ou diâmetro de 0,60 m - fornecimento e implantação"]
["Custo Unitário de Referência",null,null,"Abril/2024",null,null,"Produção da equipe ",4.0999999999999996,"un","Principal","",null,"5213863","Suporte metálico galvanizado para placa de advertência ou regulamentação - lado ou diâmetro de 0,60 m - fornecimento e implantação"]
["5213863","Suporte metálico galvanizado para placa de advertência ou regulamentação - lado ou diâmetro de 0,60 m - fornecimento e implantação",{"$nulls":5},"Valores em reais (R$)",null,"Principal","",null,"5213863","Suporte metálico galvanizado para placa de advertência ou regulamentação - lado ou diâmetro de 0,60 m - fornecimento e implantação"]
["A - EQUIPAMENTOS",null,"Quantidade","Utilização",null,"Custo Horário",null,null,"Custo","Principal","",null,"5213863","Suporte metálico galvanizado para placa de advertência ou regulamentação - lado ou diâmetro de 0,60 m - fornecimento e implantação"]
[null,null,null,"Operativa","Improdutiva","Produtivo","Improdutivo",null,"Horário Total","Principal","",null,"5213863","Suporte metálico galvanizado para placa de advertência ou regulamentação - lado ou diâmetro de 0,60 m - fornecimento e implantação"]
["E9687","Caminhão carroceria com capacidade de 5 t - 115 kW",1,0.3,0.7,{"$nulls":4},"Principal","E9687",null,"5213863","Suporte metálico galvanizado para placa de advertência ou regulamentação - lado ou diâmetro de 0,60 m - fornecimento e implantação"]
[{"$nulls":6},"Custo horário total de equipamentos",null,null,"Principal","",null,"5213863","Suporte metálico galvanizado para placa de advertência ou regulamentação - lado ou diâmetro de 0,60 m - fornecimento e implantação"]
["B - MÃO DE OBRA",null,"Quantidade","Unidade",null,"Custo Horário","Custo Horário Total",null,null,"Principal","",null,"5213863","Suporte metálico galvanizado para placa de advertência ou regulamentação - lado ou diâmetro de 0,60 m - fornecimento e implantação"]
["P9830","Montador",1,"h",{"$nulls":5},"Principal","",null,"5213863","Suporte metálico galvanizado para placa de advertência ou regulamentação - lado ou diâmetro de 0,60 m - fornecimento e implantação"]
["P9824","Servente",1,"h",{"$nulls":5},"Principal","",null,"5213863","Suporte metálico galvanizado para placa de advertência ou regulamentação - lado ou diâmetro de 0,60 m - fornecimento e implantação"]
[{"$nulls":6},"Custo horário total de mão de obra",null,null,"Principal","",null,"5213863","Suporte metálico galvanizado para placa de advertência ou regulamentação - lado ou diâmetro de 0,60 m - fornecimento e implantação"]
[{"$nulls":6},"Custo horário total de execução",null,null,"Principal","",null,"5213863","Suporte metálico galvanizado para placa de advertência ou regulamentação - lado ou diâmetro de 0,60 m - fornecimento e implantação"]
[{"$nulls":6},"Custo unitário de execução",null,null,"Principal","",null,"5213863","Suporte metálico galvanizado para placa de advertência ou regulamentação - lado ou diâmetro de 0,60 m - fornecimento e implantação"]
[{"$nulls":6},"Custo do FIC",null,null,"Principal","",null,"5213863","Suporte metálico galvanizado para placa de advertência ou regulamentação - lado ou diâmetro de 0,60 m - fornecimento e implantação"]
[{"$nulls":6},"Custo do FIT",null,null,"Principal","",null,"5213863","Suporte metálico galvanizado para placa de advertência ou regulamentação - lado ou diâmetro de 0,60 m - fornecimento e implantação"]
["C - MATERIAL",null,"Quantidade","Unidade",null,"Preço Unitário","Custo Unitário",null,null,"Principal","",null,"5213863","Suporte metálico galvanizado para placa de advertência ou regulamentação - lado ou diâmetro de 0,60 m - fornecimento e implantação"]
["M0789","Conjunto para fixação de placas em aço galvanizado composto por barra chata, abraçadeira, parafusos, porcas e arruelas",0.69699999999999995,"kg",{"$nulls":5},"Principal","",null,"5213863","Suporte metálico galvanizado para placa de advertência ou regulamentação - lado ou diâmetro de 0,60 m - fornecimento e implantação"]
["M0787","Suporte em aço-carbono galvanizado tipo perfil C para placa de sinalização",12.717000000000001,"kg",{"$nulls":5},"Principal","",null,"5213863","Suporte metálico galvanizado para placa de advertência ou regulamentação - lado ou diâmetro de 0,60 m - fornecimento e implantação"]
[{"$nulls":6},"Custo unitário total de material",null,null,"Principal","",null,"5213863","Suporte metálico galvanizado para placa de advertência ou regulamentação - lado ou diâmetro de 0,60 m - fornecimento e implantação"]
["D - ATIVIDADES AUXILIARES",null,"Quantidade","Unidade",null,"Custo Unitário","Custo Unitário",null,null,"Principal","",null,"5213863","Suporte metálico galvanizado para placa de advertência ou regulamentação - lado ou diâmetro de 0,60 m - fornecimento e implantação"]
["1107892","Concreto fck = 20 MPa - confecção em betoneira e lançamento manual - areia e brita comerciais",5.0270000000000002E-2,"m³",{"$nulls":5},"Principal","",null,"5213863","Suporte metálico galvanizado para placa de advertência ou regulamentação - lado ou diâmetro de 0,60 m - fornecimento e implantação"]
["4805750","Escavação manual em material de 1ª categoria na profundidade de até 1 m",5.0270000000000002E-2,"m³",{"$nulls":5},"Principal","",null,"5213863","Suporte metálico galvanizado para placa de advertência ou regulamentação - lado ou diâmetro de 0,60 m - fornecimento e implantação"]
[{"$nulls":6},"Custo total de atividades auxiliares",null,null,"Principal","",null,"5213863","Suporte metálico galvanizado para placa de advertência ou regulamentação - lado ou diâmetro de 0,60 m - fornecimento e implantação"]
[{"$nulls":6},"Subtotal",null,null,"Principal","",null,"5213863","Suporte metálico galvanizado para placa de advertência ou regulamentação - lado ou diâmetro de 0,60 m - fornecimento e implantação"]
["E - TEMPO FIXO",null,"Código","Quantidade","Unidade",null,"Custo Unitário","Custo Unitário",null,"Principal","",null,"5213863","Suporte metálico galvanizado para placa de advertência ou regulamentação - lado ou diâmetro de 0,60 m - fornecimento e implantação"]
["M0789","Conjunto para fixação de placas em aço galvanizado composto por barra chata, abraçadeira, parafusos, porcas e arruelas - Caminhão carroceria 15 t","5914655",6.9999999999999999E-4,"t",{"$nulls":4},"Principal","",null,"5213863","Suporte metálico galvanizado para placa de advertência ou regulamentação - lado ou diâmetro de 0,60 m - fornecimento e implantação"]
["M0787","Suporte em aço-carbono galvanizado tipo perfil C para placa de sinalização - Caminhão carroceria 15 t","5914655",1.272E-2,"t",{"$nulls":4},"Principal","",null,"5213863","Suporte metálico galvanizado para placa de advertência ou regulamentação - lado ou diâmetro de 0,60 m - fornecimento e implantação"]
[{"$nulls":6},"Custo unitário total de tempo fixo",null,null,"Principal","",null,"5213863","Suporte metálico galvanizado para placa de advertência ou regulamentação - lado ou diâmetro de 0,60 m - fornecimento e implantação"]
["F - MOMENTO DE TRANSPORTE",null,"Quantidade","Unidade","DMT",null,null,null,"Custo Unitário","Principal","",null,"5213863","Suporte metálico galvanizado para placa de advertência ou regulamentação - lado ou diâmetro de 0,60 m - fornecimento e implantação"]
[{"$nulls":4},"LN","RP","P",null,null,"Principal","",null,"5213863","Suporte metálico galvanizado para placa de advertência ou regulamentação - lado ou diâmetro de 0,60 m - fornecimento e implantação"]
["M0789","Conjunto para fixação de placas em aço galvanizado composto por barra chata, abraçadeira, parafusos, porcas e arruelas - Caminhão carroceria 15 t",6.9999999999999999E-4,"tkm","5914449","5914464","5914479",null,null,"Principal","",null,"5213863","Suporte metálico galvanizado para placa de advertência ou regulamentação - lado ou diâmetro de 0,60 m - fornecimento e implantação"]
["M0787","Suporte em aço-carbono galvanizado tipo perfil C para placa de sinalização - Caminhão carroceria 15 t",1.272E-2,"tkm","5914449","5914464","5914479",null,null,"Principal","",null,"5213863","Suporte metálico galvanizado para placa de advertência ou regulamentação - lado ou diâmetro de 0,60 m - fornecimento e implantação"]
[{"$nulls":6},"Custo unitário total de transporte",null,null,"Principal","",null,"5213863","Suporte metálico galvanizado para placa de advertência ou regulamentação - lado ou diâmetro de 0,60 m - fornecimento e implantação"]
[{"$nulls":4},"Custo unitário direto total",{"$nulls":4},"Principal","",null,"5213863","Suporte metálico galvanizado para placa de advertência ou regulamentação - lado ou diâmetro de 0,60 m - fornecimento e implantação"]
["CGCIT",{"$nulls":7},"DNIT","Principal","",null,"5502114","Escavação, carga e transporte de material de 1ª categoria - DMT de 1.000 a 1.200 m - caminho de serviço em leito natural - com escavadeira e caminhão basculante de 14 m³"]
["SISTEMA DE CUSTOS REFERENCIAIS DE OBRAS - SICRO",null,null,"Goiás",null,null,"FIC",2.725E-2,null,"Principal","",null,"5502114","Escavação, carga e transporte de material de 1ª categoria - DMT de 1.000 a 1.200 m - caminho de serviço em leito natural - com escavadeira e caminhão basculante de 14 m³"]
["Custo Unitário de Referência",null,null,"Abril/2024",null,null,"Produção da equipe ",230.19,"m³","Principal","",null,"5502114","Escavação, carga e transporte de material de 1ª categoria - DMT de 1.000 a 1.200 m - caminho de serviço em leito natural - com escavadeira e caminhão basculante de 14 m³"]
["5502114","Escavação, carga e transporte de material de 1ª categoria - DMT de 1.000 a 1.200 m - caminho de serviço em leito natural - com escavadeira e caminhão basculante de 14 m³",{"$nulls":5},"Valores em reais (R$)",null,"Principal","",null,"5502114","Escavação, carga e transporte de material de 1ª categoria - DMT de 1.000 a 1.200 m - caminho de serviço em leito natural - com escavadeira e caminhão basculante de 14 m³"]
["A - EQUIPAMENTOS",null,"Quantidade","Utilização",null,"Custo Horário",null,null,"Custo","Principal","",null,"5502114","Escavação, carga e transporte de material de 1ª categoria - DMT de 1.000 a 1.200 m - caminho de serviço em leito natural - com escavadeira e caminhão basculante de 14 m³"]
[null,null,null,"Operativa","Improdutiva","Produtivo","Improdutivo",null,"Horário Total","Principal","",null,"5502114","Escavação, carga e transporte de material de 1ª categoria - DMT de 1.000 a 1.200 m - caminho de serviço em leito natural - com escavadeira e caminhão basculante de 14 m³"]
["E9667","Caminhão basculante com capacidade de 14 m³ - 210 kW",5,0.96,0.04,{"$nulls":4},"Principal","E9667",5,"5502114","Escavação, carga e transporte de material de 1ª categoria - DMT de 1.000 a 1.200 m - caminho de serviço em leito natural - com escavadeira e caminhão basculante de 14 m³"]
["E9515","Escavadeira hidráulica sobre esteiras com caçamba com capacidade de 1,56 m³ - 118 kW",1,1,0,{"$nulls":4},"Principal","E9515",1,"5502114","Escavação, carga e transporte de material de 1ª categoria - DMT de 1.000 a 1.200 m - caminho de serviço em leito natural - com escavadeira e caminhão basculante de 14 m³"]
[{"$nulls":6},"Custo horário total de equipamentos",null,null,"Principal","",null,"5502114","Escavação, carga e transporte de material de 1ª categoria - DMT de 1.000 a 1.200 m - caminho de serviço em leito natural - com escavadeira e caminhão basculante de 14 m³"]
["B - MÃO DE OBRA",null,"Quantidade","Unidade",null,"Custo Horário","Custo Horário Total",null,null,"Principal",{"$f":"IF(LEFT(A461,2)=\"E9\",A461,\"\")","v":""},null,"5502114","Escavação, carga e transporte de material de 1ª categoria - DMT de 1.000 a 1.200 m - caminho de serviço em leito natural - com escavadeira e caminhão basculante de 14 m³"]
["P9824","Servente",1,"h",{"$nulls":5},"Principal","",null,"5502114","Escavação, carga e transporte de material de 1ª categoria - DMT de 1.000 a 1.200 m - caminho de serviço em leito natural - com escavadeira e caminhão basculante de 14 m³"]
[{"$nulls":6},"Custo horário total de mão de obra",null,null,"Principal","",null,"5502114","Escavação, carga e transporte de material de 1ª categoria - DMT de 1.000 a 1.200 m - caminho de serviço em leito natural - com escavadeira e caminhão basculante de 14 m³"]
[{"$nulls":6},"Custo horário total de execução",null,null,"Principal","",null,"5502114","Escavação, carga e transporte de material de 1ª categoria - DMT de 1.000 a 1.200 m - caminho de serviço em leito natural - com escavadeira e caminhão basculante de 14 m³"]
[{"$nulls":6},"Custo unitário de execução",null,null,"Principal","",null,"5502114","Escavação, carga e transporte de material de 1ª categoria - DMT de 1.000 a 1.200 m - caminho de serviço em leito natural - com escavadeira e caminhão basculante de 14 m³"]
[{"$nulls":6},"Custo do FIC",null,null,"Principal","",null,"5502114","Escavação, carga e transporte de material de 1ª categoria - DMT de 1.000 a 1.200 m - caminho de serviço em leito natural - com escavadeira e caminhão basculante de 14 m³"]
[{"$nulls":6},"Custo do FIT",null,null,"Principal","",null,"5502114","Escavação, carga e transporte de material de 1ª categoria - DMT de 1.000 a 1.200 m - caminho de serviço em leito natural - com escavadeira e caminhão basculante de 14 m³"]
["C - MATERIAL",null,"Quantidade","Unidade",null,"Preço Unitário","Custo Unitário",null,null,"Principal","",null,"5502114","Escavação, carga e transporte de material de 1ª categoria - DMT de 1.000 a 1.200 m - caminho de serviço em leito natural - com escavadeira e caminhão basculante de 14 m³"]
[{"$nulls":6},"Custo unitário total de material",null,null,"Principal","",null,"5502114","Escavação, carga e transporte de material de 1ª categoria - DMT de 1.000 a 1.200 m - caminho de serviço em leito natural - com escavadeira e caminhão basculante de 14 m³"]
["D - ATIVIDADES AUXILIARES",null,"Quantidade","Unidade",null,"Custo Unitário","Custo Unitário",null,null,"Principal","",null,"5502114","Escavação, carga e transporte de material de 1ª categoria - DMT de 1.000 a 1.200 m - caminho de serviço em leito natural - com escavadeira e caminhão basculante de 14 m³"]
[{"$nulls":6},"Custo total de atividades auxiliares",null,null,"Principal","",null,"5502114","Escavação, carga e transporte de material de 1ª categoria - DMT de 1.000 a 1.200 m - caminho de serviço em leito natural - com escavadeira e caminhão basculante de 14 m³"]
[{"$nulls":6},"Subtotal",null,null,"Principal","",null,"5502114","Escavação, carga e transporte de material de 1ª categoria - DMT de 1.000 a 1.200 m - caminho de serviço em leito natural - com escavadeira e caminhão basculante de 14 m³"]
["E - TEMPO FIXO",null,"Código","Quantidade","Unidade",null,"Custo Unitário","Custo Unitário",null,"Principal","",null,"5502114","Escavação, carga e transporte de material de 1ª categoria - DMT de 1.000 a 1.200 m - caminho de serviço em leito natural - com escavadeira e caminhão basculante de 14 m³"]
[{"$nulls":6},"Custo unitário total de tempo fixo",null,null,"Principal","",null,"5502114","Escavação, carga e transporte de material de 1ª categoria - DMT de 1.000 a 1.200 m - caminho de serviço em leito natural - com escavadeira e caminhão basculante de 14 m³"]
["F - MOMENTO DE TRANSPORTE",null,"Quantidade","Unidade","DMT",null,null,null,"Custo Unitário","Principal","",null,"5502114","Escavação, carga e transporte de material de 1ª categoria - DMT de 1.000 a 1.200 m - caminho de serviço em leito natural - com escavadeira e caminhão basculante de 14 m³"]
[{"$nulls":4},"LN","RP","P",null,null,"Principal","",null,"5502114","Escavação, carga e transporte de material de 1ª categoria - DMT de 1.000 a 1.200 m - caminho de serviço em leito natural - com escavadeira e caminhão basculante de 14 m³"]
[{"$nulls":6},"Custo unitário total de transporte",null,null,"Principal","",null,"5502114","Escavação, carga e transporte de material de 1ª categoria - DMT de 1.000 a 1.200 m - caminho de serviço em leito natural - com escavadeira e caminhão basculante de 14 m³"]
[{"$nulls":4},"Custo unitário direto total",{"$nulls":4},"Principal","",null,"5502114","Escavação, carga e transporte de material de 1ª categoria - DMT de 1.000 a 1.200 m - caminho de serviço em leito natural - com escavadeira e caminhão basculante de 14 m³"]
["CGCIT",{"$nulls":7},"DNIT"]
["SISTEMA DE CUSTOS REFERENCIAIS DE OBRAS - SICRO",null,null,"Goiás",null,null,"FIC",2.725E-2]
["Custo Unitário de Referência",null,null,"Abril/2024",null,null,"Produção da equipe ",149.4,"tkm"]
["5914314","Transporte com caminhão basculante de 6 m³ - rodovia em leito natural",{"$nulls":5},"Valores em reais (R$)"]
["A - EQUIPAMENTOS",null,"Quantidade","Utilização",null,"Custo Horário",null,null,"Custo"]
[null,null,null,"Operativa","Improdutiva","Produtivo","Improdutivo",null,"Horário Total"]
["E9506","Caminhão basculante com capacidade de 6 m³ - 136 kW",1,1,0]
[{"$nulls":6},"Custo horário total de equipamentos"]
["B - MÃO DE OBRA",null,"Quantidade","Unidade",null,"Custo Horário","Custo Horário Total"]
[null,null,"Custo horário total de mão de obra"]
[null,null,"Custo horário total de execução"]
[null,null,"Custo unitário de execução"]
[{"$nulls":6},"Custo do FIC"]
[{"$nulls":6},"Custo do FIT"]
["C - MATERIAL",null,"Quantidade","Unidade",null,"Preço Unitário","Custo Unitário"]
[null,null,"Custo unitário total de material"]
["D - ATIVIDADES AUXILIARES",null,"Quantidade","Unidade",null,"Custo Unitário","Custo Unitário"]
[null,null,"Custo total de atividades auxiliares"]
[{"$nulls":6},"Subtotal"]
["E - TEMPO FIXO",null,"Código","Quantidade","Unidade",null,"Custo Unitário","Custo Unitário"]
[null,null,"Custo unitário total de tempo fixo"]
["F - MOMENTO DE TRANSPORTE",null,"Quantidade","Unidade","DMT",null,null,null,"Custo Unitário"]
[{"$nulls":4},"LN","RP","P"]
[null,null,"Custo unitário total de transporte"]
[{"$nulls":4},"Custo unitário direto total"]
["CGCIT",{"$nulls":7},"DNIT"]
["SISTEMA DE CUSTOS REFERENCIAIS DE OBRAS - SICRO",null,null,"Goiás",null,null,"FIC",2.725E-2]
["Custo Unitário de Referência",null,null,"Abril/2024",null,null,"Produção da equipe ",186.75,"tkm"]
["5914329","Transporte com caminhão basculante de 6 m³ - rodovia em revestimento primário",{"$nulls":5},"Valores em reais (R$)"]
["A - EQUIPAMENTOS",null,"Quantidade","Utilização",null,"Custo Horário",null,null,"Custo"]
[null,null,null,"Operativa","Improdutiva","Produtivo","Improdutivo",null,"Horário Total"]
["E9506","Caminhão basculante com capacidade de 6 m³ - 136 kW",1,1,0]
[{"$nulls":6},"Custo horário total de equipamentos"]
["B - MÃO DE OBRA",null,"Quantidade","Unidade",null,"Custo Horário","Custo Horário Total"]
[null,null,"Custo horário total de mão de obra"]
[null,null,"Custo horário total de execução"]
[null,null,"Custo unitário de execução"]
[{"$nulls":6},"Custo do FIC"]
[{"$nulls":6},"Custo do FIT"]
["C - MATERIAL",null,"Quantidade","Unidade",null,"Preço Unitário","Custo Unitário"]
[null,null,"Custo unitário total de material"]
["D - ATIVIDADES AUXILIARES",null,"Quantidade","Unidade",null,"Custo Unitário","Custo Unitário"]
[null,null,"Custo total de atividades auxiliares"]
[{"$nulls":6},"Subtotal"]
["E - TEMPO FIXO",null,"Código","Quantidade","Unidade",null,"Custo Unitário","Custo Unitário"]
[null,null,"Custo unitário total de tempo fixo"]
["F - MOMENTO DE TRANSPORTE",null,"Quantidade","Unidade","DMT",null,null,null,"Custo Unitário"]
[{"$nulls":4},"LN","RP","P"]
[null,null,"Custo unitário total de transporte"]
[{"$nulls":4},"Custo unitário direto total"]
["CGCIT",{"$nulls":7},"DNIT"]
["SISTEMA DE CUSTOS REFERENCIAIS DE OBRAS - SICRO",null,null,"Goiás"]
["Custo Unitário de Referência",null,null,"Abril/2024",null,null,"Produção da equipe ",224.1,"tkm"]
["5914344","Transporte com caminhão basculante de 6 m³ - rodovia pavimentada",{"$nulls":5},"Valores em reais (R$)"]
["A - EQUIPAMENTOS",null,"Quantidade","Utilização",null,"Custo Horário",null,null,"Custo"]
[null,null,null,"Operativa","Improdutiva","Produtivo","Improdutivo",null,"Horário Total"]
["E9506","Caminhão basculante com capacidade de 6 m³ - 136 kW",1,1,0]
[{"$nulls":6},"Custo horário total de equipamentos"]
["B - MÃO DE OBRA",null,"Quantidade","Unidade",null,"Custo Horário","Custo Horário Total"]
[null,null,"Custo horário total de mão de obra"]
[null,null,"Custo horário total de execução"]
[null,null,"Custo unitário de execução"]
[{"$nulls":6},"Custo do FIC"]
[{"$nulls":6},"Custo do FIT"]
["C - MATERIAL",null,"Quantidade","Unidade",null,"Preço Unitário","Custo Unitário"]
[null,null,"Custo unitário total de material"]
["D - ATIVIDADES AUXILIARES",null,"Quantidade","Unidade",null,"Custo Unitário","Custo Unitário"]
[null,null,"Custo total de atividades auxiliares"]
[{"$nulls":6},"Subtotal"]
["E - TEMPO FIXO",null,"Código","Quantidade","Unidade",null,"Custo Unitário","Custo Unitário"]
[null,null,"Custo unitário total de tempo fixo"]
["F - MOMENTO DE TRANSPORTE",null,"Quantidade","Unidade","DMT",null,null,null,"Custo Unitário"]
[{"$nulls":4},"LN","RP","P"]
[null,null,"Custo unitário total de transporte"]
[{"$nulls":4},"Custo unitário direto total"]
["CGCIT",{"$nulls":7},"DNIT","Principal","",null,"5914359","Transporte com caminhão basculante de 10 m³ - rodovia em leito natural"]
["SISTEMA DE CUSTOS REFERENCIAIS DE OBRAS - SICRO",null,null,"Goiás",null,null,"FIC",2.725E-2,null,"Principal","",null,"5914359","Transporte com caminhão basculante de 10 m³ - rodovia em leito natural"]
["Custo Unitário de Referência",null,null,"Abril/2024",null,null,"Produção da equipe ",249,"tkm","Principal","",null,"5914359","Transporte com caminhão basculante de 10 m³ - rodovia em leito natural"]
["5914359","Transporte com caminhão basculante de 10 m³ - rodovia em leito natural",{"$nulls":5},"Valores em reais (R$)",null,"Principal","",null,"5914359","Transporte com caminhão basculante de 10 m³ - rodovia em leito natural"]
["A - EQUIPAMENTOS",null,"Quantidade","Utilização",null,"Custo Horário",null,null,"Custo","Principal","",null,"5914359","Transporte com caminhão basculante de 10 m³ - rodovia em leito natural"]
[null,null,null,"Operativa","Improdutiva","Produtivo","Improdutivo",null,"Horário Total","Principal","",null,"5914359","Transporte com caminhão basculante de 10 m³ - rodovia em leito natural"]
["E9579","Caminhão basculante com capacidade de 10 m³ - 210 kW",1,1,0,{"$nulls":4},"Principal","E9579",1,"5914359","Transporte com caminhão basculante de 10 m³ - rodovia em leito natural"]
[{"$nulls":6},"Custo horário total de equipamentos",null,null,"Principal","",null,"5914359","Transporte com caminhão basculante de 10 m³ - rodovia em leito natural"]
["B - MÃO DE OBRA",null,"Quantidade","Unidade",null,"Custo Horário","Custo Horário Total",null,null,"Principal","",null,"5914359","Transporte com caminhão basculante de 10 m³ - rodovia em leito natural"]
[{"$nulls":6},"Custo horário total de mão de obra",null,null,"Principal","",null,"5914359","Transporte com caminhão basculante de 10 m³ - rodovia em leito natural"]
[{"$nulls":6},"Custo horário total de execução",null,null,"Principal","",null,"5914359","Transporte com caminhão basculante de 10 m³ - rodovia em leito natural"]
[{"$nulls":6},"Custo unitário de execução",null,null,"Principal","",null,"5914359","Transporte com caminhão basculante de 10 m³ - rodovia em leito natural"]
[{"$nulls":6},"Custo do FIC",null,null,"Principal","",null,"5914359","Transporte com caminhão basculante de 10 m³ - rodovia em leito natural"]
[{"$nulls":6},"Custo do FIT",null,null,"Principal","",null,"5914359","Transporte com caminhão basculante de 10 m³ - rodovia em leito natural"]
["C - MATERIAL",null,"Quantidade","Unidade",null,"Preço Unitário","Custo Unitário",null,null,"Principal","",null,"5914359","Transporte com caminhão basculante de 10 m³ - rodovia em leito natural"]
[{"$nulls":6},"Custo unitário total de material",null,null,"Principal","",null,"5914359","Transporte com caminhão basculante de 10 m³ - rodovia em leito natural"]
["D - ATIVIDADES AUXILIARES",null,"Quantidade","Unidade",null,"Custo Unitário","Custo Unitário",null,null,"Principal","",null,"5914359","Transporte com caminhão basculante de 10 m³ - rodovia em leito natural"]
[{"$nulls":6},"Custo total de atividades auxiliares",null,null,"Principal","",null,"5914359","Transporte com caminhão basculante de 10 m³ - rodovia em leito natural"]
[{"$nulls":6},"Subtotal",null,null,"Principal","",null,"5914359","Transporte com caminhão basculante de 10 m³ - rodovia em leito natural"]
["E - TEMPO FIXO",null,"Código","Quantidade","Unidade",null,"Custo Unitário","Custo Unitário",null,"Principal","",null,"5914359","Transporte com caminhão basculante de 10 m³ - rodovia em leito natural"]
[{"$nulls":6},"Custo unitário total de tempo fixo",null,null,"Principal","",null,"5914359","Transporte com caminhão basculante de 10 m³ - rodovia em leito natural"]
["F - MOMENTO DE TRANSPORTE",null,"Quantidade","Unidade","DMT",null,null,null,"Custo Unitário","Principal","",null,"5914359","Transporte com caminhão basculante de 10 m³ - rodovia em leito natural"]
[{"$nulls":4},"LN","RP","P",null,null,"Principal","",null,"5914359","Transporte com caminhão basculante de 10 m³ - rodovia em leito natural"]
[{"$nulls":6},"Custo unitário total de transporte",null,null,"Principal","",null,"5914359","Transporte com caminhão basculante de 10 m³ - rodovia em leito natural"]
[{"$nulls":4},"Custo unitário direto total",{"$nulls":4},"Principal","",null,"5914359","Transporte com caminhão basculante de 10 m³ - rodovia em leito natural"]
["CGCIT",{"$nulls":7},"DNIT","Principal","",null,"5914364","Transporte de cimento ou cal hidratada a granel com caminhão silo de 30 m³ - rodovia em leito natural"]
["SISTEMA DE CUSTOS REFERENCIAIS DE OBRAS - SICRO",null,null,"Goiás",null,null,"FIC",2.725E-2,null,"Principal","",null,"5914364","Transporte de cimento ou cal hidratada a granel com caminhão silo de 30 m³ - rodovia em leito natural"]
["Custo Unitário de Referência",null,null,"Abril/2024",null,null,"Produção da equipe ",522.9,"tkm","Principal","",null,"5914364","Transporte de cimento ou cal hidratada a granel com caminhão silo de 30 m³ - rodovia em leito natural"]
["5914364","Transporte de cimento ou cal hidratada a granel com caminhão silo de 30 m³ - rodovia em leito natural",{"$nulls":5},"Valores em reais (R$)",null,"Principal","",null,"5914364","Transporte de cimento ou cal hidratada a granel com caminhão silo de 30 m³ - rodovia em leito natural"]
["A - EQUIPAMENTOS",null,"Quantidade","Utilização",null,"Custo Horário",null,null,"Custo","Principal","",null,"5914364","Transporte de cimento ou cal hidratada a granel com caminhão silo de 30 m³ - rodovia em leito natural"]
[null,null,null,"Operativa","Improdutiva","Produtivo","Improdutivo",null,"Horário Total","Principal","",null,"5914364","Transporte de cimento ou cal hidratada a granel com caminhão silo de 30 m³ - rodovia em leito natural"]
["E9146","Caminhão silo com capacidade de 30 m³ - 265 kW",1,1,0,{"$nulls":4},"Principal","E9146",1,"5914364","Transporte de cimento ou cal hidratada a granel com caminhão silo de 30 m³ - rodovia em leito natural"]
[{"$nulls":6},"Custo horário total de equipamentos",null,null,"Principal","",null,"5914364","Transporte de cimento ou cal hidratada a granel com caminhão silo de 30 m³ - rodovia em leito natural"]
["B - MÃO DE OBRA",null,"Quantidade","Unidade",null,"Custo Horário","Custo Horário Total",null,null,"Principal","",null,"5914364","Transporte de cimento ou cal hidratada a granel com caminhão silo de 30 m³ - rodovia em leito natural"]
[{"$nulls":6},"Custo horário total de mão de obra",null,null,"Principal","",null,"5914364","Transporte de cimento ou cal hidratada a granel com caminhão silo de 30 m³ - rodovia em leito natural"]
[{"$nulls":6},"Custo horário total de execução",null,null,"Principal","",null,"5914364","Transporte de cimento ou cal hidratada a granel com caminhão silo de 30 m³ - rodovia em leito natural"]
[{"$nulls":6},"Custo unitário de execução",null,null,"Principal","",null,"5914364","Transporte de cimento ou cal hidratada a granel com caminhão silo de 30 m³ - rodovia em leito natural"]
[{"$nulls":6},"Custo do FIC",null,null,"Principal","",null,"5914364","Transporte de cimento ou cal hidratada a granel com caminhão silo de 30 m³ - rodovia em leito natural"]
[{"$nulls":6},"Custo do FIT",null,null,"Principal","",null,"5914364","Transporte de cimento ou cal hidratada a granel com caminhão silo de 30 m³ - rodovia em leito natural"]
["C - MATERIAL",null,"Quantidade","Unidade",null,"Preço Unitário","Custo Unitário",null,null,"Principal","",null,"5914364","Transporte de cimento ou cal hidratada a granel com caminhão silo de 30 m³ - rodovia em leito natural"]
[{"$nulls":6},"Custo unitário total de material",null,null,"Principal","",null,"5914364","Transporte de cimento ou cal hidratada a granel com caminhão silo de 30 m³ - rodovia em leito natural"]
["D - ATIVIDADES AUXILIARES",null,"Quantidade","Unidade",null,"Custo Unitário","Custo Unitário",null,null,"Principal","",null,"5914364","Transporte de cimento ou cal hidratada a granel com caminhão silo de 30 m³ - rodovia em leito natural"]
[{"$nulls":6},"Custo total de atividades auxiliares",null,null,"Principal","",null,"5914364","Transporte de cimento ou cal hidratada a granel com caminhão silo de 30 m³ - rodovia em leito natural"]
[{"$nulls":6},"Subtotal",null,null,"Principal","",null,"5914364","Transporte de cimento ou cal hidratada a granel com caminhão silo de 30 m³ - rodovia em leito natural"]
["E - TEMPO FIXO",null,"Código","Quantidade","Unidade",null,"Custo Unitário","Custo Unitário",null,"Principal","",null,"5914364","Transporte de cimento ou cal hidratada a granel com caminhão silo de 30 m³ - rodovia em leito natural"]
[{"$nulls":6},"Custo unitário total de tempo fixo",null,null,"Principal","",null,"5914364","Transporte de cimento ou cal hidratada a granel com caminhão silo de 30 m³ - rodovia em leito natural"]
["F - MOMENTO DE TRANSPORTE",null,"Quantidade","Unidade","DMT",null,null,null,"Custo Unitário","Principal",{"$f":"IF(LEFT(A600,2)=\"E9\",A600,\"\")","v":""},null,"5914364","Transporte de cimento ou cal hidratada a granel com caminhão silo de 30 m³ - rodovia em leito natural"]
[{"$nulls":4},"LN","RP","P",null,null,"Principal","",null,"5914364","Transporte de cimento ou cal hidratada a granel com caminhão silo de 30 m³ - rodovia em leito natural"]
[{"$nulls":6},"Custo unitário total de transporte",null,null,"Principal","",null,"5914364","Transporte de cimento ou cal hidratada a granel com caminhão silo de 30 m³ - rodovia em leito natural"]
[{"$nulls":4},"Custo unitário direto total",{"$nulls":4},"Principal","",null,"5914364","Transporte de cimento ou cal hidratada a granel com caminhão silo de 30 m³ - rodovia em leito natural"]
["CGCIT",{"$nulls":7},"DNIT","Principal","",null,"5914365","Transporte de cimento ou cal hidratada a granel com caminhão silo de 30 m³ - rodovia em revestimento primário"]
["SISTEMA DE CUSTOS REFERENCIAIS DE OBRAS - SICRO",null,null,"Goiás",null,null,"FIC",2.725E-2,null,"Principal","",null,"5914365","Transporte de cimento ou cal hidratada a granel com caminhão silo de 30 m³ - rodovia em revestimento primário"]
["Custo Unitário de Referência",null,null,"Abril/2024",null,null,"Produção da equipe ",653.63,"tkm","Principal","",null,"5914365","Transporte de cimento ou cal hidratada a granel com caminhão silo de 30 m³ - rodovia em revestimento primário"]
["5914365","Transporte de cimento ou cal hidratada a granel com caminhão silo de 30 m³ - rodovia em revestimento primário",{"$nulls":5},"Valores em reais (R$)",null,"Principal","",null,"5914365","Transporte de cimento ou cal hidratada a granel com caminhão silo de 30 m³ - rodovia em revestimento primário"]
["A - EQUIPAMENTOS",null,"Quantidade","Utilização",null,"Custo Horário",null,null,"Custo","Principal","",null,"5914365","Transporte de cimento ou cal hidratada a granel com caminhão silo de 30 m³ - rodovia em revestimento primário"]
[null,null,null,"Operativa","Improdutiva","Produtivo","Improdutivo",null,"Horário Total","Principal","",null,"5914365","Transporte de cimento ou cal hidratada a granel com caminhão silo de 30 m³ - rodovia em revestimento primário"]
["E9146","Caminhão silo com capacidade de 30 m³ - 265 kW",1,1,0,{"$nulls":4},"Principal","E9146",null,"5914365","Transporte de cimento ou cal hidratada a granel com caminhão silo de 30 m³ - rodovia em revestimento primário"]
[{"$nulls":6},"Custo horário total de equipamentos",null,null,"Principal","",null,"5914365","Transporte de cimento ou cal hidratada a granel com caminhão silo de 30 m³ - rodovia em revestimento primário"]
["B - MÃO DE OBRA",null,"Quantidade","Unidade",null,"Custo Horário","Custo Horário Total",null,null,"Principal","",null,"5914365","Transporte de cimento ou cal hidratada a granel com caminhão silo de 30 m³ - rodovia em revestimento primário"]
[{"$nulls":6},"Custo horário total de mão de obra",null,null,"Principal","",null,"5914365","Transporte de cimento ou cal hidratada a granel com caminhão silo de 30 m³ - rodovia em revestimento primário"]
[{"$nulls":6},"Custo horário total de execução",null,null,"Principal","",null,"5914365","Transporte de cimento ou cal hidratada a granel com caminhão silo de 30 m³ - rodovia em revestimento primário"]
[{"$nulls":6},"Custo unitário de execução",null,null,"Principal","",null,"5914365","Transporte de cimento ou cal hidratada a granel com caminhão silo de 30 m³ - rodovia em revestimento primário"]
[{"$nulls":6},"Custo do FIC",null,null,"Principal","",null,"5914365","Transporte de cimento ou cal hidratada a granel com caminhão silo de 30 m³ - rodovia em revestimento primário"]
[{"$nulls":6},"Custo do FIT",null,null,"Principal","",null,"5914365","Transporte de cimento ou cal hidratada a granel com caminhão silo de 30 m³ - rodovia em revestimento primário"]
["C - MATERIAL",null,"Quantidade","Unidade",null,"Preço Unitário","Custo Unitário",null,null,"Principal","",null,"5914365","Transporte de cimento ou cal hidratada a granel com caminhão silo de 30 m³ - rodovia em revestimento primário"]
[{"$nulls":6},"Custo unitário total de material",null,null,"Principal","",null,"5914365","Transporte de cimento ou cal hidratada a granel com caminhão silo de 30 m³ - rodovia em revestimento primário"]
["D - ATIVIDADES AUXILIARES",null,"Quantidade","Unidade",null,"Custo Unitário","Custo Unitário",null,null,"Principal","",null,"5914365","Transporte de cimento ou cal hidratada a granel com caminhão silo de 30 m³ - rodovia em revestimento primário"]
[{"$nulls":6},"Custo total de atividades auxiliares",null,null,"Principal","",null,"5914365","Transporte de cimento ou cal hidratada a granel com caminhão silo de 30 m³ - rodovia em revestimento primário"]
[{"$nulls":6},"Subtotal",null,null,"Principal","",null,"5914365","Transporte de cimento ou cal hidratada a granel com caminhão silo de 30 m³ - rodovia em revestimento primário"]
["E - TEMPO FIXO",null,"Código","Quantidade","Unidade",null,"Custo Unitário","Custo Unitário",null,"Principal","",null,"5914365","Transporte de cimento ou cal hidratada a granel com caminhão silo de 30 m³ - rodovia em revestimento primário"]
[{"$nulls":6},"Custo unitário total de tempo fixo",null,null,"Principal","",null,"5914365","Transporte de cimento ou cal hidratada a granel com caminhão silo de 30 m³ - rodovia em revestimento primário"]
["F - MOMENTO DE TRANSPORTE",null,"Quantidade","Unidade","DMT",null,null,null,"Custo Unitário","Principal","",null,"5914365","Transporte de cimento ou cal hidratada a granel com caminhão silo de 30 m³ - rodovia em revestimento primário"]
[{"$nulls":4},"LN","RP","P",null,null,"Principal","",null,"5914365","Transporte de cimento ou cal hidratada a granel com caminhão silo de 30 m³ - rodovia em revestimento primário"]
[{"$nulls":6},"Custo unitário total de transporte",null,null,"Principal","",null,"5914365","Transporte de cimento ou cal hidratada a granel com caminhão silo de 30 m³ - rodovia em revestimento primário"]
[{"$nulls":4},"Custo unitário direto total",{"$nulls":4},"Principal","",null,"5914365","Transporte de cimento ou cal hidratada a granel com caminhão silo de 30 m³ - rodovia em revestimento primário"]
[{"$nulls":9},"Principal","",null,"5914365","Transporte de cimento ou cal hidratada a granel com caminhão silo de 30 m³ - rodovia em revestimento primário"]
["CGCIT",{"$nulls":7},"DNIT","Principal","",null,"5914366","Transporte de cimento ou cal hidratada a granel com caminhão silo de 30 m³ - rodovia pavimentada"]
["SISTEMA DE CUSTOS REFERENCIAIS DE OBRAS - SICRO",null,null,"Goiás",{"$nulls":5},"Principal","",null,"5914366","Transporte de cimento ou cal hidratada a granel com caminhão silo de 30 m³ - rodovia pavimentada"]
["Custo Unitário de Referência",null,null,"Abril/2024",null,null,"Produção da equipe ",784.35,"tkm","Principal","",null,"5914366","Transporte de cimento ou cal hidratada a granel com caminhão silo de 30 m³ - rodovia pavimentada"]
["5914366","Transporte de cimento ou cal hidratada a granel com caminhão silo de 30 m³ - rodovia pavimentada",{"$nulls":5},"Valores em reais (R$)",null,"Principal","",null,"5914366","Transporte de cimento ou cal hidratada a granel com caminhão silo de 30 m³ - rodovia pavimentada"]
["A - EQUIPAMENTOS",null,"Quantidade","Utilização",null,"Custo Horário",null,null,"Custo","Principal","",null,"5914366","Transporte de cimento ou cal hidratada a granel com caminhão silo de 30 m³ - rodovia pavimentada"]
[null,null,null,"Operativa","Improdutiva","Produtivo","Improdutivo",null,"Horário Total","Principal","",null,"5914366","Transporte de cimento ou cal hidratada a granel com caminhão silo de 30 m³ - rodovia pavimentada"]
["E9146","Caminhão silo com capacidade de 30 m³ - 265 kW",1,1,0,{"$nulls":4},"Principal","E9146",null,"5914366","Transporte de cimento ou cal hidratada a granel com caminhão silo de 30 m³ - rodovia pavimentada"]
[{"$nulls":6},"Custo horário total de equipamentos",null,null,"Principal","",null,"5914366","Transporte de cimento ou cal hidratada a granel com caminhão silo de 30 m³ - rodovia pavimentada"]
["B - MÃO DE OBRA",null,"Quantidade","Unidade",null,"Custo Horário","Custo Horário Total",null,null,"Principal","",null,"5914366","Transporte de cimento ou cal hidratada a granel com caminhão silo de 30 m³ - rodovia pavimentada"]
[{"$nulls":6},"Custo horário total de mão de obra",null,null,"Principal","",null,"5914366","Transporte de cimento ou cal hidratada a granel com caminhão silo de 30 m³ - rodovia pavimentada"]
[{"$nulls":6},"Custo horário total de execução",null,null,"Principal","",null,"5914366","Transporte de cimento ou cal hidratada a granel com caminhão silo de 30 m³ - rodovia pavimentada"]
[{"$nulls":6},"Custo unitário de execução",null,null,"Principal","",null,"5914366","Transporte de cimento ou cal hidratada a granel com caminhão silo de 30 m³ - rodovia pavimentada"]
[{"$nulls":6},"Custo do FIC",null,null,"Principal","",null,"5914366","Transporte de cimento ou cal hidratada a granel com caminhão silo de 30 m³ - rodovia pavimentada"]
[{"$nulls":6},"Custo do FIT",null,null,"Principal","",null,"5914366","Transporte de cimento ou cal hidratada a granel com caminhão silo de 30 m³ - rodovia pavimentada"]
["C - MATERIAL",null,"Quantidade","Unidade",null,"Preço Unitário","Custo Unitário",null,null,"Principal","",null,"5914366","Transporte de cimento ou cal hidratada a granel com caminhão silo de 30 m³ - rodovia pavimentada"]
[{"$nulls":6},"Custo unitário total de material",null,null,"Principal","",null,"5914366","Transporte de cimento ou cal hidratada a granel com caminhão silo de 30 m³ - rodovia pavimentada"]
["D - ATIVIDADES AUXILIARES",null,"Quantidade","Unidade",null,"Custo Unitário","Custo Unitário",null,null,"Principal","",null,"5914366","Transporte de cimento ou cal hidratada a granel com caminhão silo de 30 m³ - rodovia pavimentada"]
[{"$nulls":6},"Custo total de atividades auxiliares",null,null,"Principal","",null,"5914366","Transporte de cimento ou cal hidratada a granel com caminhão silo de 30 m³ - rodovia pavimentada"]
[{"$nulls":6},"Subtotal",null,null,"Principal","",null,"5914366","Transporte de cimento ou cal hidratada a granel com caminhão silo de 30 m³ - rodovia pavimentada"]
["E - TEMPO FIXO",null,"Código","Quantidade","Unidade",null,"Custo Unitário","Custo Unitário",null,"Principal","",null,"5914366","Transporte de cimento ou cal hidratada a granel com caminhão silo de 30 m³ - rodovia pavimentada"]
[{"$nulls":6},"Custo unitário total de tempo fixo",null,null,"Principal","",null,"5914366","Transporte de cimento ou cal hidratada a granel com caminhão silo de 30 m³ - rodovia pavimentada"]
["F - MOMENTO DE TRANSPORTE",null,"Quantidade","Unidade","DMT",null,null,null,"Custo Unitário","Principal","",null,"5914366","Transporte de cimento ou cal hidratada a granel com caminhão silo de 30 m³ - rodovia pavimentada"]
[{"$nulls":4},"LN","RP","P",null,null,"Principal","",null,"5914366","Transporte de cimento ou cal hidratada a granel com caminhão silo de 30 m³ - rodovia pavimentada"]
[{"$nulls":6},"Custo unitário total de transporte",null,null,"Principal","",null,"5914366","Transporte de cimento ou cal hidratada a granel com caminhão silo de 30 m³ - rodovia pavimentada"]
[{"$nulls":4},"Custo unitário direto total",{"$nulls":4},"Principal","",null,"5914366","Transporte de cimento ou cal hidratada a granel com caminhão silo de 30 m³ - rodovia pavimentada"]
["CGCIT",{"$nulls":7},"DNIT","Principal","",null,"5914374","Transporte com caminhão basculante de 10 m³ - rodovia em revestimento primário"]
["SISTEMA DE CUSTOS REFERENCIAIS DE OBRAS - SICRO",null,null,"Goiás",null,null,"FIC",2.725E-2,null,"Principal","",null,"5914374","Transporte com caminhão basculante de 10 m³ - rodovia em revestimento primário"]
["Custo Unitário de Referência",null,null,"Abril/2024",null,null,"Produção da equipe ",311.25,"tkm","Principal","",null,"5914374","Transporte com caminhão basculante de 10 m³ - rodovia em revestimento primário"]
["5914374","Transporte com caminhão basculante de 10 m³ - rodovia em revestimento primário",{"$nulls":5},"Valores em reais (R$)",null,"Principal","",null,"5914374","Transporte com caminhão basculante de 10 m³ - rodovia em revestimento primário"]
["A - EQUIPAMENTOS",null,"Quantidade","Utilização",null,"Custo Horário",null,null,"Custo","Principal","",null,"5914374","Transporte com caminhão basculante de 10 m³ - rodovia em revestimento primário"]
[null,null,null,"Operativa","Improdutiva","Produtivo","Improdutivo",null,"Horário Total","Principal","",null,"5914374","Transporte com caminhão basculante de 10 m³ - rodovia em revestimento primário"]
["E9579","Caminhão basculante com capacidade de 10 m³ - 210 kW",1,1,0,{"$nulls":4},"Principal","E9579",null,"5914374","Transporte com caminhão basculante de 10 m³ - rodovia em revestimento primário"]
[{"$nulls":6},"Custo horário total de equipamentos",null,null,"Principal","",null,"5914374","Transporte com caminhão basculante de 10 m³ - rodovia em revestimento primário"]
["B - MÃO DE OBRA",null,"Quantidade","Unidade",null,"Custo Horário","Custo Horário Total",null,null,"Principal","",null,"5914374","Transporte com caminhão basculante de 10 m³ - rodovia em revestimento primário"]
[{"$nulls":6},"Custo horário total de mão de obra",null,null,"Principal",{"$f":"IF(LEFT(A664,2)=\"E9\",A664,\"\")","v":""},null,"5914374","Transporte com caminhão basculante de 10 m³ - rodovia em revestimento primário"]
[{"$nulls":6},"Custo horário total de execução",null,null,"Principal","",null,"5914374","Transporte com caminhão basculante de 10 m³ - rodovia em revestimento primário"]
[{"$nulls":6},"Custo unitário de execução",null,null,"Principal","",null,"5914374","Transporte com caminhão basculante de 10 m³ - rodovia em revestimento primário"]
[{"$nulls":6},"Custo do FIC",null,null,"Principal","",null,"5914374","Transporte com caminhão basculante de 10 m³ - rodovia em revestimento primário"]
[{"$nulls":6},"Custo do FIT",null,null,"Principal","",null,"5914374","Transporte com caminhão basculante de 10 m³ - rodovia em revestimento primário"]
["C - MATERIAL",null,"Quantidade","Unidade",null,"Preço Unitário","Custo Unitário",null,null,"Principal","",null,"5914374","Transporte com caminhão basculante de 10 m³ - rodovia em revestimento primário"]
[{"$nulls":6},"Custo unitário total de material",null,null,"Principal","",null,"5914374","Transporte com caminhão basculante de 10 m³ - rodovia em revestimento primário"]
["D - ATIVIDADES AUXILIARES",null,"Quantidade","Unidade",null,"Custo Unitário","Custo Unitário",null,null,"Principal","",null,"5914374","Transporte com caminhão basculante de 10 m³ - rodovia em revestimento primário"]
[{"$nulls":6},"Custo total de atividades auxiliares",null,null,"Principal","",null,"5914374","Transporte com caminhão basculante de 10 m³ - rodovia em revestimento primário"]
[{"$nulls":6},"Subtotal",null,null,"Principal","",null,"5914374","Transporte com caminhão basculante de 10 m³ - rodovia em revestimento primário"]
["E - TEMPO FIXO",null,"Código","Quantidade","Unidade",null,"Custo Unitário","Custo Unitário",null,"Principal","",null,"5914374","Transporte com caminhão basculante de 10 m³ - rodovia em revestimento primário"]
[{"$nulls":6},"Custo unitário total de tempo fixo",null,null,"Principal","",null,"5914374","Transporte com caminhão basculante de 10 m³ - rodovia em revestimento primário"]
["F - MOMENTO DE TRANSPORTE",null,"Quantidade","Unidade","DMT",null,null,null,"Custo Unitário","Principal","",null,"5914374","Transporte com caminhão basculante de 10 m³ - rodovia em revestimento primário"]
[{"$nulls":4},"LN","RP","P",null,null,"Principal","",null,"5914374","Transporte com caminhão basculante de 10 m³ - rodovia em revestimento primário"]
[{"$nulls":6},"Custo unitário total de transporte",null,null,"Principal","",null,"5914374","Transporte com caminhão basculante de 10 m³ - rodovia em revestimento primário"]
[{"$nulls":4},"Custo unitário direto total",{"$nulls":4},"Principal","",null,"5914374","Transporte com caminhão basculante de 10 m³ - rodovia em revestimento primário"]
["CGCIT",{"$nulls":7},"DNIT","Principal","",null,"5914389","Transporte com caminhão basculante de 10 m³ - rodovia pavimentada"]
["SISTEMA DE CUSTOS REFERENCIAIS DE OBRAS - SICRO",null,null,"Goiás",{"$nulls":5},"Principal","",null,"5914389","Transporte com caminhão basculante de 10 m³ - rodovia pavimentada"]
["Custo Unitário de Referência",null,null,"Abril/2024",null,null,"Produção da equipe ",373.5,"tkm","Principal","",null,"5914389","Transporte com caminhão basculante de 10 m³ - rodovia pavimentada"]
["5914389","Transporte com caminhão basculante de 10 m³ - rodovia pavimentada",{"$nulls":5},"Valores em reais (R$)",null,"Principal","",null,"5914389","Transporte com caminhão basculante de 10 m³ - rodovia pavimentada"]
["A - EQUIPAMENTOS",null,"Quantidade","Utilização",null,"Custo Horário",null,null,"Custo","Principal","",null,"5914389","Transporte com caminhão basculante de 10 m³ - rodovia pavimentada"]
[null,null,null,"Operativa","Improdutiva","Produtivo","Improdutivo",null,"Horário Total","Principal","",null,"5914389","Transporte com caminhão basculante de 10 m³ - rodovia pavimentada"]
["E9579","Caminhão basculante com capacidade de 10 m³ - 210 kW",1,1,0,{"$nulls":4},"Principal","E9579",null,"5914389","Transporte com caminhão basculante de 10 m³ - rodovia pavimentada"]
[{"$nulls":6},"Custo horário total de equipamentos",null,null,"Principal","",null,"5914389","Transporte com caminhão basculante de 10 m³ - rodovia pavimentada"]
["B - MÃO DE OBRA",null,"Quantidade","Unidade",null,"Custo Horário","Custo Horário Total",null,null,"Principal","",null,"5914389","Transporte com caminhão basculante de 10 m³ - rodovia pavimentada"]
[{"$nulls":6},"Custo horário total de mão de obra",null,null,"Principal","",null,"5914389","Transporte com caminhão basculante de 10 m³ - rodovia pavimentada"]
[{"$nulls":6},"Custo horário total de execução",null,null,"Principal","",null,"5914389","Transporte com caminhão basculante de 10 m³ - rodovia pavimentada"]
[{"$nulls":6},"Custo unitário de execução",null,null,"Principal","",null,"5914389","Transporte com caminhão basculante de 10 m³ - rodovia pavimentada"]
[{"$nulls":6},"Custo do FIC",null,null,"Principal","",null,"5914389","Transporte com caminhão basculante de 10 m³ - rodovia pavimentada"]
[{"$nulls":6},"Custo do FIT",null,null,"Principal","",null,"5914389","Transporte com caminhão basculante de 10 m³ - rodovia pavimentada"]
["C - MATERIAL",null,"Quantidade","Unidade",null,"Preço Unitário","Custo Unitário",null,null,"Principal","",null,"5914389","Transporte com caminhão basculante de 10 m³ - rodovia pavimentada"]
[{"$nulls":6},"Custo unitário total de material",null,null,"Principal","",null,"5914389","Transporte com caminhão basculante de 10 m³ - rodovia pavimentada"]
["D - ATIVIDADES AUXILIARES",null,"Quantidade","Unidade",null,"Custo Unitário","Custo Unitário",null,null,"Principal","",null,"5914389","Transporte com caminhão basculante de 10 m³ - rodovia pavimentada"]
[{"$nulls":6},"Custo total de atividades auxiliares",null,null,"Principal","",null,"5914389","Transporte com caminhão basculante de 10 m³ - rodovia pavimentada"]
[{"$nulls":6},"Subtotal",null,null,"Principal","",null,"5914389","Transporte com caminhão basculante de 10 m³ - rodovia pavimentada"]
["E - TEMPO FIXO",null,"Código","Quantidade","Unidade",null,"Custo Unitário","Custo Unitário",null,"Principal","",null,"5914389","Transporte com caminhão basculante de 10 m³ - rodovia pavimentada"]
[{"$nulls":6},"Custo unitário total de tempo fixo",null,null,"Principal","",null,"5914389","Transporte com caminhão basculante de 10 m³ - rodovia pavimentada"]
["F - MOMENTO DE TRANSPORTE",null,"Quantidade","Unidade","DMT",null,null,null,"Custo Unitário","Principal","",null,"5914389","Transporte com caminhão basculante de 10 m³ - rodovia pavimentada"]
[{"$nulls":4},"LN","RP","P",null,null,"Principal","",null,"5914389","Transporte com caminhão basculante de 10 m³ - rodovia pavimentada"]
[{"$nulls":6},"Custo unitário total de transporte",null,null,"Principal","",null,"5914389","Transporte com caminhão basculante de 10 m³ - rodovia pavimentada"]
[{"$nulls":4},"Custo unitário direto total",{"$nulls":4},"Principal","",null,"5914389","Transporte com caminhão basculante de 10 m³ - rodovia pavimentada"]
["CGCIT",{"$nulls":7},"DNIT","Principal","",null,"5914449","Transporte com caminhão carroceria de 15 t - rodovia em leito natural"]
["SISTEMA DE CUSTOS REFERENCIAIS DE OBRAS - SICRO",null,null,"Goiás",null,null,"FIC",2.725E-2,null,"Principal","",null,"5914449","Transporte com caminhão carroceria de 15 t - rodovia em leito natural"]
["Custo Unitário de Referência",null,null,"Abril/2024",null,null,"Produção da equipe ",248.59,"tkm","Principal","",null,"5914449","Transporte com caminhão carroceria de 15 t - rodovia em leito natural"]
["5914449","Transporte com caminhão carroceria de 15 t - rodovia em leito natural",{"$nulls":5},"Valores em reais (R$)",null,"Principal","",null,"5914449","Transporte com caminhão carroceria de 15 t - rodovia em leito natural"]
["A - EQUIPAMENTOS",null,"Quantidade","Utilização",null,"Custo Horário",null,null,"Custo","Principal","",null,"5914449","Transporte com caminhão carroceria de 15 t - rodovia em leito natural"]
[null,null,null,"Operativa","Improdutiva","Produtivo","Improdutivo",null,"Horário Total","Principal","",null,"5914449","Transporte com caminhão carroceria de 15 t - rodovia em leito natural"]
["E9592","Caminhão carroceria com capacidade de 15 t - 188 kW",1,1,0,{"$nulls":4},"Principal","E9592",1,"5914449","Transporte com caminhão carroceria de 15 t - rodovia em leito natural"]
[{"$nulls":6},"Custo horário total de equipamentos",null,null,"Principal","",null,"5914449","Transporte com caminhão carroceria de 15 t - rodovia em leito natural"]
["B - MÃO DE OBRA",null,"Quantidade","Unidade",null,"Custo Horário","Custo Horário Total",null,null,"Principal","",null,"5914449","Transporte com caminhão carroceria de 15 t - rodovia em leito natural"]
[{"$nulls":6},"Custo horário total de mão de obra",null,null,"Principal","",null,"5914449","Transporte com caminhão carroceria de 15 t - rodovia em leito natural"]
[{"$nulls":6},"Custo horário total de execução",null,null,"Principal","",null,"5914449","Transporte com caminhão carroceria de 15 t - rodovia em leito natural"]
[{"$nulls":6},"Custo unitário de execução",null,null,"Principal","",null,"5914449","Transporte com caminhão carroceria de 15 t - rodovia em leito natural"]
[{"$nulls":6},"Custo do FIC",null,null,"Principal","",null,"5914449","Transporte com caminhão carroceria de 15 t - rodovia em leito natural"]
[{"$nulls":6},"Custo do FIT",null,null,"Principal","",null,"5914449","Transporte com caminhão carroceria de 15 t - rodovia em leito natural"]
["C - MATERIAL",null,"Quantidade","Unidade",null,"Preço Unitário","Custo Unitário",null,null,"Principal","",null,"5914449","Transporte com caminhão carroceria de 15 t - rodovia em leito natural"]
[{"$nulls":6},"Custo unitário total de material",null,null,"Principal","",null,"5914449","Transporte com caminhão carroceria de 15 t - rodovia em leito natural"]
["D - ATIVIDADES AUXILIARES",null,"Quantidade","Unidade",null,"Custo Unitário","Custo Unitário",null,null,"Principal","",null,"5914449","Transporte com caminhão carroceria de 15 t - rodovia em leito natural"]
[{"$nulls":6},"Custo total de atividades auxiliares",null,null,"Principal","",null,"5914449","Transporte com caminhão carroceria de 15 t - rodovia em leito natural"]
[{"$nulls":6},"Subtotal",null,null,"Principal","",null,"5914449","Transporte com caminhão carroceria de 15 t - rodovia em leito natural"]
["E - TEMPO FIXO",null,"Código","Quantidade","Unidade",null,"Custo Unitário","Custo Unitário",null,"Principal","",null,"5914449","Transporte com caminhão carroceria de 15 t - rodovia em leito natural"]
[{"$nulls":6},"Custo unitário total de tempo fixo",null,null,"Principal","",null,"5914449","Transporte com caminhão carroceria de 15 t - rodovia em leito natural"]
["F - MOMENTO DE TRANSPORTE",null,"Quantidade","Unidade","DMT",null,null,null,"Custo Unitário","Principal","",null,"5914449","Transporte com caminhão carroceria de 15 t - rodovia em leito natural"]
[{"$nulls":4},"LN","RP","P",null,null,"Principal","",null,"5914449","Transporte com caminhão carroceria de 15 t - rodovia em leito natural"]
[{"$nulls":6},"Custo unitário total de transporte",null,null,"Principal",{"$f":"IF(LEFT(A728,2)=\"E9\",A728,\"\")","v":""},null,"5914449","Transporte com caminhão carroceria de 15 t - rodovia em leito natural"]
[{"$nulls":4},"Custo unitário direto total",{"$nulls":4},"Principal","",null,"5914449","Transporte com caminhão carroceria de 15 t - rodovia em leito natural"]
["CGCIT",{"$nulls":7},"DNIT","Principal","",null,"5914464","Transporte com caminhão carroceria de 15 t - rodovia em revestimento primário"]
["SISTEMA DE CUSTOS REFERENCIAIS DE OBRAS - SICRO",null,null,"Goiás",null,null,"FIC",2.725E-2,null,"Principal","",null,"5914464","Transporte com caminhão carroceria de 15 t - rodovia em revestimento primário"]
["Custo Unitário de Referência",null,null,"Abril/2024",null,null,"Produção da equipe ",310.73,"tkm","Principal","",null,"5914464","Transporte com caminhão carroceria de 15 t - rodovia em revestimento primário"]
["5914464","Transporte com caminhão carroceria de 15 t - rodovia em revestimento primário",{"$nulls":5},"Valores em reais (R$)",null,"Principal","",null,"5914464","Transporte com caminhão carroceria de 15 t - rodovia em revestimento primário"]
["A - EQUIPAMENTOS",null,"Quantidade","Utilização",null,"Custo Horário",null,null,"Custo","Principal","",null,"5914464","Transporte com caminhão carroceria de 15 t - rodovia em revestimento primário"]
[null,null,null,"Operativa","Improdutiva","Produtivo","Improdutivo",null,"Horário Total","Principal","",null,"5914464","Transporte com caminhão carroceria de 15 t - rodovia em revestimento primário"]
["E9592","Caminhão carroceria com capacidade de 15 t - 188 kW",1,1,0,{"$nulls":4},"Principal","E9592",null,"5914464","Transporte com caminhão carroceria de 15 t - rodovia em revestimento primário"]
[{"$nulls":6},"Custo horário total de equipamentos",null,null,"Principal","",null,"5914464","Transporte com caminhão carroceria de 15 t - rodovia em revestimento primário"]
["B - MÃO DE OBRA",null,"Quantidade","Unidade",null,"Custo Horário","Custo Horário Total",null,null,"Principal","",null,"5914464","Transporte com caminhão carroceria de 15 t - rodovia em revestimento primário"]
[{"$nulls":6},"Custo horário total de mão de obra",null,null,"Principal","",null,"5914464","Transporte com caminhão carroceria de 15 t - rodovia em revestimento primário"]
[{"$nulls":6},"Custo horário total de execução",null,null,"Principal","",null,"5914464","Transporte com caminhão carroceria de 15 t - rodovia em revestimento primário"]
[{"$nulls":6},"Custo unitário de execução",null,null,"Principal","",null,"5914464","Transporte com caminhão carroceria de 15 t - rodovia em revestimento primário"]
[{"$nulls":6},"Custo do FIC",null,null,"Principal","",null,"5914464","Transporte com caminhão carroceria de 15 t - rodovia em revestimento primário"]
[{"$nulls":6},"Custo do FIT",null,null,"Principal","",null,"5914464","Transporte com caminhão carroceria de 15 t - rodovia em revestimento primário"]
["C - MATERIAL",null,"Quantidade","Unidade",null,"Preço Unitário","Custo Unitário",null,null,"Principal","",null,"5914464","Transporte com caminhão carroceria de 15 t - rodovia em revestimento primário"]
[{"$nulls":6},"Custo unitário total de material",null,null,"Principal","",null,"5914464","Transporte com caminhão carroceria de 15 t - rodovia em revestimento primário"]
["D - ATIVIDADES AUXILIARES",null,"Quantidade","Unidade",null,"Custo Unitário","Custo Unitário",null,null,"Principal","",null,"5914464","Transporte com caminhão carroceria de 15 t - rodovia em revestimento primário"]
[{"$nulls":6},"Custo total de atividades auxiliares",null,null,"Principal","",null,"5914464","Transporte com caminhão carroceria de 15 t - rodovia em revestimento primário"]
[{"$nulls":6},"Subtotal",null,null,"Principal","",null,"5914464","Transporte com caminhão carroceria de 15 t - rodovia em revestimento primário"]
["E - TEMPO FIXO",null,"Código","Quantidade","Unidade",null,"Custo Unitário","Custo Unitário",null,"Principal","",null,"5914464","Transporte com caminhão carroceria de 15 t - rodovia em revestimento primário"]
[{"$nulls":6},"Custo unitário total de tempo fixo",null,null,"Principal","",null,"5914464","Transporte com caminhão carroceria de 15 t - rodovia em revestimento primário"]
["F - MOMENTO DE TRANSPORTE",null,"Quantidade","Unidade","DMT",null,null,null,"Custo Unitário","Principal","",null,"5914464","Transporte com caminhão carroceria de 15 t - rodovia em revestimento primário"]
[{"$nulls":4},"LN","RP","P",null,null,"Principal","",null,"5914464","Transporte com caminhão carroceria de 15 t - rodovia em revestimento primário"]
[{"$nulls":6},"Custo unitário total de transporte",null,null,"Principal","",null,"5914464","Transporte com caminhão carroceria de 15 t - rodovia em revestimento primário"]
[{"$nulls":4},"Custo unitário direto total",{"$nulls":4},"Principal","",null,"5914464","Transporte com caminhão carroceria de 15 t - rodovia em revestimento primário"]
[{"$nulls":9},"Principal","",null,"5914464","Transporte com caminhão carroceria de 15 t - rodovia em revestimento primário"]
["CGCIT",{"$nulls":7},"DNIT","Principal","",null,"5914479","Transporte com caminhão carroceria de 15 t - rodovia pavimentada"]
["SISTEMA DE CUSTOS REFERENCIAIS DE OBRAS - SICRO",null,null,"Goiás",{"$nulls":5},"Principal","",null,"5914479","Transporte com caminhão carroceria de 15 t - rodovia pavimentada"]
["Custo Unitário de Referência",null,null,"Abril/2024",null,null,"Produção da equipe ",372.88,"tkm","Principal","",null,"5914479","Transporte com caminhão carroceria de 15 t - rodovia pavimentada"]
["5914479","Transporte com caminhão carroceria de 15 t - rodovia pavimentada",{"$nulls":5},"Valores em reais (R$)",null,"Principal","",null,"5914479","Transporte com caminhão carroceria de 15 t - rodovia pavimentada"]
["A - EQUIPAMENTOS",null,"Quantidade","Utilização",null,"Custo Horário",null,null,"Custo","Principal","",null,"5914479","Transporte com caminhão carroceria de 15 t - rodovia pavimentada"]
[null,null,null,"Operativa","Improdutiva","Produtivo","Improdutivo",null,"Horário Total","Principal","",null,"5914479","Transporte com caminhão carroceria de 15 t - rodovia pavimentada"]
["E9592","Caminhão carroceria com capacidade de 15 t - 188 kW",1,1,0,{"$nulls":4},"Principal","E9592",null,"5914479","Transporte com caminhão carroceria de 15 t - rodovia pavimentada"]
[{"$nulls":6},"Custo horário total de equipamentos",null,null,"Principal","",null,"5914479","Transporte com caminhão carroceria de 15 t - rodovia pavimentada"]
["B - MÃO DE OBRA",null,"Quantidade","Unidade",null,"Custo Horário","Custo Horário Total",null,null,"Principal","",null,"5914479","Transporte com caminhão carroceria de 15 t - rodovia pavimentada"]
[{"$nulls":6},"Custo horário total de mão de obra",null,null,"Principal","",null,"5914479","Transporte com caminhão carroceria de 15 t - rodovia pavimentada"]
[{"$nulls":6},"Custo horário total de execução",null,null,"Principal","",null,"5914479","Transporte com caminhão carroceria de 15 t - rodovia pavimentada"]
[{"$nulls":6},"Custo unitário de execução",null,null,"Principal","",null,"5914479","Transporte com caminhão carroceria de 15 t - rodovia pavimentada"]
[{"$nulls":6},"Custo do FIC",null,null,"Principal","",null,"5914479","Transporte com caminhão carroceria de 15 t - rodovia pavimentada"]
[{"$nulls":6},"Custo do FIT",null,null,"Principal","",null,"5914479","Transporte com caminhão carroceria de 15 t - rodovia pavimentada"]
["C - MATERIAL",null,"Quantidade","Unidade",null,"Preço Unitário","Custo Unitário",null,null,"Principal","",null,"5914479","Transporte com caminhão carroceria de 15 t - rodovia pavimentada"]
[{"$nulls":6},"Custo unitário total de material",null,null,"Principal","",null,"5914479","Transporte com caminhão carroceria de 15 t - rodovia pavimentada"]
["D - ATIVIDADES AUXILIARES",null,"Quantidade","Unidade",null,"Custo Unitário","Custo Unitário",null,null,"Principal","",null,"5914479","Transporte com caminhão carroceria de 15 t - rodovia pavimentada"]
[{"$nulls":6},"Custo total de atividades auxiliares",null,null,"Principal","",null,"5914479","Transporte com caminhão carroceria de 15 t - rodovia pavimentada"]
[{"$nulls":6},"Subtotal",null,null,"Principal","",null,"5914479","Transporte com caminhão carroceria de 15 t - rodovia pavimentada"]
["E - TEMPO FIXO",null,"Código","Quantidade","Unidade",null,"Custo Unitário","Custo Unitário",null,"Principal","",null,"5914479","Transporte com caminhão carroceria de 15 t - rodovia pavimentada"]
[{"$nulls":6},"Custo unitário total de tempo fixo",null,null,"Principal","",null,"5914479","Transporte com caminhão carroceria de 15 t - rodovia pavimentada"]
["F - MOMENTO DE TRANSPORTE",null,"Quantidade","Unidade","DMT",null,null,null,"Custo Unitário","Principal","",null,"5914479","Transporte com caminhão carroceria de 15 t - rodovia pavimentada"]
[{"$nulls":4},"LN","RP","P",null,null,"Principal","",null,"5914479","Transporte com caminhão carroceria de 15 t - rodovia pavimentada"]
[{"$nulls":6},"Custo unitário total de transporte",null,null,"Principal","",null,"5914479","Transporte com caminhão carroceria de 15 t - rodovia pavimentada"]
[{"$nulls":4},"Custo unitário direto total",{"$nulls":4},"Principal","",null,"5914479","Transporte com caminhão carroceria de 15 t - rodovia pavimentada"]
["CGCIT",{"$nulls":7},"DNIT","Auxiliar","",null,"1107892","Concreto fck = 20 MPa - confecção em betoneira e lançamento manual - areia e brita comerciais"]
["SISTEMA DE CUSTOS REFERENCIAIS DE OBRAS - SICRO",null,null,"Goiás",{"$nulls":5},"Auxiliar","",null,"1107892","Concreto fck = 20 MPa - confecção em betoneira e lançamento manual - areia e brita comerciais"]
["Custo Unitário de Referência",null,null,"Abril/2024",null,null,"Produção da equipe ",3.9289900000000002,"m³","Auxiliar","",null,"1107892","Concreto fck = 20 MPa - confecção em betoneira e lançamento manual - areia e brita comerciais"]
["1107892","Concreto fck = 20 MPa - confecção em betoneira e lançamento manual - areia e brita comerciais",{"$nulls":5},"Valores em reais (R$)",null,"Auxiliar","",null,"1107892","Concreto fck = 20 MPa - confecção em betoneira e lançamento manual - areia e brita comerciais"]
["A - EQUIPAMENTOS",null,"Quantidade","Utilização",null,"Custo Horário",null,null,"Custo","Auxiliar","",null,"1107892","Concreto fck = 20 MPa - confecção em betoneira e lançamento manual - areia e brita comerciais"]
[null,null,null,"Operativa","Improdutiva","Produtivo","Improdutivo",null,"Horário Total","Auxiliar","",null,"1107892","Concreto fck = 20 MPa - confecção em betoneira e lançamento manual - areia e brita comerciais"]
["E9010","Balança plataforma digital à bateria, com mesa de 75 x 75 cm e capacidade de 500 kg",1,1,0,{"$nulls":4},"Auxiliar","E9010",1,"1107892","Concreto fck = 20 MPa - confecção em betoneira e lançamento manual - areia e brita comerciais"]
["E9519","Betoneira com motor a gasolina com capacidade de 600 l - 10 kW",1,1,0,{"$nulls":4},"Auxiliar","E9519",1,"1107892","Concreto fck = 20 MPa - confecção em betoneira e lançamento manual - areia e brita comerciais"]
["E9071","Transportador manual carrinho de mão com capacidade de 80 l",4,0.9,0.1,{"$nulls":4},"Auxiliar","E9071",4,"1107892","Concreto fck = 20 MPa - confecção em betoneira e lançamento manual - areia e brita comerciais"]
["E9064","Transportador manual gerica com capacidade de 180 l",3,0.41,0.59,{"$nulls":4},"Auxiliar","E9064",3,"1107892","Concreto fck = 20 MPa - confecção em betoneira e lançamento manual - areia e brita comerciais"]
[{"$nulls":6},"Custo horário total de equipamentos",null,null,"Auxiliar","",null,"1107892","Concreto fck = 20 MPa - confecção em betoneira e lançamento manual - areia e brita comerciais"]
["B - MÃO DE OBRA",null,"Quantidade","Unidade",null,"Custo Horário","Custo Horário Total",null,null,"Auxiliar",{"$f":"IF(LEFT(A792,2)=\"E9\",A792,\"\")","v":""},null,"1107892","Concreto fck = 20 MPa - confecção em betoneira e lançamento manual - areia e brita comerciais"]
["P9821","Pedreiro",1,"h",{"$nulls":5},"Auxiliar","",null,"1107892","Concreto fck = 20 MPa - confecção em betoneira e lançamento manual - areia e brita comerciais"]
["P9824","Servente",9,"h",{"$nulls":5},"Auxiliar","",null,"1107892","Concreto fck = 20 MPa - confecção em betoneira e lançamento manual - areia e brita comerciais"]
[{"$nulls":6},"Custo horário total de mão de obra",null,null,"Auxiliar","",null,"1107892","Concreto fck = 20 MPa - confecção em betoneira e lançamento manual - areia e brita comerciais"]
[{"$nulls":6},"Custo horário total de execução",null,null,"Auxiliar","",null,"1107892","Concreto fck = 20 MPa - confecção em betoneira e lançamento manual - areia e brita comerciais"]
[{"$nulls":6},"Custo unitário de execução",null,null,"Auxiliar","",null,"1107892","Concreto fck = 20 MPa - confecção em betoneira e lançamento manual - areia e brita comerciais"]
[{"$nulls":6},"Custo do FIC",null,null,"Auxiliar","",null,"1107892","Concreto fck = 20 MPa - confecção em betoneira e lançamento manual - areia e brita comerciais"]
[{"$nulls":6},"Custo do FIT",null,null,"Auxiliar","",null,"1107892","Concreto fck = 20 MPa - confecção em betoneira e lançamento manual - areia e brita comerciais"]
["C - MATERIAL",null,"Quantidade","Unidade",null,"Preço Unitário","Custo Unitário",null,null,"Auxiliar","",null,"1107892","Concreto fck = 20 MPa - confecção em betoneira e lançamento manual - areia e brita comerciais"]
["M0030","Aditivo plastificante e retardador de pega para concreto e argamassa",0.84645999999999999,"kg",{"$nulls":5},"Auxiliar","",null,"1107892","Concreto fck = 20 MPa - confecção em betoneira e lançamento manual - areia e brita comerciais"]
["M0082","Areia média lavada",0.63334000000000001,"m³",{"$nulls":5},"Auxiliar","",null,"1107892","Concreto fck = 20 MPa - confecção em betoneira e lançamento manual - areia e brita comerciais"]
["M0191","Brita 1",0.36753999999999998,"m³",{"$nulls":5},"Auxiliar","",null,"1107892","Concreto fck = 20 MPa - confecção em betoneira e lançamento manual - areia e brita comerciais"]
["M0192","Brita 2",0.36753999999999998,"m³",{"$nulls":5},"Auxiliar","",null,"1107892","Concreto fck = 20 MPa - confecção em betoneira e lançamento manual - areia e brita comerciais"]
["M0424","Cimento Portland CP II - 32 - saco",282.15206999999998,"kg",{"$nulls":5},"Auxiliar","",null,"1107892","Concreto fck = 20 MPa - confecção em betoneira e lançamento manual - areia e brita comerciais"]
[{"$nulls":6},"Custo unitário total de material",null,null,"Auxiliar","",null,"1107892","Concreto fck = 20 MPa - confecção em betoneira e lançamento manual - areia e brita comerciais"]
["D - ATIVIDADES AUXILIARES",null,"Quantidade","Unidade",null,"Custo Unitário","Custo Unitário",null,null,"Auxiliar","",null,"1107892","Concreto fck = 20 MPa - confecção em betoneira e lançamento manual - areia e brita comerciais"]
[{"$nulls":6},"Custo total de atividades auxiliares",null,null,"Auxiliar","",null,"1107892","Concreto fck = 20 MPa - confecção em betoneira e lançamento manual - areia e brita comerciais"]
[{"$nulls":6},"Subtotal",null,null,"Auxiliar","",null,"1107892","Concreto fck = 20 MPa - confecção em betoneira e lançamento manual - areia e brita comerciais"]
["E - TEMPO FIXO",null,"Código","Quantidade","Unidade",null,"Custo Unitário","Custo Unitário",null,"Auxiliar","",null,"1107892","Concreto fck = 20 MPa - confecção em betoneira e lançamento manual - areia e brita comerciais"]
["M0030","Aditivo plastificante e retardador de pega para concreto e argamassa - Caminhão carroceria 15 t","5914655",8.4999999999999995E-4,"t",{"$nulls":4},"Auxiliar","",null,"1107892","Concreto fck = 20 MPa - confecção em betoneira e lançamento manual - areia e brita comerciais"]
["M0082","Areia média lavada - Caminhão basculante 10 m³","5914647",0.95001000000000002,"t",{"$nulls":4},"Auxiliar","",null,"1107892","Concreto fck = 20 MPa - confecção em betoneira e lançamento manual - areia e brita comerciais"]
["M0191","Brita 1 - Caminhão basculante 10 m³","5914647",0.55130999999999997,"t",{"$nulls":4},"Auxiliar","",null,"1107892","Concreto fck = 20 MPa - confecção em betoneira e lançamento manual - areia e brita comerciais"]
["M0192","Brita 2 - Caminhão basculante 10 m³","5914647",0.55130999999999997,"t",{"$nulls":4},"Auxiliar","",null,"1107892","Concreto fck = 20 MPa - confecção em betoneira e lançamento manual - areia e brita comerciais"]
["M0424","Cimento Portland CP II - 32 - saco - Caminhão carroceria 15 t","5914655",0.28215000000000001,"t",{"$nulls":4},"Auxiliar","",null,"1107892","Concreto fck = 20 MPa - confecção em betoneira e lançamento manual - areia e brita comerciais"]
[{"$nulls":6},"Custo unitário total de tempo fixo",null,null,"Auxiliar","",null,"1107892","Concreto fck = 20 MPa - confecção em betoneira e lançamento manual - areia e brita comerciais"]
["F - MOMENTO DE TRANSPORTE",null,"Quantidade","Unidade","DMT",null,null,null,"Custo Unitário","Auxiliar","",null,"1107892","Concreto fck = 20 MPa - confecção em betoneira e lançamento manual - areia e brita comerciais"]
[{"$nulls":4},"LN","RP","P",null,null,"Auxiliar","",null,"1107892","Concreto fck = 20 MPa - confecção em betoneira e lançamento manual - areia e brita comerciais"]
["M0030","Aditivo plastificante e retardador de pega para concreto e argamassa - Caminhão carroceria 15 t",8.4999999999999995E-4,"tkm","5914449","5914464","5914479",null,null,"Auxiliar","",null,"1107892","Concreto fck = 20 MPa - confecção em betoneira e lançamento manual - areia e brita comerciais"]
["M0082","Areia média lavada - Caminhão basculante 10 m³",0.95001000000000002,"tkm","5914359","5914374","5914389",null,null,"Auxiliar","",null,"1107892","Concreto fck = 20 MPa - confecção em betoneira e lançamento manual - areia e brita comerciais"]
["M0191","Brita 1 - Caminhão basculante 10 m³",0.55130999999999997,"tkm","5914359","5914374","5914389",null,null,"Auxiliar","",null,"1107892","Concreto fck = 20 MPa - confecção em betoneira e lançamento manual - areia e brita comerciais"]
["M0192","Brita 2 - Caminhão basculante 10 m³",0.55130999999999997,"tkm","5914359","5914374","5914389",null,null,"Auxiliar","",null,"1107892","Concreto fck = 20 MPa - confecção em betoneira e lançamento manual - areia e brita comerciais"]
["M0424","Cimento Portland CP II - 32 - saco - Caminhão carroceria 15 t",0.28215000000000001,"tkm","5914449","5914464","5914479",null,null,"Auxiliar","",null,"1107892","Concreto fck = 20 MPa - confecção em betoneira e lançamento manual - areia e brita comerciais"]
[{"$nulls":6},"Custo unitário total de transporte",null,null,"Auxiliar","",null,"1107892","Concreto fck = 20 MPa - confecção em betoneira e lançamento manual - areia e brita comerciais"]
[{"$nulls":6},"Custo unitário direto total",null,null,"Auxiliar","",null,"1107892","Concreto fck = 20 MPa - confecção em betoneira e lançamento manual - areia e brita comerciais"]
["CGCIT",{"$nulls":7},"DNIT","Auxiliar","",null,2003842,"Enchimento de junta de concreto com argamassa asfáltica de densidade 1.700 kg/m³ - espessura de 1 cm"]
["SISTEMA DE CUSTOS REFERENCIAIS DE OBRAS - SICRO",null,null,"Goiás",{"$nulls":5},"Auxiliar","",null,2003842,"Enchimento de junta de concreto com argamassa asfáltica de densidade 1.700 kg/m³ - espessura de 1 cm"]
["Custo Unitário de Referência",null,null,"Abril/2024",null,null,"Produção da equipe ",1,"kg","Auxiliar","",null,2003842,"Enchimento de junta de concreto com argamassa asfáltica de densidade 1.700 kg/m³ - espessura de 1 cm"]
[2003842,"Enchimento de junta de concreto com argamassa asfáltica de densidade 1.700 kg/m³ - espessura de 1 cm",{"$nulls":5},"Valores em reais (R$)",null,"Auxiliar","",null,2003842,"Enchimento de junta de concreto com argamassa asfáltica de densidade 1.700 kg/m³ - espessura de 1 cm"]
["A - EQUIPAMENTOS",null,"Quantidade","Utilização",null,"Custo Horário",null,null,"Custo","Auxiliar","",null,2003842,"Enchimento de junta de concreto com argamassa asfáltica de densidade 1.700 kg/m³ - espessura de 1 cm"]
[null,null,null,"Operativa","Improdutiva","Produtivo","Improdutivo",null,"Horário Total","Auxiliar","",null,2003842,"Enchimento de junta de concreto com argamassa asfáltica de densidade 1.700 kg/m³ - espessura de 1 cm"]
[{"$nulls":6},"Custo horário total de equipamentos",null,null,"Auxiliar","",null,2003842,"Enchimento de junta de concreto com argamassa asfáltica de densidade 1.700 kg/m³ - espessura de 1 cm"]
["B - MÃO DE OBRA",null,"Quantidade","Unidade",null,"Custo Horário","Custo Horário Total",null,null,"Auxiliar","",null,2003842,"Enchimento de junta de concreto com argamassa asfáltica de densidade 1.700 kg/m³ - espessura de 1 cm"]
["P9824","Servente",2,"h",{"$nulls":5},"Auxiliar","",null,2003842,"Enchimento de junta de concreto com argamassa asfáltica de densidade 1.700 kg/m³ - espessura de 1 cm"]
[{"$nulls":6},"Custo horário total de mão de obra",null,null,"Auxiliar","",null,2003842,"Enchimento de junta de concreto com argamassa asfáltica de densidade 1.700 kg/m³ - espessura de 1 cm"]
[{"$nulls":6},"Custo horário total de execução",null,null,"Auxiliar","",null,2003842,"Enchimento de junta de concreto com argamassa asfáltica de densidade 1.700 kg/m³ - espessura de 1 cm"]
[{"$nulls":6},"Custo unitário de execução",null,null,"Auxiliar","",null,2003842,"Enchimento de junta de concreto com argamassa asfáltica de densidade 1.700 kg/m³ - espessura de 1 cm"]
[{"$nulls":6},"Custo do FIC",null,null,"Auxiliar","",null,2003842,"Enchimento de junta de concreto com argamassa asfáltica de densidade 1.700 kg/m³ - espessura de 1 cm"]
[{"$nulls":6},"Custo do FIT",null,null,"Auxiliar","",null,2003842,"Enchimento de junta de concreto com argamassa asfáltica de densidade 1.700 kg/m³ - espessura de 1 cm"]
["C - MATERIAL",null,"Quantidade","Unidade",null,"Preço Unitário","Custo Unitário",null,null,"Auxiliar","",null,2003842,"Enchimento de junta de concreto com argamassa asfáltica de densidade 1.700 kg/m³ - espessura de 1 cm"]
["M2158","Argamassa asfáltica",1,"kg",{"$nulls":5},"Auxiliar","",null,2003842,"Enchimento de junta de concreto com argamassa asfáltica de densidade 1.700 kg/m³ - espessura de 1 cm"]
[{"$nulls":6},"Custo unitário total de material",null,null,"Auxiliar","",null,2003842,"Enchimento de junta de concreto com argamassa asfáltica de densidade 1.700 kg/m³ - espessura de 1 cm"]
["D - ATIVIDADES AUXILIARES",null,"Quantidade","Unidade",null,"Custo Unitário","Custo Unitário",null,null,"Auxiliar","",null,2003842,"Enchimento de junta de concreto com argamassa asfáltica de densidade 1.700 kg/m³ - espessura de 1 cm"]
[{"$nulls":6},"Custo total de atividades auxiliares",null,null,"Auxiliar","",null,2003842,"Enchimento de junta de concreto com argamassa asfáltica de densidade 1.700 kg/m³ - espessura de 1 cm"]
[{"$nulls":6},"Subtotal",null,null,"Auxiliar","",null,2003842,"Enchimento de junta de concreto com argamassa asfáltica de densidade 1.700 kg/m³ - espessura de 1 cm"]
["E - TEMPO FIXO",null,"Código","Quantidade","Unidade",null,"Custo Unitário","Custo Unitário",null,"Auxiliar","",null,2003842,"Enchimento de junta de concreto com argamassa asfáltica de densidade 1.700 kg/m³ - espessura de 1 cm"]
["M2158","Argamassa asfáltica - Caminhão carroceria 15 t",5914655,1E-3,"t",{"$nulls":4},"Auxiliar","",null,2003842,"Enchimento de junta de concreto com argamassa asfáltica de densidade 1.700 kg/m³ - espessura de 1 cm"]
[{"$nulls":6},"Custo unitário total de tempo fixo",null,null,"Auxiliar","",null,2003842,"Enchimento de junta de concreto com argamassa asfáltica de densidade 1.700 kg/m³ - espessura de 1 cm"]
["F - MOMENTO DE TRANSPORTE",null,"Quantidade","Unidade","DMT",null,null,null,"Custo Unitário","Auxiliar","",null,2003842,"Enchimento de junta de concreto com argamassa asfáltica de densidade 1.700 kg/m³ - espessura de 1 cm"]
[{"$nulls":4},"LN","RP","P",null,null,"Auxiliar","",null,2003842,"Enchimento de junta de concreto com argamassa asfáltica de densidade 1.700 kg/m³ - espessura de 1 cm"]
["M2158","Argamassa asfáltica - Caminhão carroceria 15 t",8.1999999999999998E-4,"tkm",5914449,5914464,5914479,null,null,"Auxiliar","",null,2003842,"Enchimento de junta de concreto com argamassa asfáltica de densidade 1.700 kg/m³ - espessura de 1 cm"]
[{"$nulls":6},"Custo unitário total de transporte",null,null,"Auxiliar","",null,2003842,"Enchimento de junta de concreto com argamassa asfáltica de densidade 1.700 kg/m³ - espessura de 1 cm"]
[{"$nulls":4},"Custo unitário direto total",{"$nulls":4},"Auxiliar","",null,2003842,"Enchimento de junta de concreto com argamassa asfáltica de densidade 1.700 kg/m³ - espessura de 1 cm"]
["CGCIT",{"$nulls":7},"DNIT","Auxiliar","",null,"4016096","Escavação e carga de material de jazida com escavadeira hidráulica de 1,56 m³"]
["SISTEMA DE CUSTOS REFERENCIAIS DE OBRAS - SICRO",null,null,"Goiás",null,null,"FIC",2.725E-2,null,"Auxiliar","",null,"4016096","Escavação e carga de material de jazida com escavadeira hidráulica de 1,56 m³"]
["Custo Unitário de Referência",null,null,"Abril/2024",null,null,"Produção da equipe ",230.19,"m³","Auxiliar",{"$f":"IF(LEFT(A856,2)=\"E9\",A856,\"\")","v":""},null,"4016096","Escavação e carga de material de jazida com escavadeira hidráulica de 1,56 m³"]
["4016096","Escavação e carga de material de jazida com escavadeira hidráulica de 1,56 m³",{"$nulls":5},"Valores em reais (R$)",null,"Auxiliar","",null,"4016096","Escavação e carga de material de jazida com escavadeira hidráulica de 1,56 m³"]
["A - EQUIPAMENTOS",null,"Quantidade","Utilização",null,"Custo Horário",null,null,"Custo","Auxiliar","",null,"4016096","Escavação e carga de material de jazida com escavadeira hidráulica de 1,56 m³"]
[null,null,null,"Operativa","Improdutiva","Produtivo","Improdutivo",null,"Horário Total","Auxiliar","",null,"4016096","Escavação e carga de material de jazida com escavadeira hidráulica de 1,56 m³"]
["E9515","Escavadeira hidráulica sobre esteiras com caçamba com capacidade de 1,56 m³ - 118 kW",1,1,0,{"$nulls":4},"Auxiliar","E9515",null,"4016096","Escavação e carga de material de jazida com escavadeira hidráulica de 1,56 m³"]
[{"$nulls":6},"Custo horário total de equipamentos",null,null,"Auxiliar","",null,"4016096","Escavação e carga de material de jazida com escavadeira hidráulica de 1,56 m³"]
["B - MÃO DE OBRA",null,"Quantidade","Unidade",null,"Custo Horário","Custo Horário Total",null,null,"Auxiliar","",null,"4016096","Escavação e carga de material de jazida com escavadeira hidráulica de 1,56 m³"]
["P9824","Servente",1,"h",{"$nulls":5},"Auxiliar","",null,"4016096","Escavação e carga de material de jazida com escavadeira hidráulica de 1,56 m³"]
[{"$nulls":6},"Custo horário total de mão de obra",null,null,"Auxiliar","",null,"4016096","Escavação e carga de material de jazida com escavadeira hidráulica de 1,56 m³"]
[{"$nulls":6},"Custo horário total de execução",null,null,"Auxiliar","",null,"4016096","Escavação e carga de material de jazida com escavadeira hidráulica de 1,56 m³"]
[{"$nulls":6},"Custo unitário de execução",null,null,"Auxiliar","",null,"4016096","Escavação e carga de material de jazida com escavadeira hidráulica de 1,56 m³"]
[{"$nulls":6},"Custo do FIC",null,null,"Auxiliar","",null,"4016096","Escavação e carga de material de jazida com escavadeira hidráulica de 1,56 m³"]
[{"$nulls":6},"Custo do FIT",null,null,"Auxiliar","",null,"4016096","Escavação e carga de material de jazida com escavadeira hidráulica de 1,56 m³"]
["C - MATERIAL",null,"Quantidade","Unidade",null,"Preço Unitário","Custo Unitário",null,null,"Auxiliar","",null,"4016096","Escavação e carga de material de jazida com escavadeira hidráulica de 1,56 m³"]
[{"$nulls":6},"Custo unitário total de material",null,null,"Auxiliar","",null,"4016096","Escavação e carga de material de jazida com escavadeira hidráulica de 1,56 m³"]
["D - ATIVIDADES AUXILIARES",null,"Quantidade","Unidade",null,"Custo Unitário","Custo Unitário",null,null,"Auxiliar","",null,"4016096","Escavação e carga de material de jazida com escavadeira hidráulica de 1,56 m³"]
[{"$nulls":6},"Custo total de atividades auxiliares",null,null,"Auxiliar","",null,"4016096","Escavação e carga de material de jazida com escavadeira hidráulica de 1,56 m³"]
[{"$nulls":6},"Subtotal",null,null,"Auxiliar","",null,"4016096","Escavação e carga de material de jazida com escavadeira hidráulica de 1,56 m³"]
["E - TEMPO FIXO",null,"Código","Quantidade","Unidade",null,"Custo Unitário","Custo Unitário",null,"Auxiliar","",null,"4016096","Escavação e carga de material de jazida com escavadeira hidráulica de 1,56 m³"]
[{"$nulls":6},"Custo unitário total de tempo fixo",null,null,"Auxiliar","",null,"4016096","Escavação e carga de material de jazida com escavadeira hidráulica de 1,56 m³"]
["F - MOMENTO DE TRANSPORTE",null,"Quantidade","Unidade","DMT",null,null,null,"Custo Unitário","Auxiliar","",null,"4016096","Escavação e carga de material de jazida com escavadeira hidráulica de 1,56 m³"]
[{"$nulls":4},"LN","RP","P",null,null,"Auxiliar","",null,"4016096","Escavação e carga de material de jazida com escavadeira hidráulica de 1,56 m³"]
[{"$nulls":6},"Custo unitário total de transporte",null,null,"Auxiliar","",null,"4016096","Escavação e carga de material de jazida com escavadeira hidráulica de 1,56 m³"]
[{"$nulls":4},"Custo unitário direto total",{"$nulls":4},"Auxiliar","",null,"4016096","Escavação e carga de material de jazida com escavadeira hidráulica de 1,56 m³"]
["CGCIT",{"$nulls":7},"DNIT","Auxiliar","",null,"4805750","Escavação manual em material de 1ª categoria na profundidade de até 1 m"]
["SISTEMA DE CUSTOS REFERENCIAIS DE OBRAS - SICRO",null,null,"Goiás",null,null,"FIC",2.725E-2,null,"Auxiliar","",null,"4805750","Escavação manual em material de 1ª categoria na profundidade de até 1 m"]
["Custo Unitário de Referência",null,null,"Abril/2024",null,null,"Produção da equipe ",0.5,"m³","Auxiliar","",null,"4805750","Escavação manual em material de 1ª categoria na profundidade de até 1 m"]
["4805750","Escavação manual em material de 1ª categoria na profundidade de até 1 m",{"$nulls":5},"Valores em reais (R$)",null,"Auxiliar","",null,"4805750","Escavação manual em material de 1ª categoria na profundidade de até 1 m"]
["A - EQUIPAMENTOS",null,"Quantidade","Utilização",null,"Custo Horário",null,null,"Custo","Auxiliar","",null,"4805750","Escavação manual em material de 1ª categoria na profundidade de até 1 m"]
[null,null,null,"Operativa","Improdutiva","Produtivo","Improdutivo",null,"Horário Total","Auxiliar","",null,"4805750","Escavação manual em material de 1ª categoria na profundidade de até 1 m"]
[{"$nulls":6},"Custo horário total de equipamentos",null,null,"Auxiliar","",null,"4805750","Escavação manual em material de 1ª categoria na profundidade de até 1 m"]
["B - MÃO DE OBRA",null,"Quantidade","Unidade",null,"Custo Horário","Custo Horário Total",null,null,"Auxiliar","",null,"4805750","Escavação manual em material de 1ª categoria na profundidade de até 1 m"]
["P9824","Servente",1,"h",{"$nulls":5},"Auxiliar","",null,"4805750","Escavação manual em material de 1ª categoria na profundidade de até 1 m"]
[{"$nulls":6},"Custo horário total de mão de obra",null,null,"Auxiliar","",null,"4805750","Escavação manual em material de 1ª categoria na profundidade de até 1 m"]
[{"$nulls":6},"Custo horário total de execução",null,null,"Auxiliar","",null,"4805750","Escavação manual em material de 1ª categoria na profundidade de até 1 m"]
[{"$nulls":6},"Custo unitário de execução",null,null,"Auxiliar","",null,"4805750","Escavação manual em material de 1ª categoria na profundidade de até 1 m"]
[{"$nulls":6},"Custo do FIC",null,null,"Auxiliar","",null,"4805750","Escavação manual em material de 1ª categoria na profundidade de até 1 m"]
[{"$nulls":6},"Custo do FIT",null,null,"Auxiliar","",null,"4805750","Escavação manual em material de 1ª categoria na profundidade de até 1 m"]
["C - MATERIAL",null,"Quantidade","Unidade",null,"Preço Unitário","Custo Unitário",null,null,"Auxiliar","",null,"4805750","Escavação manual em material de 1ª categoria na profundidade de até 1 m"]
[{"$nulls":6},"Custo unitário total de material",null,null,"Auxiliar","",null,"4805750","Escavação manual em material de 1ª categoria na profundidade de até 1 m"]
["D - ATIVIDADES AUXILIARES",null,"Quantidade","Unidade",null,"Custo Unitário","Custo Unitário",null,null,"Auxiliar","",null,"4805750","Escavação manual em material de 1ª categoria na profundidade de até 1 m"]
[{"$nulls":6},"Custo total de atividades auxiliares",null,null,"Auxiliar","",null,"4805750","Escavação manual em material de 1ª categoria na profundidade de até 1 m"]
[{"$nulls":6},"Subtotal",null,null,"Auxiliar","",null,"4805750","Escavação manual em material de 1ª categoria na profundidade de até 1 m"]
["E - TEMPO FIXO",null,"Código","Quantidade","Unidade",null,"Custo Unitário","Custo Unitário",null,"Auxiliar","",null,"4805750","Escavação manual em material de 1ª categoria na profundidade de até 1 m"]
[{"$nulls":6},"Custo unitário total de tempo fixo",null,null,"Auxiliar","",null,"4805750","Escavação manual em material de 1ª categoria na profundidade de até 1 m"]
["F - MOMENTO DE TRANSPORTE",null,"Quantidade","Unidade","DMT",null,null,null,"Custo Unitário","Auxiliar","",null,"4805750","Escavação manual em material de 1ª categoria na profundidade de até 1 m"]
[{"$nulls":4},"LN","RP","P",null,null,"Auxiliar","",null,"4805750","Escavação manual em material de 1ª categoria na profundidade de até 1 m"]
[{"$nulls":6},"Custo unitário total de transporte",null,null,"Auxiliar","",null,"4805750","Escavação manual em material de 1ª categoria na profundidade de até 1 m"]
[{"$nulls":4},"Custo unitário direto total",{"$nulls":4},"Auxiliar","",null,"4805750","Escavação manual em material de 1ª categoria na profundidade de até 1 m"]
["CGCIT",{"$nulls":7},"DNIT","Auxiliar","",null,"5213414","Placa em aço nº 16 galvanizado com película retrorrefletiva tipo I + SI - confecção"]
["SISTEMA DE CUSTOS REFERENCIAIS DE OBRAS - SICRO",null,null,"Goiás",{"$nulls":5},"Auxiliar","",null,"5213414","Placa em aço nº 16 galvanizado com película retrorrefletiva tipo I + SI - confecção"]
["Custo Unitário de Referência",null,null,"Abril/2024",null,null,"Produção da equipe ",4,"m²","Auxiliar","",null,"5213414","Placa em aço nº 16 galvanizado com película retrorrefletiva tipo I + SI - confecção"]
["5213414","Placa em aço nº 16 galvanizado com película retrorrefletiva tipo I + SI - confecção",{"$nulls":5},"Valores em reais (R$)",null,"Auxiliar","",null,"5213414","Placa em aço nº 16 galvanizado com película retrorrefletiva tipo I + SI - confecção"]
["A - EQUIPAMENTOS",null,"Quantidade","Utilização",null,"Custo Horário",null,null,"Custo","Auxiliar","",null,"5213414","Placa em aço nº 16 galvanizado com película retrorrefletiva tipo I + SI - confecção"]
[null,null,null,"Operativa","Improdutiva","Produtivo","Improdutivo",null,"Horário Total","Auxiliar","",null,"5213414","Placa em aço nº 16 galvanizado com película retrorrefletiva tipo I + SI - confecção"]
["E9568","Furadeira de impacto de 12,5 mm - 0,80 kW",0.15060000000000001,1,0,{"$nulls":4},"Auxiliar","E9568",1,"5213414","Placa em aço nº 16 galvanizado com película retrorrefletiva tipo I + SI - confecção"]
["E9753","Grupo gerador - 23 kVA",0.48193000000000003,1,0,{"$nulls":4},"Auxiliar","E9753",1,"5213414","Placa em aço nº 16 galvanizado com película retrorrefletiva tipo I + SI - confecção"]
["E9623","Máquina de bancada guilhotina - 4,00 kW",0.20080000000000001,1,0,{"$nulls":4},"Auxiliar","E9623",1,"5213414","Placa em aço nº 16 galvanizado com película retrorrefletiva tipo I + SI - confecção"]
["E9622","Máquina de bancada universal para corte de chapa - 1,50 kW",0.48193000000000003,1,0,{"$nulls":4},"Auxiliar","E9622",1,"5213414","Placa em aço nº 16 galvanizado com película retrorrefletiva tipo I + SI - confecção"]
[{"$nulls":6},"Custo horário total de equipamentos",null,null,"Auxiliar","",null,"5213414","Placa em aço nº 16 galvanizado com película retrorrefletiva tipo I + SI - confecção"]
["B - MÃO DE OBRA",null,"Quantidade","Unidade",null,"Custo Horário","Custo Horário Total",null,null,"Auxiliar","",null,"5213414","Placa em aço nº 16 galvanizado com película retrorrefletiva tipo I + SI - confecção"]
["P9801","Ajudante",2,"h",{"$nulls":5},"Auxiliar","",null,"5213414","Placa em aço nº 16 galvanizado com película retrorrefletiva tipo I + SI - confecção"]
["P9830","Montador",1,"h",{"$nulls":5},"Auxiliar","",null,"5213414","Placa em aço nº 16 galvanizado com película retrorrefletiva tipo I + SI - confecção"]
["P9823","Serralheiro",1,"h",{"$nulls":5},"Auxiliar","",null,"5213414","Placa em aço nº 16 galvanizado com película retrorrefletiva tipo I + SI - confecção"]
["P9824","Servente",2,"h",{"$nulls":5},"Auxiliar",{"$f":"IF(LEFT(A920,2)=\"E9\",A920,\"\")","v":""},null,"5213414","Placa em aço nº 16 galvanizado com película retrorrefletiva tipo I + SI - confecção"]
[{"$nulls":6},"Custo horário total de mão de obra",null,null,"Auxiliar","",null,"5213414","Placa em aço nº 16 galvanizado com película retrorrefletiva tipo I + SI - confecção"]
[{"$nulls":6},"Custo horário total de execução",null,null,"Auxiliar","",null,"5213414","Placa em aço nº 16 galvanizado com película retrorrefletiva tipo I + SI - confecção"]
[{"$nulls":6},"Custo unitário de execução",null,null,"Auxiliar","",null,"5213414","Placa em aço nº 16 galvanizado com película retrorrefletiva tipo I + SI - confecção"]
[{"$nulls":6},"Custo do FIC",null,null,"Auxiliar","",null,"5213414","Placa em aço nº 16 galvanizado com película retrorrefletiva tipo I + SI - confecção"]
[{"$nulls":6},"Custo do FIT",null,null,"Auxiliar","",null,"5213414","Placa em aço nº 16 galvanizado com película retrorrefletiva tipo I + SI - confecção"]
["C - MATERIAL",null,"Quantidade","Unidade",null,"Preço Unitário","Custo Unitário",null,null,"Auxiliar","",null,"5213414","Placa em aço nº 16 galvanizado com película retrorrefletiva tipo I + SI - confecção"]
["M1367","Chapa fina em aço galvanizado",11.775,"kg",{"$nulls":5},"Auxiliar","",null,"5213414","Placa em aço nº 16 galvanizado com película retrorrefletiva tipo I + SI - confecção"]
["M3229","Película retrorrefletiva tipo I + SI (sinal impresso com película de sobreposição tipo V)",1,"m²",{"$nulls":5},"Auxiliar","",null,"5213414","Placa em aço nº 16 galvanizado com película retrorrefletiva tipo I + SI - confecção"]
[{"$nulls":6},"Custo unitário total de material",null,null,"Auxiliar","",null,"5213414","Placa em aço nº 16 galvanizado com película retrorrefletiva tipo I + SI - confecção"]
["D - ATIVIDADES AUXILIARES",null,"Quantidade","Unidade",null,"Custo Unitário","Custo Unitário",null,null,"Auxiliar","",null,"5213414","Placa em aço nº 16 galvanizado com película retrorrefletiva tipo I + SI - confecção"]
["5212552","Pintura eletrostática a pó com tinta poliéster em chapa de aço",1,"m²",{"$nulls":5},"Auxiliar","",null,"5213414","Placa em aço nº 16 galvanizado com película retrorrefletiva tipo I + SI - confecção"]
[{"$nulls":6},"Custo total de atividades auxiliares",null,null,"Auxiliar","",null,"5213414","Placa em aço nº 16 galvanizado com película retrorrefletiva tipo I + SI - confecção"]
[{"$nulls":6},"Subtotal",null,null,"Auxiliar","",null,"5213414","Placa em aço nº 16 galvanizado com película retrorrefletiva tipo I + SI - confecção"]
["E - TEMPO FIXO",null,"Código","Quantidade","Unidade",null,"Custo Unitário","Custo Unitário",null,"Auxiliar","",null,"5213414","Placa em aço nº 16 galvanizado com película retrorrefletiva tipo I + SI - confecção"]
["M1367","Chapa fina em aço galvanizado - Caminhão carroceria 15 t","5914333",1.1780000000000001E-2,"t",{"$nulls":4},"Auxiliar","",null,"5213414","Placa em aço nº 16 galvanizado com película retrorrefletiva tipo I + SI - confecção"]
["M3229","Película retrorrefletiva tipo I + SI (sinal impresso com película de sobreposição tipo V) - Caminhão carroceria 15 t","5914655",4.4000000000000002E-4,"t",{"$nulls":4},"Auxiliar","",null,"5213414","Placa em aço nº 16 galvanizado com película retrorrefletiva tipo I + SI - confecção"]
[{"$nulls":6},"Custo unitário total de tempo fixo",null,null,"Auxiliar","",null,"5213414","Placa em aço nº 16 galvanizado com película retrorrefletiva tipo I + SI - confecção"]
["F - MOMENTO DE TRANSPORTE",null,"Quantidade","Unidade","DMT",null,null,null,"Custo Unitário","Auxiliar","",null,"5213414","Placa em aço nº 16 galvanizado com película retrorrefletiva tipo I + SI - confecção"]
[{"$nulls":4},"LN","RP","P",null,null,"Auxiliar","",null,"5213414","Placa em aço nº 16 galvanizado com película retrorrefletiva tipo I + SI - confecção"]
["M1367","Chapa fina em aço galvanizado - Caminhão carroceria 15 t",1.1780000000000001E-2,"tkm","5914449","5914464","5914479",null,null,"Auxiliar","",null,"5213414","Placa em aço nº 16 galvanizado com película retrorrefletiva tipo I + SI - confecção"]
["M3229","Película retrorrefletiva tipo I + SI (sinal impresso com película de sobreposição tipo V) - Caminhão carroceria 15 t",4.4000000000000002E-4,"tkm","5914449","5914464","5914479",null,null,"Auxiliar","",null,"5213414","Placa em aço nº 16 galvanizado com película retrorrefletiva tipo I + SI - confecção"]
[{"$nulls":6},"Custo unitário total de transporte",null,null,"Auxiliar","",null,"5213414","Placa em aço nº 16 galvanizado com película retrorrefletiva tipo I + SI - confecção"]
[{"$nulls":4},"Custo unitário direto total",{"$nulls":4},"Auxiliar","",null,"5213414","Placa em aço nº 16 galvanizado com película retrorrefletiva tipo I + SI - confecção"]
["CGCIT",{"$nulls":7},"DNIT","AA da Aux.",{"$f":"IF(LEFT(A944,2)=\"E9\",A944,\"\")","v":""},null,"5212552","Pintura eletrostática a pó com tinta poliéster em chapa de aço"]
["SISTEMA DE CUSTOS REFERENCIAIS DE OBRAS - SICRO",null,null,"Goiás",{"$nulls":5},"AA da Aux.","",null,"5212552","Pintura eletrostática a pó com tinta poliéster em chapa de aço"]
["Custo Unitário de Referência",null,null,"Abril/2024",null,null,"Produção da equipe ",19.149999999999999,"m²","AA da Aux.","",null,"5212552","Pintura eletrostática a pó com tinta poliéster em chapa de aço"]
["5212552","Pintura eletrostática a pó com tinta poliéster em chapa de aço",{"$nulls":5},"Valores em reais (R$)",null,"AA da Aux.","",null,"5212552","Pintura eletrostática a pó com tinta poliéster em chapa de aço"]
["A - EQUIPAMENTOS",null,"Quantidade","Utilização",null,"Custo Horário",null,null,"Custo","AA da Aux.","",null,"5212552","Pintura eletrostática a pó com tinta poliéster em chapa de aço"]
[null,null,null,"Operativa","Improdutiva","Produtivo","Improdutivo",null,"Horário Total","AA da Aux.","",null,"5212552","Pintura eletrostática a pó com tinta poliéster em chapa de aço"]
["E9076","Equipamento para pintura eletrostática com cabine dupla de 7,00 kW e estufa de 80.000 kCal",1,1,0,{"$nulls":4},"AA da Aux.","E9076",1,"5212552","Pintura eletrostática a pó com tinta poliéster em chapa de aço"]
["E9753","Grupo gerador - 23 kVA",1,1,0,{"$nulls":4},"AA da Aux.","E9753",null,"5212552","Pintura eletrostática a pó com tinta poliéster em chapa de aço"]
[{"$nulls":6},"Custo horário total de equipamentos",null,null,"AA da Aux.","",null,"5212552","Pintura eletrostática a pó com tinta poliéster em chapa de aço"]
["B - MÃO DE OBRA",null,"Quantidade","Unidade",null,"Custo Horário","Custo Horário Total",null,null,"AA da Aux.","",null,"5212552","Pintura eletrostática a pó com tinta poliéster em chapa de aço"]
["P9801","Ajudante",1,"h",{"$nulls":5},"AA da Aux.","",null,"5212552","Pintura eletrostática a pó com tinta poliéster em chapa de aço"]
["P9822","Pintor",2,"h",{"$nulls":5},"AA da Aux.","",null,"5212552","Pintura eletrostática a pó com tinta poliéster em chapa de aço"]
[{"$nulls":6},"Custo horário total de mão de obra",null,null,"AA da Aux.","",null,"5212552","Pintura eletrostática a pó com tinta poliéster em chapa de aço"]
[{"$nulls":6},"Custo horário total de execução",null,null,"AA da Aux.","",null,"5212552","Pintura eletrostática a pó com tinta poliéster em chapa de aço"]
[{"$nulls":6},"Custo unitário de execução",null,null,"AA da Aux.","",null,"5212552","Pintura eletrostática a pó com tinta poliéster em chapa de aço"]
[{"$nulls":6},"Custo do FIC",null,null,"AA da Aux.","",null,"5212552","Pintura eletrostática a pó com tinta poliéster em chapa de aço"]
[{"$nulls":6},"Custo do FIT",null,null,"AA da Aux.","",null,"5212552","Pintura eletrostática a pó com tinta poliéster em chapa de aço"]
["C - MATERIAL",null,"Quantidade","Unidade",null,"Preço Unitário","Custo Unitário",null,null,"AA da Aux.","",null,"5212552","Pintura eletrostática a pó com tinta poliéster em chapa de aço"]
["M3153","Tinta em pó à base de resina poliéster",0.112,"kg",{"$nulls":5},"AA da Aux.","",null,"5212552","Pintura eletrostática a pó com tinta poliéster em chapa de aço"]
[{"$nulls":6},"Custo unitário total de material",null,null,"AA da Aux.","",null,"5212552","Pintura eletrostática a pó com tinta poliéster em chapa de aço"]
["D - ATIVIDADES AUXILIARES",null,"Quantidade","Unidade",null,"Custo Unitário","Custo Unitário",null,null,"AA da Aux.","",null,"5212552","Pintura eletrostática a pó com tinta poliéster em chapa de aço"]
[{"$nulls":6},"Custo total de atividades auxiliares",null,null,"AA da Aux.","",null,"5212552","Pintura eletrostática a pó com tinta poliéster em chapa de aço"]
[{"$nulls":6},"Subtotal",null,null,"AA da Aux.","",null,"5212552","Pintura eletrostática a pó com tinta poliéster em chapa de aço"]
["E - TEMPO FIXO",null,"Código","Quantidade","Unidade",null,"Custo Unitário","Custo Unitário",null,"AA da Aux.","",null,"5212552","Pintura eletrostática a pó com tinta poliéster em chapa de aço"]
["M3153","Tinta em pó à base de resina poliéster - Caminhão carroceria 15 t","5914655",1.1E-4,"t",{"$nulls":4},"AA da Aux.","",null,"5212552","Pintura eletrostática a pó com tinta poliéster em chapa de aço"]
[{"$nulls":6},"Custo unitário total de tempo fixo",null,null,"AA da Aux.","",null,"5212552","Pintura eletrostática a pó com tinta poliéster em chapa de aço"]
["F - MOMENTO DE TRANSPORTE",null,"Quantidade","Unidade","DMT",null,null,null,"Custo Unitário","AA da Aux.","",null,"5212552","Pintura eletrostática a pó com tinta poliéster em chapa de aço"]
[{"$nulls":4},"LN","RP","P",null,null,"AA da Aux.","",null,"5212552","Pintura eletrostática a pó com tinta poliéster em chapa de aço"]
["M3153","Tinta em pó à base de resina poliéster - Caminhão carroceria 15 t",1.1E-4,"tkm","5914449","5914464","5914479",null,null,"AA da Aux.","",null,"5212552","Pintura eletrostática a pó com tinta poliéster em chapa de aço"]
[{"$nulls":6},"Custo unitário total de transporte",null,null,"AA da Aux.","",null,"5212552","Pintura eletrostática a pó com tinta poliéster em chapa de aço"]
[{"$nulls":4},"Custo unitário direto total",{"$nulls":4},"AA da Aux.","",null,"5212552","Pintura eletrostática a pó com tinta poliéster em chapa de aço"]

{"sheet":"Mob","index":3,"n_rows":50,"n_cols":13,"rows_kept":50,"cut":false,"hidden":false,"merged":[[43,0,43,1],[3,0,3,7],[4,0,6,4],[8,1,9,1],[8,2,9,2],[8,3,9,3],[8,4,9,4],[8,5,9,5],[8,6,8,7]]}
[]
[]
[]
[{"$f":"'RESUMO MODULO TOTAL'!$C$5","v":"Execução De Serviços De Pavimentação Com Tratamento Superficial Duplo Em Vias De Municípios Diversos Inseridos Na Área De Atuação Da Codevasf, No Estado De Goiás "}]
["MOBILIZAÇÃO/DESMOBILIZAÇÃO (MOB)",{"$nulls":4},"Frentes de serviços",null,15]
[{"$nulls":5},"Distância da Capital ao Canteiro:",null,null,"Inserir a distância adequada de acordo com o histórico de mobilização"]
[{"$nulls":5},"Velocidade média de transporte (pavim.):",null,60]
["Transporte dos equipamentos"]
["CODIGO","EQUIPAMENTO","VEÍCULO TRANSPORTADOR","QTDE","K","FU","CUSTO DO TRANSPORTE"]
[{"$nulls":6},"(R$/h)","(R$)/km"]
[{"$nulls":11},".","."]
["E9010","Balança plataforma digital à bateria, com mesa de 75 x 75 cm e capacidade de 500 kg","Veículo(s) da própria frota.",1,2,0,0,{"$f":"((D12*E12*F12)/$H$7)*G12","v":0}]
["E9519","Betoneira com motor a gasolina com capacidade de 600 l - 10 kW","Veículo(s) da própria frota.",1,2,0,0,0]
["E9256","Equipamento para pintura com cal rebocável com dois bicos aplicadores e capacidade de 2.200 l","Veículo(s) da própria frota.",1,2,0,0,0]
["E9103","Extrusora para meio-fio de concreto - 10,44 kW","Veículo(s) da própria frota.",1,2,0,0,0]
["E9568","Furadeira de impacto de 12,5 mm - 0,80 kW","Veículo(s) da própria frota.",1,2,0,0,0]
["E9518","Grade de 24 discos rebocável de D = 60 cm (24\")","Veículo(s) da própria frota.",1,2,0,0,0]
["E9583","Distribuidor de agregados rebocável com capacidade de 1,9 m³","Veículo(s) da própria frota.",1,2,0,0,{"$f":"((D18*E18*F18)/$H$7)*G18","v":0}]
["E9753","Grupo gerador - 23 kVA","Veículo(s) da própria frota.",1,2,0,0,0]
["E9623","Máquina de bancada guilhotina - 4,00 kW","Veículo(s) da própria frota.",1,2,0,0,0]
["E9622","Máquina de bancada universal para corte de chapa - 1,50 kW","Veículo(s) da própria frota.",1,2,0,0,0]
["E9156","Soprador de ar costal - 2,6 kW","Veículo(s) da própria frota.",1,2,0,0,0]
["E9071","Transportador manual carrinho de mão com capacidade de 80 l","Veículo(s) da própria frota.",4,2,0,0,0]
["E9064","Transportador manual gerica com capacidade de 180 l","Veículo(s) da própria frota.",3,2,0,0,0]
["E9687","Caminhão carroceria com capacidade de 5 t - 115 kW","E9687",1,1,1,null,0]
["E9667","Caminhão basculante com capacidade de 14 m³ - 210 kW","E9667",5,1,1,null,0]
["E9515","Escavadeira hidráulica sobre esteiras com caçamba com capacidade de 1,56 m³ - 118 kW","E9666",1,2,1,null,0]
["E9762","Rolo compactador de pneus autopropelido de 27 t - 85 kW","E9666",1,2,0.5,null,0]
["E9685","Rolo compactador pé de carneiro vibratório autopropelido por pneus de 11,6 t - 82 kW","E9666",1,2,0.5,null,0]
["E9076","Equipamento para pintura eletrostática com cabine dupla de 7,00 kW e estufa de 80.000 kCal","E9665",1,2,1,null,0]
["E9524","Motoniveladora - 93 kW","E9665",1,2,1,null,0]
["E9558","Tanque de estocagem de asfalto com capacidade de 30.000 l","E9665",2,2,1,null,0]
["E9577","Trator agrícola sobre pneus - 77 kW","E9665",1,2,0.5,null,0]
["E9644","Caminhão demarcador de faixas com sistema de pintura a frio - 28 kW/115 kW","E9644",1,1,1,null,0]
["E9592","Caminhão carroceria com capacidade de 15 t - 188 kW","E9592",1,1,1,null,0]
["E9579","Caminhão basculante com capacidade de 10 m³ - 210 kW","E9579",1,1,1,null,0]
["E9571","Caminhão tanque com capacidade de 10.000 l - 188 kW","E9571",2,1,1,null,0]
["E9509","Caminhão tanque distribuidor de asfalto com capacidade de 6.000 l - 7 kW/136 kW","E9509",1,1,1,null,0]
["E9146","Caminhão silo com capacidade de 30 m³ - 265 kW","E9146",1,1,1,null,0]
["E9540","Trator sobre esteiras com lâmina - 127 kW","E9018",1,2,0.5,null,0]
[null,"TOTAL",null,{"$f":"SUM(D12:D40)","v":40},null,null,null,{"$f":"SUM(H12:H40)","v":0}]
[]
[]
["CUSTO TOTAL MOBILIZAÇÃO E DESMOBILIZAÇÃO"]
["DESCRIÇÃO","VALOR"]
["Custo Mobilização (km)",{"$f":"H41","v":0}]
["BDI (%)",{"$f":"BDI!C17/100","v":0}]
["Custo Mobilização (R$/km) com BDI",{"$f":"B46+(B46*B47)","v":0}]
["Total de Frentes",{"$f":"H5","v":15}]
["Custo Mobilização (frentes x distancia)",{"$f":"B48*H6*B49","v":0}]

{"sheet":" Canteiro","index":4,"n_rows":13,"n_cols":6,"rows_kept":13,"cut":false,"hidden":false,"merged":[[3,0,3,5],[9,3,9,4],[12,3,12,4]]}
[]
[]
[]
["CANTEIRO DE OBRAS PARA CONSTRUÇAO RODOVIÁRIA"]
["Descrição dos serviços","Tipo de container","Unidade","Quantidade","Preço unitário (R$)","Total (R$)"]
["Escritório e seção técnica"]
["LOCACAO DE CONTAINER 2,30 X 6,00 M, ALT. 2,50 M, PARA ESCRITORIO, SEM DIVISORIAS INTERNAS E SEM SANITARIO (NAO INCLUI MOBILIZACAO/DESMOBILIZACAO)                                                                                                                                                                                                                                                                                                                                                         ",10776,"und",1,null,{"$f":"TRUNC(D7*E7,2)","v":0}]
["Banheiro e vestiário"]
["LOCACAO DE CONTAINER 2,30 X 4,30 M, ALT. 2,50 M, PARA SANITARIO, COM 3 BACIAS, 4 CHUVEIROS, 1 LAVATORIO E 1 MICTORIO (NAO INCLUI MOBILIZACAO/DESMOBILIZACAO)                                                                                                                                                                                                                                                                                                                                              ",10777,"und",1,null,{"$f":"TRUNC(D9*E9,2)","v":0}]
[null,null,null,"TOTAL DO CANTEIRO",null,{"$f":"SUM(F7:F9)","v":0}]
[null,null,null,"DURAÇÃO (MESES)",12,{"$f":"F10*E11","v":0}]
[null,null,null,"BDI",null,{"$f":"BDI!C17","v":0}]
[null,null,null,"TOTAL DO CANTEIRO (com BDI)",null,{"$f":"F11+(F11*F12)","v":0}]

{"sheet":"CPU CODEVASF","index":5,"n_rows":78,"n_cols":9,"rows_kept":78,"cut":false,"hidden":false,"merged":[[66,5,67,5],[66,6,67,6],[66,7,67,7],[74,4,74,6],[77,5,77,6],[66,0,67,0],[66,1,67,1],[66,2,67,2],[66,3,67,3],[66,4,67,4],[53,5,54,5],[53,6,54,6],[53,7,54,7],[61,4,61,6],[64,5,64,6],[53,0,54,0],[53,1,54,1],[53,2,54,2],[53,3,54,3],[53,4,54,4],[45,7,46,7],[48,4,48,6],[51,5,51,6],[37,5,38,5],[37,6,38,6],[40,4,40,6],[43,5,43,6],[45,5,46,5],[45,6,46,6],[37,7,38,7],[45,0,46,0],[45,1,46,1],[45,2,46,2],[45,3,46,3],[45,4,46,4],[37,0,38,0],[37,1,38,1],[37,2,38,2],[37,3,38,3],[37,4,38,4],[35,5,35,6],[27,5,27,6],[29,5,30,5],[29,6,30,6],[21,4,22,4],[29,4,30,4],[29,7,30,7],[32,4,32,6],[21,7,22,7],[24,4,24,6],[21,0,22,0],[21,1,22,1],[21,2,22,2],[21,3,22,3],[29,0,30,0],[29,1,30,1],[29,2,30,2],[29,3,30,3],[21,5,22,5],[21,6,22,6],[19,5,19,6],[9,7,10,7],[9,5,10,5],[9,6,10,6],[16,4,16,6],[9,0,10,0],[9,1,10,1],[9,2,10,2],[9,3,10,3],[9,4,10,4],[7,0,7,7],[0,0,2,7],[3,0,3,7],[4,0,6,3],[4,6,4,7],[5,4,6,5]]}
[]
[]
[]
[{"$f":"'RESUMO MODULO TOTAL'!$C$5","v":"Execução De Serviços De Pavimentação Com Tratamento Superficial Duplo Em Vias De Municípios Diversos Inseridos Na Área De Atuação Da Codevasf, No Estado De Goiás "}]
[{"$nulls":5},"BDI %:",{"$f":"BDI!$C$17/100","v":0}]
[{"$nulls":4},"Encargos Sociais:",null,"Horista","Mensalista"]
[{"$nulls":6},{"$f":"'ENC. SOCIAIS'!F51/100","v":1.0884},{"$f":"'ENC. SOCIAIS'!G51/100","v":0.6724}]
["COMPOSIÇÕES DE CUSTO UNITARIO"]
[]
["CPU-12","CODEVASF",null,"Correção de vazamentos no ramal na rua sem pavimento com fornecimento do material hidráulico","M","COEF.","PRECO UNITÁRIO (R$)","TOTAL (R$)"]
[]
["SICRO","SICRO","P9824","Servente","H",0.2,null,{"$f":"F12*G12","v":0}]
["SICRO","SICRO","P9807","Bombeiro hidráulico","H",0.1,null,0]
["INS. SINAPI","SINAPI",9867,"TUBO PVC, SOLDAVEL, DN 20 MM, AGUA FRIA (NBR-5648)","m",1,null,0]
["INSUMO","ORSE",10585,"Arco de serra","un",0.1,null,0]
["INS. SINAPI","SINAPI",3859,"LUVA SOLDAVEL COM ROSCA, PVC, 20 MM X 1/2\", PARA AGUA FRIA PREDIAL","un",2,null,0]
[{"$nulls":4},"Sub total:",null,null,{"$f":"SUM(H12:H16)","v":0}]
[{"$nulls":5},"BDI",{"$f":"BDI!$C$17/100","v":0},{"$f":"H17*G18","v":0}]
[{"$nulls":6},"Total Serviços:",{"$f":"H17+H18","v":0}]
[{"$nulls":4},{"$f":"A10","v":"CPU-12"},"PREÇO UNITÁRIO TOTAL:",null,{"$f":"H19","v":0},{"$f":"H17","v":0}]
[]
["CPU-14","CODEVASF",null,"AQUISIÇÃO DE EAI","t","COEF.","PRECO UNITÁRIO (R$)","TOTAL (R$)"]
[]
[null,null,null,"EAI","t",1,null,{"$f":"F24*G24","v":0}]
[{"$nulls":4},"Sub total:",null,null,{"$f":"SUM(H24)","v":0}]
[{"$nulls":5},"BDI",0.15,{"$f":"H25*G26","v":0}]
[{"$nulls":6},"Total Serviços:",{"$f":"H25+H26","v":0}]
[{"$nulls":4},{"$f":"A22","v":"CPU-14"},"PREÇO UNITÁRIO TOTAL:",null,{"$f":"H27","v":0},{"$f":"H25","v":0}]
[]
["CPU-15","CODEVASF",null,"AQUISIÇÃO DE EMULSÃO ASFÁLTICA RR-2C","t","COEF.","PRECO UNITÁRIO (R$)","TOTAL (R$)"]
[]
[null,null,null,"EMULSÃO ASFÁLTICA RR-2C","t",1,null,{"$f":"F32*G32","v":0}]
[{"$nulls":4},"Sub total:",null,null,{"$f":"SUM(H32)","v":0}]
[{"$nulls":5},"BDI",0.15,{"$f":"ROUND(H33,2)*ROUND(G34,4)","v":0}]
[{"$nulls":6},"Total Serviços:",{"$f":"H33+H34","v":0}]
[{"$nulls":4},{"$f":"A30","v":"CPU-15"},"PREÇO UNITÁRIO TOTAL:",null,{"$f":"H35","v":0},{"$f":"H33","v":0}]
[]
["CPU-18","CODEVASF",null,"TRANSPORTE DE EAI","t","COEF.","PRECO UNITÁRIO (R$)","TOTAL (R$)"]
[]
[null,null,null,"TRANSPORTE DE EAI","t",1,null,{"$f":"F40*G40","v":0}]
[{"$nulls":4},"Sub total:",null,null,{"$f":"SUM(H40)","v":0}]
[{"$nulls":5},"BDI",0.15,{"$f":"H41*G42","v":0}]
[{"$nulls":6},"Total Serviços:",{"$f":"H41+H42","v":0}]
[{"$nulls":4},{"$f":"A38","v":"CPU-18"},"PREÇO UNITÁRIO TOTAL:",null,{"$f":"H43","v":0},{"$f":"H41","v":0}]
[]
["CPU-19","CODEVASF",null,"TRANSPORTE DE EMULSÃO ASFÁLTICA RR-1C","t","COEF.","PRECO UNITÁRIO (R$)","TOTAL (R$)"]
[]
[null,null,null,"TRANSPORTE DE EMULSÃO ASFÁLTICA RR-1C","t",1,null,{"$f":"F48*G48","v":0}]
[{"$nulls":4},"Sub total:",null,null,{"$f":"SUM(H48)","v":0}]
[{"$nulls":5},"BDI",0.15,{"$f":"H49*G50","v":0}]
[{"$nulls":6},"Total Serviços:",{"$f":"H49+H50","v":0}]
[{"$nulls":4},{"$f":"A46","v":"CPU-19"},"PREÇO UNITÁRIO TOTAL:",null,{"$f":"H51","v":0},{"$f":"H49","v":0}]
[]
["2003943-A","CODEVASF",null,"Meio-fio de concreto - MFC 03 moldado no local com extrusora e concreto betoneira - areia e brita comerciais","M","COEF.","PRECO UNITÁRIO (R$)","TOTAL (R$)"]
[]
["SICRO","SICRO","E9103","Extrusora para meio-fio de concreto - 10,44 kW","H",{"$f":"1/74.11","v":1.349345567399811E-2},null,{"$f":"ROUND(F56*G56,6)","v":0}]
["SICRO","SICRO","P9821","Pedreiro","H",{"$f":"1/74.11","v":1.349345567399811E-2},null,{"$f":"ROUND(F57*G57,6)","v":0}]
["SICRO","SICRO","P9824","Servente","H",{"$f":"2/74.11","v":2.6986911347996221E-2},null,0]
["SICRO","SICRO",1107892,"Concreto fck = 20 MPa - confecção em betoneira e lançamento manual - areia e brita comerciais","m³",4.2000000000000003E-2,null,{"$f":"F59*G59","v":0}]
["SICRO","SICRO","2003842","Enchimento de junta de concreto com argamassa asfáltica de densidade 1.700 kg/m³ - espessura de 1 cm","kg",5.9499999999999997E-2,null,0]
["SICRO","SICRO","4805750","Escavação manual em material de 1ª categoria na profundidade de até 1 m","m³",0.03,null,0]
[{"$nulls":4},"Sub total:",null,null,{"$f":"ROUND(SUM(H56:H61),2)","v":0}]
[{"$nulls":5},"BDI",{"$f":"BDI!$C$17/100","v":0},{"$f":"H62*G63","v":0}]
[{"$nulls":6},"Total Serviços:",{"$f":"H62+H63","v":0}]
[{"$nulls":4},{"$f":"A54","v":"2003943-A"},"PREÇO UNITÁRIO TOTAL:",null,{"$f":"H64","v":0},{"$f":"H62","v":0}]
[]
["2003947-A","CODEVASF",null,"Meio-fio de concreto - MFC 05 moldado no local com extrusora e concreto betoneira - areia e brita comerciais","M","COEF.","PRECO UNITÁRIO (R$)","TOTAL (R$)"]
[]
["SICRO","SICRO","E9103","Extrusora para meio-fio de concreto - 10,44 kW","H",{"$f":"1/93.19","v":1.0730765103551884E-2},null,{"$f":"ROUND(F69*G69,6)","v":0}]
["SICRO","SICRO","P9821","Pedreiro","H",{"$f":"1/93.19","v":1.0730765103551884E-2},null,{"$f":"ROUND(F70*G70,6)","v":0}]
["SICRO","SICRO","P9824","Servente","H",{"$f":"2/93.19","v":2.1461530207103768E-2},null,0]
["SICRO","SICRO",1107892,"Concreto fck = 20 MPa - confecção em betoneira e lançamento manual - areia e brita comerciais","m³",3.3399999999999999E-2,null,{"$f":"F72*G72","v":0}]
["SICRO","SICRO","2003842","Enchimento de junta de concreto com argamassa asfáltica de densidade 1.700 kg/m³ - espessura de 1 cm","kg",4.7300000000000002E-2,null,0]
["SICRO","SICRO","4805750","Escavação manual em material de 1ª categoria na profundidade de até 1 m","m³",1.7999999999999999E-2,null,0]
[{"$nulls":4},"Sub total:",null,null,{"$f":"ROUND(SUM(H69:H74),2)","v":0}]
[{"$nulls":5},"BDI",{"$f":"BDI!$C$17/100","v":0},{"$f":"H75*G76","v":0}]
[{"$nulls":6},"Total Serviços:",{"$f":"H75+H76","v":0}]
[{"$nulls":4},{"$f":"A67","v":"2003947-A"},"PREÇO UNITÁRIO TOTAL:",null,{"$f":"H77","v":0},{"$f":"H75","v":0}]

{"sheet":"Adm Local","index":6,"n_rows":251,"n_cols":10,"rows_kept":251,"cut":false,"hidden":false,"merged":[[85,3,85,4],[85,5,85,6],[85,7,85,8],[86,3,86,4],[86,5,86,6],[86,7,86,8],[87,5,87,6],[87,7,87,8],[145,3,145,4],[145,5,145,6],[145,7,145,8],[143,5,143,6],[143,7,143,8],[144,3,144,4],[144,5,144,6],[144,7,144,8],[139,3,139,4],[139,5,139,6],[139,7,139,8],[140,5,140,6],[140,7,140,8],[143,3,143,4],[142,0,142,8],[137,3,137,4],[150,3,150,4],[150,5,150,6],[150,7,150,8],[151,3,151,4],[151,5,151,6],[151,7,151,8],[146,3,146,4],[146,5,146,6],[146,7,146,8],[147,5,147,6],[147,7,147,8],[149,0,149,8],[229,3,229,4],[229,5,229,6],[153,3,153,4],[153,5,153,6],[153,7,153,8],[191,1,191,4],[225,3,225,4],[225,5,225,6],[225,7,225,8],[226,3,226,4],[226,5,226,6],[226,7,226,8],[189,1,189,4],[188,0,188,8],[190,1,190,4],[220,0,220,8],[229,7,229,8],[223,3,223,4],[223,5,223,6],[223,7,223,8],[224,3,224,4],[224,5,224,6],[224,7,224,8],[215,5,215,6],[74,7,74,8],[75,5,75,6],[75,7,75,8],[82,0,82,8],[83,3,83,4],[83,5,83,6],[83,7,83,8],[84,3,84,4],[84,5,84,6],[84,7,84,8],[215,7,215,8],[216,7,216,8],[213,3,213,4],[213,5,213,6],[213,7,213,8],[207,7,207,8],[214,3,214,4],[214,5,214,6],[214,7,214,8],[211,3,211,4],[211,5,211,6],[211,7,211,8],[212,3,212,4],[212,5,212,6],[212,7,212,8],[208,3,208,4],[208,5,208,6],[208,7,208,8],[210,3,210,4],[210,5,210,6],[210,7,210,8],[244,3,244,4],[244,5,244,6],[244,7,244,8],[245,3,245,4],[245,5,245,6],[245,7,245,8],[242,3,242,4],[242,5,242,6],[240,3,240,4],[240,5,240,6],[240,7,240,8],[241,3,241,4],[241,5,241,6],[241,7,241,8],[242,7,242,8],[243,3,243,4],[243,5,243,6],[243,7,243,8],[249,3,249,4],[249,5,249,6],[250,3,250,4],[250,5,250,6],[246,7,246,8],[247,3,247,4],[247,5,247,6],[247,7,247,8],[248,3,248,4],[248,5,248,6],[248,7,248,8],[238,3,238,4],[238,5,238,6],[238,7,238,8],[239,3,239,4],[239,5,239,6],[231,3,231,4],[231,5,231,6],[231,7,231,8],[232,3,232,4],[232,5,232,6],[232,7,232,8],[236,7,236,8],[233,3,233,4],[233,5,233,6],[233,7,233,8],[234,3,234,4],[234,5,234,6],[234,7,234,8],[235,3,235,4],[235,5,235,6],[235,7,235,8],[236,3,236,4],[236,5,236,6],[239,7,239,8],[237,3,237,4],[237,5,237,6],[237,7,237,8],[230,3,230,4],[230,5,230,6],[230,7,230,8],[206,3,206,4],[206,5,206,6],[206,7,206,8],[207,3,207,4],[207,5,207,6],[227,3,227,4],[227,5,227,6],[227,7,227,8],[228,3,228,4],[228,5,228,6],[228,7,228,8],[221,3,221,4],[221,5,221,6],[221,7,221,8],[222,3,222,4],[222,5,222,6],[222,7,222,8],[215,3,215,4],[204,3,204,4],[204,5,204,6],[204,7,204,8],[205,3,205,4],[205,5,205,6],[205,7,205,8],[202,3,202,4],[202,5,202,6],[202,7,202,8],[203,3,203,4],[203,5,203,6],[203,7,203,8],[201,0,201,8],[152,3,152,4],[152,5,152,6],[152,7,152,8],[154,3,154,4],[154,5,154,6],[154,7,154,8],[195,0,195,8],[196,1,196,4],[198,1,198,4],[192,1,192,4],[158,0,158,8],[160,1,160,4],[159,0,159,8],[173,0,173,8],[174,0,174,8],[175,1,175,4],[197,1,197,4],[156,5,156,6],[156,7,156,8],[155,3,155,4],[155,5,155,6],[155,7,155,8],[137,5,137,6],[137,7,137,8],[138,3,138,4],[138,5,138,6],[138,7,138,8],[135,3,135,4],[135,5,135,6],[135,7,135,8],[136,3,136,4],[136,5,136,6],[136,7,136,8],[133,3,133,4],[133,5,133,6],[133,7,133,8],[134,3,134,4],[134,5,134,6],[134,7,134,8],[129,5,129,6],[129,7,129,8],[131,0,131,8],[132,3,132,4],[132,5,132,6],[132,7,132,8],[128,3,128,4],[128,5,128,6],[128,7,128,8],[124,3,124,4],[124,5,124,6],[124,7,124,8],[125,3,125,4],[125,5,125,6],[125,7,125,8],[126,3,126,4],[126,5,126,6],[126,7,126,8],[127,3,127,4],[127,5,127,6],[127,7,127,8],[120,3,120,4],[120,5,120,6],[120,7,120,8],[121,5,121,6],[121,7,121,8],[123,0,123,8],[118,3,118,4],[118,5,118,6],[118,7,118,8],[119,3,119,4],[119,5,119,6],[119,7,119,8],[114,5,114,6],[114,7,114,8],[116,0,116,8],[117,3,117,4],[117,5,117,6],[117,7,117,8],[112,3,112,4],[112,5,112,6],[112,7,112,8],[113,3,113,4],[113,5,113,6],[113,7,113,8],[110,3,110,4],[110,5,110,6],[110,7,110,8],[111,3,111,4],[111,5,111,6],[111,7,111,8],[108,3,108,4],[108,5,108,6],[108,7,108,8],[109,3,109,4],[109,5,109,6],[109,7,109,8],[99,3,99,4],[99,5,99,6],[99,7,99,8],[100,5,100,6],[100,7,100,8],[107,0,107,8],[97,3,97,4],[97,5,97,6],[97,7,97,8],[98,3,98,4],[98,5,98,6],[98,7,98,8],[95,3,95,4],[95,5,95,6],[95,7,95,8],[96,3,96,4],[96,5,96,6],[96,7,96,8],[62,3,62,4],[62,5,62,6],[62,7,62,8],[63,5,63,6],[63,7,63,8],[94,0,94,8],[70,0,70,8],[71,3,71,4],[71,5,71,6],[71,7,71,8],[72,3,72,4],[72,5,72,6],[72,7,72,8],[73,3,73,4],[73,5,73,6],[73,7,73,8],[74,3,74,4],[74,5,74,6],[60,3,60,4],[60,5,60,6],[60,7,60,8],[61,3,61,4],[61,5,61,6],[61,7,61,8],[51,5,51,6],[51,7,51,8],[58,0,58,8],[59,3,59,4],[59,5,59,6],[59,7,59,8],[49,3,49,4],[49,5,49,6],[49,7,49,8],[50,3,50,4],[50,5,50,6],[50,7,50,8],[30,0,30,8],[46,0,46,8],[47,3,47,4],[47,5,47,6],[47,7,47,8],[48,3,48,4],[48,5,48,6],[48,7,48,8],[26,3,26,4],[26,5,26,6],[26,7,26,8],[27,3,27,4],[27,5,27,6],[27,7,27,8],[24,3,24,4],[24,5,24,6],[24,7,24,8],[25,3,25,4],[25,5,25,6],[25,7,25,8],[22,3,22,4],[22,5,22,6],[22,7,22,8],[23,3,23,4],[23,5,23,6],[23,7,23,8],[20,3,20,4],[20,5,20,6],[20,7,20,8],[21,3,21,4],[21,5,21,6],[21,7,21,8],[18,3,18,4],[18,5,18,6],[18,7,18,8],[19,3,19,4],[19,5,19,6],[19,7,19,8],[16,3,16,4],[16,5,16,6],[16,7,16,8],[17,3,17,4],[17,5,17,6],[17,7,17,8],[14,3,14,4],[14,5,14,6],[14,7,14,8],[15,3,15,4],[15,5,15,6],[15,7,15,8],[12,3,12,4],[12,5,12,6],[12,7,12,8],[13,3,13,4],[13,5,13,6],[13,7,13,8],[10,3,10,4],[10,5,10,6],[10,7,10,8],[11,3,11,4],[11,5,11,6],[11,7,11,8],[8,3,8,4],[8,5,8,6],[8,7,8,8],[9,3,9,4],[9,5,9,6],[9,7,9,8],[7,3,7,4],[7,5,7,6],[7,7,7,8],[4,3,4,4],[4,5,4,6],[4,7,4,8],[5,3,5,4],[5,5,5,6],[5,7,5,8],[0,0,0,8],[1,0,1,8],[2,3,2,4],[2,5,2,6],[2,7,2,8],[3,3,3,4],[3,5,3,6],[3,7,3,8],[6,3,6,4],[6,5,6,6],[6,7,6,8]]}
[]
["parcela fixa da administração local \n(mão de obra)"]
["Código","Discriminação ","Unidade"," Quantidade ",null,"Custo Unitário (R$)",null," Custo Total (R$)"]
[null,"Mão de Obra"]
[null,"Gerência Técnica"]
[null,"Geral"]
["P9955","Engenheiro chefe","mês",0.5,null,null,null,{"$f":"F7*D7","v":0}]
["P9840","Encarregado geral","mês",0.5,null,null,null,{"$f":"F8*D8","v":0}]
["P9897","Técnico de meio ambiente","mês",0,null,null,null,{"$f":"F9*D9","v":0}]
["P9948","Motorista","mês",0,null,null,null,{"$f":"F10*D10","v":0}]
["P9878","Secretária","mês",0,null,null,null,{"$f":"F11*D11","v":0}]
[{"$nulls":5},"Subtotal do Item 1.1",null,{"$f":"SUM(H7:I11)","v":0}]
[null,"Auxiliar"]
["P9946","Engenheiro auxiliar","mês",1,null,null,null,{"$f":"D14*F14","v":0}]
["P9903","Auxiliar técnico","mês",0,null,null,null,{"$f":"D15*F15","v":0}]
[{"$nulls":5},"Subtotal do Item 1.2",null,{"$f":"SUM(H14:I15)","v":0}]
[null,"Gerência Administrativa"]
[null,"Geral"]
["P9883","Chefe do setor administrativo","mês",1,null,null,null,{"$f":"F19*D19","v":0}]
["P9809","Encarregado administrativo","mês",0,null,null,null,{"$f":"F20*D20","v":0}]
["P9896","Porteiro","mês",0,null,null,null,{"$f":"F21*D21","v":0}]
["P9827","Vigia","mês",0,null,null,null,{"$f":"F22*D22","v":0}]
["P9948","Motorista","mês",0,null,null,null,{"$f":"F23*D23","v":0}]
[{"$nulls":5},"Subtotal do Item 1.3",null,{"$f":"SUM(H19:I23)","v":0}]
[null,"Auxiliar"]
["P9806","Auxiliar administrativo","mês",1,null,null,null,{"$f":"F26*D26","v":0}]
["P9842","Faxineiro","mês",0,null,null,null,{"$f":"F27*D27","v":0}]
[{"$nulls":5},"Subtotal do Item 1.4",null,{"$f":"SUM(H26:I27)","v":0}]
[{"$nulls":7},"Total da Mão de Obra da Parcela Fixa",{"$f":"H28+H24+H16+H12","v":0}]
[]
["parcela fixa da administração local \n(veículos)"]
["Código","Discriminação ","Unidade"," Quantidade ","Utilização Produtiva","Utilização Improdutiva","Custo Horário \nProdutivo (R$)","Custo Horário Improdutivo (R$)","Custo Total (R$)"]
[2,"Veículos"]
[null,"Gerência Técnica"]
["2.1","Geral"]
["E9093","Veículo Leve 53 kw","mês",1,44,176,null,null,{"$f":"((E36*G36)+(F36*H36))*D36","v":0}]
["E9560","Ônibus coletivo - 175 kw","mês",0,44,176,null,null,{"$f":"((E37*G37)+(F37*H37))*D37","v":0}]
[{"$nulls":7},"Subtotal do Item 2",{"$f":"SUM(I36:I37)","v":0}]
["2.2","Auxiliar"]
["E9093","Veículo Leve 53 kw","mês",0,44,176,null,null,{"$f":"((E40*G40)+(F40*H40))*D40","v":0}]
[{"$nulls":7},"Subtotal do Item 2",{"$f":"SUM(I40)","v":0}]
["2.3","Gerência Administrativa"]
["E9093","Veículo Leve 53 kw","mês",0,44,176,null,null,{"$f":"((E43*G43)+(F43*H43))*D43","v":0}]
[{"$nulls":7},"Subtotal do Item 2",{"$f":"I43","v":0}]
[{"$nulls":7},"Total dos Veículos da Parcela Fixa",{"$f":"I44+I41+I38","v":0}]
[]
["Composição de custo da equipe de produção de terraplenagem"]
["Código","Discriminação ","Unidade"," Quantidade ",null,"Custo Unitário (R$)",null," Custo Total (R$)"]
[null,"Equipe de Produção de Terraplenagem"]
["3.1","Mão de Obra"]
["P9884","Encarregado de produção ","mês",1,null,null,null,{"$f":"F51*D51","v":0}]
[{"$nulls":5},"Subtotal do Item 3.1",null,{"$f":"SUM(H51:H51)","v":0}]
["Código","Discriminação ","Unidade"," Quantidade ","Utilização Produtiva","Utilização Improdutiva","Custo Horário \nProdutivo (R$)","Custo Horário Improdutivo (R$)","Custo Total (R$)"]
["3.2","Veículos"]
["E9093","Veículo Leve 53 kw","mês",1,44,176,null,null,{"$f":"((E55*G55)+(F55*H55))*D55","v":0}]
[{"$nulls":7},"Subtotal do Item 3.2",{"$f":"SUM(I55:I55)","v":0}]
[{"$nulls":7},"Total da Equipe de Produção de Terraplenagem",{"$f":"I56+H52","v":0}]
[]
["Composição de custo da equipe de produção de pavimentação"]
["Código","Discriminação ","Unidade"," Quantidade ",null,"Custo Unitário (R$)",null," Custo Total (R$)"]
[null,"Equipe de Produção de Pavimentação"]
["3.1","Mão de Obra"]
["P9893","Encarregado de produção ","mês",1,null,null,null,{"$f":"F63*D63","v":0}]
[{"$nulls":5},"Subtotal do Item 3.1",null,{"$f":"SUM(H63:H63)","v":0}]
["Código","Discriminação ","Unidade"," Quantidade ","Utilização Produtiva","Utilização Improdutiva","Custo Horário \nProdutivo (R$)","Custo Horário Improdutivo (R$)","Custo Total (R$)"]
["3.2","Veículos"]
["E9093","Veículo Leve 53 kw","mês",1,44,176,null,null,{"$f":"((E67*G67)+(F67*H67))*D67","v":0}]
[{"$nulls":7},"Subtotal do Item 3.2",{"$f":"SUM(I67:I67)","v":0}]
[{"$nulls":7},"Total da Equipe de Produção de Pavimentação",{"$f":"I68+H64","v":0}]
[]
["Composição de custo da equipe de produção de drenagem"]
["Código","Discriminação ","Unidade"," Quantidade ",null,"Custo Unitário (R$)",null," Custo Total (R$)"]
[null,"Equipe de Produção de Pavimentação"]
["3.1","Mão de Obra"]
["P9893","Encarregado de produção ","mês",1,null,null,null,{"$f":"F75*D75","v":0}]
[{"$nulls":5},"Subtotal do Item 3.1",null,{"$f":"SUM(H75:H75)","v":0}]
["Código","Discriminação ","Unidade"," Quantidade ","Utilização Produtiva","Utilização Improdutiva","Custo Horário \nProdutivo (R$)","Custo Horário Improdutivo (R$)","Custo Total (R$)"]
["3.2","Veículos"]
["E9093","Veículo Leve 53 kw","mês",1,44,176,null,null,{"$f":"((E79*G79)+(F79*H79))*D79","v":0}]
[{"$nulls":7},"Subtotal do Item 3.2",{"$f":"SUM(I79:I79)","v":0}]
[{"$nulls":7},"Total da Equipe de Produção de Pavimentação",{"$f":"I80+H76","v":0}]
[]
["Composição de custo da equipe de produção de sinalização"]
["Código","Discriminação ","Unidade"," Quantidade ",null,"Custo Unitário (R$)",null," Custo Total (R$)"]
[null,"Equipe de Produção de Pavimentação"]
["3.1","Mão de Obra"]
["P9893","Encarregado de produção ","mês",1,null,null,null,{"$f":"F87*D87","v":0}]
[{"$nulls":5},"Subtotal do Item 3.1",null,{"$f":"SUM(H87:H87)","v":0}]
["Código","Discriminação ","Unidade"," Quantidade ","Utilização Produtiva","Utilização Improdutiva","Custo Horário \nProdutivo (R$)","Custo Horário Improdutivo (R$)","Custo Total (R$)"]
["3.2","Veículos"]
["E9093","Veículo Leve 53 kw","mês",1,44,176,null,null,{"$f":"((E91*G91)+(F91*H91))*D91","v":0}]
[{"$nulls":7},"Subtotal do Item 3.2",{"$f":"SUM(I91:I91)","v":0}]
[{"$nulls":7},"Total da Equipe de Produção de Pavimentação",{"$f":"I92+H88","v":0}]
[]
["Composição de custo da equipe topografia"]
["Código","Discriminação ","Unidade"," Quantidade ",null,"Custo Unitário (R$)",null," Custo Total (R$)"]
[null,"Equipe de Topografia"]
["3.1","Mão de Obra"]
["P9949","Topográfo","mês",1,null,null,null,{"$f":"F99*D99","v":0}]
["P9950","Auxiliar de topografia","mês",1,null,null,null,{"$f":"F100*D100","v":0}]
[{"$nulls":5},"Subtotal do Item 3.1",null,{"$f":"SUM(H99:I100)","v":0}]
["Código","Discriminação ","Unidade"," Quantidade ","Utilização Produtiva","Utilização Improdutiva","Custo Horário \nProdutivo (R$)","Custo Horário Improdutivo (R$)","Custo Total (R$)"]
["3.2","Veículos"]
["E9093","Veículo Leve 53 kw","mês",1,44,176,null,null,{"$f":"((E104*G104)+(F104*H104))*D104","v":0}]
[{"$nulls":7},"Subtotal do Item 3.2",{"$f":"SUM(I104:I104)","v":0}]
[{"$nulls":7},"Total da Equipe de Produção de Topografia",{"$f":"I105+H101","v":0}]
[]
["Composição de custo do setor de medicina e segurança do trabalho"]
["Código","Discriminação ","Unidade"," Quantidade ",null,"Custo Unitário (R$)",null," Custo Total (R$)"]
[4,"Setor de Medicina e Segurança do Trabalho"]
["P9876","Técnico de segurança do trabalho","mês",1,null,null,null,{"$f":"F111*D111","v":0}]
["P9864","Engenheiro de segurança do trabalho","mês",0,null,null,null,{"$f":"F112*D112","v":0}]
["P9851","Médico do trabalho","mês",0,null,null,null,{"$f":"F113*D113","v":0}]
["P9951","Médico de câmara hiperbárica","mês",0,null,null,null,{"$f":"F114*D114","v":0}]
[{"$nulls":5},"Subtotal do Item 4",null,{"$f":"SUM(H111:I114)","v":0}]
[]
["Parcela Variável - Composição de custo da equipe de frente de serviço"]
["Código","Discriminação ","Unidade"," Quantidade ",null,"Custo Unitário (R$)",null," Custo Total (R$)"]
[5,"Equipe de Frente de Serviço","equipexmês"]
["P9875","Encarregado de Turma","mês",1,null,null,null,{"$f":"F120*D120","v":0}]
["P9804","Apontador","mês",0.5,null,null,null,{"$f":"F121*D121","v":0}]
[{"$nulls":5},"Subtotal do Item 5",null,{"$f":"SUM(H120:I121)","v":0}]
[]
["Parcela Variável - Composição de custo da equipe de frente de serviço (Terraplenagem) - Somente Compactação "]
["Código","Discriminação ","Unidade"," Quantidade ",null,"Produção Horária \n(und/h)",null,"Efs"]
["5.1","Equipe de Frente de Serviço","equipexmês"]
[null,null,"mês",{"$nulls":4},{"$f":"(D127)/(F127*182.49)","v":{"$error":"#DIV/0!"}}]
[null,null,"mês",{"$nulls":4},{"$f":"(D128)/(F128*182.49)","v":{"$error":"#DIV/0!"}}]
[null,null,"mês",{"$nulls":4},{"$f":"(D129)/(F129*182.49)","v":{"$error":"#DIV/0!"}}]
[{"$nulls":5},"Total de Equipes para Terraplenagem",null,{"$f":"SUM(H129:I129)","v":{"$error":"#DIV/0!"}}]
[]
["Parcela Variável - Composição de custo da acompanhamento das frentes de serviço de pavimentação"]
["Código","Discriminação ","Unidade"," Quantidade ",null,"Produção Horária \n(und/h)",null,"Efs"]
["5.2","Equipe de Frente de Serviço","equipe x mês"]
[4915637,"Capa selante - areia comercial","m²",210000,null,1350,null,{"$f":"(D135)/(F135*182.49)","v":0.85240591569705493}]
[4011370,"Tratamento superficial duplo com emulsão - brita comercial","m²",210000,null,361.93,null,{"$f":"(D136)/(F136*182.49)","v":3.1794766562346979}]
[4011352,"Imprimação com emulsão asfáltica","m²",210000,null,1038.46,null,1.1081293320792558]
[4011256,"Base estabilizada granulometricamente com mistura solo brita (70% - 30%) na pista com material de jazida e brita comercial","m³",31500,null,150.88,null,1.1440363065260712]
[4011233,"Sub-base estabilizada granulometricamente com mistura solo brita (70% - 30%) na pista com material de jazida e brita comercial","m³",31500,null,150.88,null,1.1440363065260712]
[4011209,"Regularização do subleito","m²",210000,null,1121.33,null,1.0262349051492639]
[{"$nulls":5},"Total de Equipes para Pavimentação",null,{"$f":"SUM(H135:I140)","v":8.4543194222124143}]
[]
["Parcela Variável - Composição de custo da acompanhamento das frentes de serviço de drenagem"]
["Código","Discriminação ","Unidade"," Quantidade ",null,"Efsdu",null,"Efs"]
["5.3","Frentes de Serviço para Drenagem","equipe x mês"]
[2003943,"Meio-fio de concreto - MFC 03 moldado no local com extrusora e concreto usinado - areia e brita comerciais","m",{"$f":"'RESUMO MODULO TOTAL'!H39","v":54000},null,2.1000000000000001E-4,null,{"$f":"D146*F146","v":11.34}]
[2003947,"Meio-fio de concreto - MFC 05 moldado no local com extrusora e concreto usinado - areia e brita comerciais","m",{"$f":"'RESUMO MODULO TOTAL'!H40","v":6000},null,2.1000000000000001E-4,null,{"$f":"D147*F147","v":1.26}]
[{"$nulls":5},"Total de Equipes para Drenagem",null,{"$f":"SUM(H146:I147)","v":12.6}]
[]
["Parcela Variável - Composição de custo da acompanhamento das frentes de serviço de sinalização"]
["Código","Discriminação ","Unidade"," Quantidade ",null,"Produção Horária (und/h)",null,"Efs"]
["5.4","Frentes de Serviço para Sinalização","equipe x mês"]
[5213440,"Placa de regulamentação em aço D = 0,60 m - película retrorrefletiva tipo I + SI - fornecimento e implantação","Unidade",90,null,3,null,{"$f":"0.2*((D153)/(F153*182.49))","v":3.287851389117212E-2}]
[5213464,"Placa de advertência em aço, lado de 0,60 m - película retrorrefletiva tipo I + SI - fornecimento e implantação","Unidade",90,null,3,null,{"$f":"0.2*((D154)/(F154*182.49))","v":3.287851389117212E-2}]
[5213863,"Suporte metálico galvanizado para placa de advertência ou regulamentação - lado ou diâmetro de 0,60 m - fornecimento e implantação","Unidade",180,null,4.0999999999999996,null,{"$f":"0.2*((D155)/(F155*182.49))","v":4.8114898377325056E-2}]
[5213400,"Pintura de faixa com tinta acrílica - espessura de 0,4 mm","m²",7200,null,177.07,null,4.4563411836456256E-2]
[{"$nulls":5},"Total de Equipes para Sinalização",null,{"$f":"SUM(H153:I156)","v":0.15843533799612555},null,{"$f":"H157+H148","v":12.758435337996126}]
[]
["3. PARCELA VARIÁVEL - EQUIPE DE CONTROLE TECNOLÓGICO"]
["LABORATÓRIO DE SOLOS"]
["Item","Discriminação",null,null,null,"Unidade","Quantidade","Custo Unitário (R$)","Custo Total (R$)"]
[null,"Laboratório de Solos (equipe x mês)"]
[null,"Mão de Obra"]
["P9858","Laboratorista",null,null,null,"func./mês",1,null,{"$f":"TRUNC(G164*H164,2)","v":0}]
["P9833","Auxiliar de laboratório",null,null,null,"func./mês",1,null,{"$f":"TRUNC(G165*H165,2)","v":0}]
[{"$nulls":7},"Subtotal do Item",{"$f":"SUM(I164:I165)","v":0}]
["Item","Discriminação","Und","Quant","Utilização Produtiva","Utilização Improdutiva","Horário Produtivo (R$)","Horário Improdutivo (R$)","Total (R$)"]
[null,"Equipe de Controle Tecnológico"]
[null,"Veículos"]
["E9125","Van furgão a diesel - 93 kW","veic./mês",0.5,44,176,null,null,{"$f":"D170*((E170*G170)+(F170*H170))","v":0}]
[{"$nulls":7},"Subtotal do Item",{"$f":"SUM(I170:I170)","v":0}]
[{"$nulls":7},"Total da Equipe do Laboratório de Solos",{"$f":"I166+I171","v":0}]
[]
["3. PARCELA VARIÁVEL - EQUIPE DE CONTROLE TECNOLÓGICO"]
["LABORATÓRIO DE ASFALTOS"]
["Item","Discriminação",null,null,null,"Unidade","Quantidade","Custo Unitário (R$)","Custo Total (R$)"]
[null,"Laboratório de Solos (equipe x mês)"]
[null,"Mão de Obra"]
["P9858","Laboratorista",null,null,null,"func./mês",1,null,{"$f":"TRUNC(G179*H179,2)","v":0}]
["P9833","Auxiliar de laboratório",null,null,null,"func./mês",1,null,{"$f":"TRUNC(G180*H180,2)","v":0}]
[{"$nulls":7},"Subtotal do Item",{"$f":"SUM(I179:I180)","v":0}]
["Item","Discriminação","Und","Quant","Utilização Produtiva","Utilização Improdutiva","Horário Produtivo (R$)","Horário Improdutivo (R$)","Total (R$)"]
[null,"Equipe de Controle Tecnológico"]
[null,"Veículos"]
["E9125","Van furgão a diesel - 93 kW","veic./mês",0.5,44,176,null,null,{"$f":"D185*((E185*G185)+(F185*H185))","v":0}]
[{"$nulls":7},"Subtotal do Item",{"$f":"SUM(I185:I185)","v":0}]
[{"$nulls":7},"Total da Equipe do Laboratório de Asfaltos",{"$f":"I181+I186","v":0}]
[]
["Equipes de laboratório de solos para pavimentação"]
["Item","Discriminação",null,null,null,"Und","Quant","QE","Els"]
[4011268,"Base estabilizada granulometricamente com mistura solo brita (70% - 30%) em usina com material de jazida e brita comercial","m³",288.47000000000003,0,"m³",{"$f":"'RESUMO MODULO TOTAL'!H25","v":31500},21900,{"$f":"G191/H191","v":1.4383561643835616}]
[4011228,"Sub-base estabilizada granulometricamente com mistura de solos na pista com material de jazida","m³",288.47000000000003,0,"m³",{"$f":"'RESUMO MODULO TOTAL'!H26","v":31500},21900,{"$f":"G192/H192","v":1.4383561643835616}]
[4011209,"Regularização do subleito","m²",120.72,0,"m²",{"$f":"'RESUMO MODULO TOTAL'!H27","v":210000},21900,{"$f":"G193/H193","v":9.5890410958904102}]
[{"$nulls":7},"Total de equipes de Laboratório de Solos para Pavimentação",{"$f":"SUM(I191:I193)","v":12.465753424657533}]
[]
["Equipes de laboratório de Asfalto"]
["Item","Discriminação",null,null,null,"Und","Quant","QE","Ela"]
[4011370,"Tratamento superficial duplo com emulsão - brita comercial",null,null,null,"m²",{"$f":"'RESUMO MODULO TOTAL'!H23","v":210000},123000,{"$f":"IF(H198=\"\",0,G198/H198)","v":1.7073170731707317}]
[4011352,"Imprimação com emulsão asfáltica",null,null,null,"m²",{"$f":"'RESUMO MODULO TOTAL'!H24","v":210000},1610000,{"$f":"G199/H199","v":0.13043478260869565}]
[{"$nulls":7},"Total de equipes de Laboratório de Asfaltos",{"$f":"SUM(I198:I199)","v":1.8377518557794272}]
[]
["manutenção do canteiro de obras e acampamentos"]
["Código","Discriminação ","Unidade"," Quantidade ",null,"Custo Unitário (R$)",null," Custo Total (R$)"]
[null,"Manutenção do Canteiro de Obras e Acampamentos"]
["6.1","Mão de Obra"]
["P9952","Pedreiro","mês",0,null,null,null,{"$f":"F206*D206","v":0}]
["P9954","Servente","mês",0,null,null,null,{"$f":"F207*D207","v":0}]
["P9953","Eletricista","mês",0,null,null,null,{"$f":"F208*D208","v":0}]
[{"$nulls":5},"Subtotal do Item 6.1",null,{"$f":"SUM(H206:I208)","v":0}]
[]
["Código","Discriminação ","Unidade"," Quantidade ",null,"Custo Produtivo (R$)",null," Custo Total (R$)"]
["6.2","Equipamentos"]
[null,"Caminhão guindauto de 6 toneladas","h/mês",0,null,null,null,{"$f":"F213*D213","v":0}]
[null,"Caminhão tanque de 8.000 litros","h/mês",0,null,null,null,{"$f":"F214*D214","v":0}]
["E9524","Motoniveladora","h/mês",0,null,null,null,{"$f":"F215*D215","v":0}]
[{"$nulls":5},"Subtotal do Item 6.2",null,{"$f":"SUM(H213:I215)","v":0}]
[{"$nulls":6},"Total da Manutenção do Canteiro de Obras e Acampamentos",{"$f":"H216+H209","v":0}]
[]
[]
[]
["Resumo das parcelas de administração local"]
["Código","Discriminação ","Unidade"," Quantidade ",null,"Custo Unitário (R$)",null," Custo Total (R$)"]
[null,"Parcela Fixa"]
[null,"Mão de Obra","mês",5,null,{"$f":"H12+H16+H24+H28","v":0},null,{"$f":"F224*D224","v":0}]
[null,"Veículos","mês",5,null,{"$f":"I45","v":0},null,{"$f":"F225*D225","v":0}]
[{"$nulls":5},"Subtotal do Item 1",null,{"$f":"SUM(H224:I225)","v":0}]
[null,"Parcela Vinculada"]
[null,"Equipe de produção de terraplenagem","mês",4,null,{"$f":"I57","v":0},null,{"$f":"F228*D228","v":0}]
[null,"Equipe de produção de pavimentação","mês",6,null,{"$f":"I69","v":0},null,0]
[null,"Equipe de produção de drenagem","mês",2,null,{"$f":"I81","v":0},null,0]
[null,"Equipe de produção de sinalização","mês",1,null,{"$f":"I93","v":0},null,0]
[null,"Equipe de topografia","mês",10,null,{"$f":"I106","v":0},null,0]
[null,"Equipe de medicina e segurança do trabalho","mês",10,null,{"$f":"H115","v":0},null,0]
[null,"Técnicos especializados","mês",0,null,null,null,0]
[{"$nulls":5},"Subtotal do Item 2",null,{"$f":"SUM(H228:I234)","v":0}]
[null,"Parcela Variável"]
[null,"Acompanhamento da Terraplenagem","equipe x mês","-",null,{"$f":"$H$122","v":0},null,"-"]
[null,"Acompanhamento da Pavimentação","equipe x mês",{"$f":"H141","v":8.4543194222124143},null,{"$f":"$H$122","v":0},null,{"$f":"F238*D238","v":0}]
[null,"Acompanhamento da Drenagem","equipe x mês",{"$f":"H148","v":12.6},null,0,null,{"$f":"F239*D239","v":0}]
[null,"Acompanhamento da Sinalização","equipe x mês",{"$f":"H157","v":0.15843533799612555},null,0,null,{"$f":"F240*D240","v":0}]
[null,"Laboratório de Solos","equipe x mês",{"$f":"I194","v":12.465753424657533},null,{"$f":"I172","v":0},null,{"$f":"F241*D241","v":0}]
[null,"Laboratório de asfaltos","equipe x mês",{"$f":"I200","v":1.8377518557794272},null,{"$f":"I187","v":0},null,{"$f":"F242*D242","v":0}]
[{"$nulls":5},"Subtotal do Item 3",null,{"$f":"SUM(H237:I242)","v":0}]
[null,"Manutenção dos Canteiros de Obras e Acampamentos"]
[null,"Equipe de manutenção","mês",0,null,{"$f":"H217","v":0},null,{"$f":"F245*D245","v":0}]
[{"$nulls":5},"Subtotal do Item 4",null,{"$f":"SUM(H245:I245)","v":0}]
[{"$nulls":6},"Subtotal",{"$f":"H246+H243+H235+H226","v":0}]
[null,"Despesas Diversas","%",0.05,null,"-",null,{"$f":"D248*H247","v":0}]
[{"$nulls":5},"TOTAL",null,{"$f":"H247+H248","v":0},null,{"$f":"H249","v":0}]
[{"$nulls":5},"BDI",null,null,{"$f":"H249*BDI!C17","v":0}]
[{"$nulls":5},"TOTAL COM BDI",null,null,{"$f":"I250+H249","v":0}]

{"sheet":"Projeto Executivo","index":7,"n_rows":26,"n_cols":7,"rows_kept":26,"cut":false,"hidden":false,"merged":[[0,0,0,6],[1,0,1,6],[23,0,23,1],[24,0,24,1],[2,0,2,1],[2,2,3,4],[13,0,13,1],[17,0,17,1],[22,0,22,1]]}
[]
["COMPOSIÇAO PREÇO PROJETO EXECUTIVO"]
["DISCRIMINAÇAO",{"$nulls":4},"Pr. Unit.","Pr. Total"]
[]
["A· EOUIPE TECNICA",{"$nulls":5},{"$f":"G6+G9","v":0}]
[null,"A. 1 - Pessoal de Nível Superior","Unidade","Quantitativo","SICRO e Rel.Custos Gerais",null,{"$f":"G7+G8","v":0}]
[null,"Engenheiro","mês",0.4,"P9812",null,{"$f":"F7*D7","v":0}]
[null,"Topógrafo","mês",0.25,"P9949",null,{"$f":"F8*D8","v":0}]
[null,"A.2 - Pessoal de Nível Técnico e Aux.",{"$nulls":4},{"$f":"G10+G11","v":0}]
[null,"Auxiliar de topógrafo","mês",0.125,"P9950",null,{"$f":"F10*D10","v":0}]
[null,"Auxiliar Técnico/Assistente de Engenharia ","mês",0.5,"P9903",null,{"$f":"F11*D11","v":0}]
["B - ENCARGOS SOCIAIS",{"$nulls":5},{"$f":"G13","v":0}]
[null,"Taxas 108,84%","JÁ INCLUSAS EM \"A\""]
["C - DESPESAS GERAIS",{"$nulls":5},{"$f":"G15+G17+G16","v":0}]
[null,"C.1 - MATERIAIS DE CONSUMO","Estimativa % como referência de equipe técnica com encargos sociais ",0.03,null,null,{"$f":"F15*D15","v":0}]
[null,"C.2 - VEÍCULOS (Veículo leve picape 4 x 4 com capacidade de 1,10 t - 147 kW)","h",40,"E9684",null,{"$f":"F16*D16","v":0}]
[null,"C.3 - Estação total eletrônica com alcance máximo de 3.000 m","h",75.213265122958177,"E9553",null,{"$f":"F17*D17","v":0}]
["D - ENSAIOS",{"$nulls":5},{"$f":"SUM(G19:G22)","v":0}]
[null,"Laboratorista","mês",0.25,"P9858",null,{"$f":"F19*D19","v":0}]
[null,"Auxiliar de Laboratório","mês",0.125,"P9833",null,{"$f":"F20*D20","v":0}]
[null,"Laboratório de solos","mês",0.125,"B8957",null,{"$f":"F21*D21","v":0}]
[null,"Laboratório de asfalto","mês",0.125,"B8955",null,{"$f":"F22*D22","v":0}]
["I - SOMA (A+B+C+D)",{"$nulls":5},{"$f":"G5+G12+G14+G18","v":0}]
["II - CUSTOS ADMINISTRATIVOS",null,null,{"$f":"BDI!C17/100","v":0},null,null,{"$f":"D24*G23","v":0}]
[" TOTAL",{"$nulls":5},{"$f":"G23+G24","v":0}]
[{"$nulls":5},"Por m²:",{"$f":"G25/210000","v":0}]

{"sheet":"BDI","index":8,"n_rows":36,"n_cols":9,"rows_kept":36,"cut":false,"hidden":false,"merged":[[75,0,75,2],[5,0,5,2],[4,0,4,2],[72,0,72,1],[4,4,4,6],[5,4,5,6],[73,0,73,1]]}
[{"$nulls":8},"https://www.gov.br/dnit/pt-br/assuntos/planejamento-e-pesquisa/custos-e-pagamentos/custos-e-pagamentos-dnit/sistemas-de-custos/bdi/bdi-2"]
["OBRA: ",{"$nulls":7},"Utilizar o período de vigência da data de elaboração do orçamento."]
["LOCAL: "]
["DATA BASE: "]
["DETALHAMENTO DO BDI  - SEM DESONERAÇÃO",null,null,null,"DETALHAMENTO DO BDI DIFERENCIADO  - SEM DESONERAÇÃO"]
[{"$f":"'RESUMO MODULO TOTAL'!$C$5","v":"Execução De Serviços De Pavimentação Com Tratamento Superficial Duplo Em Vias De Municípios Diversos Inseridos Na Área De Atuação Da Codevasf, No Estado De Goiás "},null,null,null,{"$f":"'RESUMO MODULO TOTAL'!$C$5","v":"Execução De Serviços De Pavimentação Com Tratamento Superficial Duplo Em Vias De Municípios Diversos Inseridos Na Área De Atuação Da Codevasf, No Estado De Goiás "}]
["DESCRIÇÃO DOS SERVIÇOS","PREÇO DE VENDA (%)","CUSTO DIRETO (%)",null,"DESCRIÇÃO DOS SERVIÇOS","PREÇO DE VENDA (%)","CUSTO DIRETO (%)"]
["Administração Central",{"$f":"C8/(1+C$17/100)","v":0},null,null,"ADMINISTRAÇÃO CENTRAL",null,3.7699999999999997E-2]
[{"$f":"100*((1+A23)^(1/12)-1)","v":0},{"$f":"C9/(1+C$17/100)","v":0},{"$f":"(C17-(C8+C10+C11+C12+C13+C14+C15+C16))","v":0},null,"DESPESA FINANCEIRAS",1.0200000000000001E-2]
["Seguros e Garantias Contratuais",null,{"$f":"B10*(1+C$17/100)","v":0},null,"SEGUROS E GARANTIAS CONTRATUAIS",2.5000000000000001E-3]
["Riscos",null,{"$f":"B11*(1+C$17/100)","v":0},null,"RISCOS",5.0000000000000001E-3]
["Lucro Operacional",{"$f":"C12/(1+C$17/100)","v":0},null,null,"LUCRO OPERACIONAL",null,0.05]
["PIS",null,{"$f":"B13*(1+C$17/100)","v":0},null,"PIS",6.4999999999999997E-3]
["COFINS",null,{"$f":"B14*(1+C$17/100)","v":0},null,"COFINS",0.03]
["ISSQN",null,{"$f":"B15*(1+C$17/100)","v":0},null,"ISSQN",0]
["Contribuição Previdenciaria",null,{"$f":"B16*(1+C$17/100)","v":0},null,"Contribuição Previdenciaria",0]
[null,"BDI",{"$f":"TRUNC(((1+(C8/100+C12/100-(A9/100*C12/100)))/(1-(A9/100+B11/100+B10/100+B13/100+B14/100+B15/100+B16/100))-1)*100,2)","v":0},null,null,"BDI",{"$f":"ROUND((1+(G8+G12))/(1-(F9+F10+F11+F13+F14+F15+F16))-1,4)","v":0.15}]
[]
["Observação: O percentual de ISSQN aqui utilizado consiste apenas em um referencial médio.",null,null,null,"Fonte da composição, valores de referência e fórmula do BDI:  Instrução Normativa N° 62/DNIT SEDE"]
[null," O valor real do ISSQN a ser adotado deve ser aquele proveniente das alíquotas dos municípios situados na área de "]
[null,"influência das obras."]
["DF = [(1+SELIC)^(1/12)-1] sobre (PV - Lucro), o que resulta em DF =  0,84% sobre (PV - Lucro)"]
{"$rows_empty":11}
["Desde 24 de maio de 2024"]
["262ª Reunião do Copom, o qual estabeleceu a alíquota da meta Selic no valor de 10,50% a.a."]
["Ofício-Circular nº 2699/2024 (SEI DNIT nº 17818943)"]

{"sheet":"ENC. SOCIAIS","index":9,"n_rows":91,"n_cols":12,"rows_kept":91,"cut":false,"hidden":false,"merged":[[35,11,36,15],[38,1,38,6],[45,1,45,6],[49,1,49,6],[50,1,50,2],[8,1,9,6],[10,1,10,6],[11,3,11,4],[11,5,11,6],[12,1,12,6],[15,1,15,6],[26,1,26,6],[13,1,14,2],[13,3,14,3],[13,4,14,4],[13,5,14,5],[13,6,14,6]]}
[]
[{"$nulls":11},"https://www.caixa.gov.br/poder-publico/modernizacao-gestao/sinapi/Paginas/default.aspx"]
[]
[]
[]
[null,"NOME DA CONCORRENTE:"]
[null,"EDITAL:"]
[null,"FOLHA:"]
[null,{"$f":"'RESUMO MODULO TOTAL'!$C$5","v":"Execução De Serviços De Pavimentação Com Tratamento Superficial Duplo Em Vias De Municípios Diversos Inseridos Na Área De Atuação Da Codevasf, No Estado De Goiás "}]
[]
[null,"DETALHAMENTO DOS ENCARGOS SOCIAIS (%)"]
[null,"VIGÊNCIA A PARTIR DE 12/2023",null,"COM DESONERAÇÃO",null,"SEM DESONERAÇÃO"]
[]
[null,null,null,"HORISTA","MENSALISTA","HORISTA","MENSALISTA"]
[]
[null,"GRUPO A"]
[null,"A1","INSS",0,0,20,20]
[null,"A2","SESI",1.5,1.5,1.5,1.5]
[null,"A3","SENAI",1,1,1,1]
[null,"A4","INCRA",0.2,0.2,0.2,0.2]
[null,"A5","SEBRAE",0.6,0.6,0.6,0.6]
[null,"A6","Salário Educação",2.5,2.5,2.5,2.5]
[null,"A7","Seguro Contra Acidentes de Trabalho",3,3,3,3]
[null,"A8","FGTS",8,8,8,8]
[null,"A9","SECONCI",1,1,1,1]
[null,"A","Total",{"$f":"SUM(D17:D25)","v":17.8},{"$f":"SUM(E17:E25)","v":17.8},{"$f":"SUM(F17:F25)","v":37.799999999999997},{"$f":"SUM(G17:G25)","v":37.799999999999997}]
[null,"GRUPO B"]
[null,"B1","Repouso Semanal Remunerado",17.809999999999999,"-",17.809999999999999,"-"]
[null,"B2","Feriados",3.7,"-",3.7,"-"]
[null,"B3","Auxílio-enfermidade",0.86,0.64,0.86,0.64]
[null,"B4","13° salário",11.18,8.33,11.18,8.33]
[null,"B5","Licença-paternidade",0.06,0.04,0.06,0.04]
[null,"B6","Faltas Justificadas",0.75,0.56000000000000005,0.75,0.56000000000000005]
[null,"B7","Dias de chuva",1.36,"-",1.36,"-"]
[null,"B8","Auxílio Acidente de Trabalho",0.1,0.08,0.1,0.08,{"$nulls":4},"https://www.caixa.gov.br/Downloads/sinapi-composicoes-aferidas-sumario-composicoes-aferidas/SUMARIO_DE_PUBLICACOES_E_DOCUMENTACAO_DO_SINAPI.pdf"]
[null,"B9","Férias Gozadas",0,0,0,0,{"$nulls":4},"PDF INTERATIVO"]
[null,"B10","Salário Maternidade",0.04,0.03,0.04,0.03]
[null,"B","Total ",{"$f":"SUM(D28:D37)","v":35.86},{"$f":"SUM(E28:E37)","v":9.68},{"$f":"SUM(F28:F37)","v":35.86},{"$f":"SUM(G28:G37)","v":9.68}]
[null,"GRUPO C"]
[null,"C1","Aviso Prévio Indenizado",5.91,4.4000000000000004,5.91,4.4000000000000004]
[null,"C2","Aviso Prévio Trabalhado",0.14000000000000001,0.1,0.14000000000000001,0.1]
[null,"C3","Férias Indenizadas",12.02,8.9600000000000009,12.02,8.9600000000000009]
[null,"C4","Depósito Rescisão Sem Justa Causa",2.52,1.88,2.52,1.88]
[null,"C5","Indenização Adicional",0.5,0.37,0.5,0.37]
[null,"C","Total ",{"$f":"SUM(D40:D44)","v":21.09},{"$f":"SUM(E40:E44)","v":15.709999999999999},{"$f":"SUM(F40:F44)","v":21.09},{"$f":"SUM(G40:G44)","v":15.709999999999999}]
[null,"GRUPO D"]
[null,"D1","Reincidência de A sobre B",6.38,1.72,13.56,3.66]
[null,"D2","Reincidência de Grupo A sobre Aviso Prévio Trabalhado e Reincidência do FGTS sobre Aviso Prévio Indenizado",0.5,0.37,0.53,0.39]
[null,"D","Total",{"$f":"SUM(D47:D48)","v":6.88},{"$f":"SUM(E47:E48)","v":2.09},{"$f":"SUM(F47:F48)","v":14.09},{"$f":"SUM(G47:G48)","v":4.05}]
[]
[null,"T O T A L (%)",null,{"$f":"D26+D38+D45+D49","v":81.63},{"$f":"E26+E38+E45+E49","v":45.28},{"$f":"F26+F38+F45+F49","v":108.84},{"$f":"G26+G38+G45+G49","v":67.239999999999995}]
{"$rows_empty":39}
[{"$nulls":11},"https://www.caixa.gov.br/Downloads/sinapi-manual-de-metodologias-e-conceitos/Livro_SINAPI_Calculos_Parametros.pdf"]

{"sheet":" Consumo Material Betuminoso","index":10,"n_rows":15,"n_cols":19,"rows_kept":15,"cut":false,"hidden":false,"merged":[[15,1,15,15],[17,1,17,15],[6,1,6,15],[9,1,9,15],[11,1,11,15],[13,1,13,15],[0,1,1,15],[2,1,3,15],[4,1,4,2],[4,3,4,11],[4,12,4,15]]}
[]
[]
[null,"CONSUMO DO MATERIAL BETUMINOSO TOTAL"]
[]
[null,"TRECHO",null,"QUANTIDADES",{"$nulls":8},"MAT. BETUMINOSO"]
[null,"Inicio           (km)","Fim              (km)","Extensão     (m)","Largura       (m)","Espess.       (m)","Área            (m2)","Volume              (m3)","Densidade (t/m3)","Massa            (t)","Unid","Quant.","Tipo","Consumo Taxa de Aplicação","Unid. ","Quant."]
[{"$f":"'RESUMO MODULO TOTAL'!C24","v":4011352},"IMPRIMAÇÃO"]
[{"$nulls":5},1,210000,210000,{"$nulls":4},"EAI",{"$f":"Q8*1000","v":1.3},"t",{"$f":"ROUND((G8*N8)/1000,2)","v":273},1.2999999999999999E-3,"t/m²"]
[{"$nulls":5},1,null,{"$f":"G9*F9","v":0},{"$nulls":4},"CM-30",{"$f":"Q9*1000","v":1.2},"t",{"$f":"ROUND((G9*N9)/1000,2)","v":0},1.1999999999999999E-3,"t/m²"]
[{"$f":"'RESUMO MODULO TOTAL'!C22","v":4915637},"CAPA SELANTE"]
[{"$nulls":5},1,210000,210000,{"$nulls":4},"RR-2C",{"$f":"Q11*1000","v":0.5},"t",{"$f":"ROUND((G11*N11)/1000,2)","v":105},5.0000000000000001E-4,"t/m²"]
[{"$f":"'RESUMO MODULO TOTAL'!C23","v":4011370},"TRATAMENTO SUPERFICIAL DUPLO - 1ª CAMADA"]
[{"$nulls":6},210000,{"$nulls":5},"RR-2C",{"$f":"ROUND(S13*Q13*1000,1)","v":2.2000000000000002},"t",{"$f":"ROUND((G13*N13)/1000,2)","v":462},3.7299999999999998E-3,"t/m²",0.6]
[null,"TRATAMENTO SUPERFICIAL DUPLO - 2ª CAMADA"]
[{"$nulls":6},210000,{"$nulls":5},"RR-2C",{"$f":"Q13*1000-N13","v":1.5299999999999998},"t",{"$f":"ROUND((G15*N15)/1000,2)","v":321.3}]

{"sheet":"Transp. EAI","index":11,"n_rows":92,"n_cols":34,"rows_kept":92,"cut":false,"hidden":false,"merged":[[10,3,13,3],[88,14,91,14],[73,14,76,14],[78,14,81,14],[83,14,86,14],[1,2,1,8],[4,4,4,5],[4,6,4,8],[4,12,6,12],[8,3,9,3],[8,4,8,8],[8,9,8,10],[8,22,8,23],[73,5,76,5],[78,5,81,5],[83,5,86,5],[88,5,91,5]]}
[]
[null,null,"MEMÓRIA DE CÁLCULO"]
[{"$nulls":5},"LEGENDA","ENTRADA DE DADOS","RESULTADO PARCIAL","RESULTADO FINAL"]
[]
[{"$nulls":4},"DADOS ANP",null,"ÍNDICE DE PAVIMENTAÇÃO DNIT",{"$nulls":5},"IMPOSTOS","COFINS"]
[{"$nulls":4},"TIPOLOGIA DO MATERIAL","EMULSÃO ASFÁLTICA PARA SERVIÇO DE IMPRIMAÇÃO","ÍNDICE INICIAL","2014-07-01",270.23700000000002,{"$nulls":4},"PIS",{"$nulls":14},"As empresas tributadas pelo Lucro Presumido pagam 0,65% de PIS e 3% de COFINS"]
[{"$nulls":4},"DATA ANP","2024-04-01","ÍNDICE FINAL","2024-04-01",567.09199999999998,{"$nulls":4}," ICMS",null,null,{"$f":"1-(O7/1)","v":1},{"$f":"1-(P7/1)","v":1},{"$f":"1-(Q7/1)","v":0},{"$nulls":9},"As empresas tributadas pelo Lucro Real pagam 1,65% de PIS e 7,60% de COFINS"]
[]
[null,null,"DATA-BASE","PRODUTOS","LOCALIDADES",{"$nulls":4},"CUSTO ANP (R$/Kg)",null,"CUSTO ANP","IMPOSTOS DO PRODUTO","CUSTO DO PRODUTO COM IMPOSTOS","DMT's","DMT's FLUVIAL","CUSTO DO TRANSPORTE RODOVIA PAVIMENTADA","CUSTO DO TRANSPORTE FLUVIAL","CUSTO DO TRANSPORTE TOTAL","ICMS","ATUALIZAÇÃO DO CUSTO DE TRANSPORTE","CUSTO DO TRANSPORTE RODOVIA PAVIMENTADA COM IMPOSTOS E ATUALIZAÇÃO MONETÁRIA","PEDÁGIO ",null,"TOTAL TRANSPORTE","AQUISIÇÃO DO PRODUTO","TOTAL GERAL \n(TRANSP + AQUISIÇÃO)",null,1,2,3]
[null,null,{"$f":"H7","v":"2024-04-01"},null,"REFINARIAS","ENDEREÇO","ESTADO","CIDADE","DESTINO","ESTADO","REGIÃO","R$/t","R$/t","R$/t","KM","KM","R$/t","R$/t","R$/t","R$/t","R$/t","R$/t","CUSTO ","R$/t","R$/t","R$/t","R$/t",null,"TOTAL GERAL ( TRANSP + AQUISIÇÃO)","TOTAL TRANSPORTE","AQUISIÇÃO DO PRODUTO"]
[null,{"$f":"AA11","v":{"$error":"#VALUE!"}},1,{"$f":"F6","v":"EMULSÃO ASFÁLTICA PARA SERVIÇO DE IMPRIMAÇÃO"},"'CENTRO OESTE ASFALTOS LTDA.","SETOR DE INFLAMÁVEIS, S/N TRECHO 02 - LOTE 1.100 - GUARÁ - CEP:71225-000","Distrito Federal","BRASÍLIA - DF","Goiânia - GO",null,null,{"$f":"IF(AND(J11=\"-\",K11=\"-\"),\"\",IF(AND(J11<>0,K11=\"-\"),J11*1000,IF(AND(J11=\"-\",K11<>0),K11*1000,IF(AND(J11<>0,K11<>0),J11*1000,\"\"))))","v":""},{"$f":"ROUND(((L11/(1-$O$5-$O$6-$O$7))-L11),2)","v":{"$error":"#VALUE!"}},{"$f":"L11+M11","v":{"$error":"#VALUE!"}},{"$f":"O74","v":454.5},null,{"$f":"ROUND((26.939+0.253*O11),2)","v":141.93},null,{"$f":"Q11+R11","v":141.93},{"$f":"TRUNC(S11*($O$7/(1-$O$7)),2)","v":0},{"$f":"TRUNC(IF($I$6=\"\",\"\",(($I$7-$I$6)/$I$6)*(S11+T11)),2)","v":155.9},{"$f":"S11+T11+U11","v":297.83000000000004},null,null,{"$f":"IF(AND(Q11=\"\",T11=\"\"),\"\",V11+X11)","v":297.83000000000004},{"$f":"IF(OR(L11=\"\",M11=\"\"),\"\",L11+M11)","v":{"$error":"#VALUE!"}},{"$f":"IF(OR(Y11=\"\",Z11=\"\"),\"\",Y11+Z11)","v":{"$error":"#VALUE!"}},null,{"$f":"AA11","v":{"$error":"#VALUE!"}},{"$f":"Y11","v":297.83000000000004},{"$f":"Z11","v":{"$error":"#VALUE!"}},null,null,{"$f":"IF(OR(G11=$D$32,G11=$D$33,G11=$D$35,G11=$D$41,G11=$D$25,G11=$D$21,G11=$D$17,G11=$D$30,G11=$D$20),\"NORDESTE\",IF(OR(G11=$D$16,G11=$D$18,G11=$D$19,G11=$D$29,G11=$D$37,G11=$D$38,G11=$D$42),\"NORTE\",IF(OR(G11=$D$22,G11=$D$24,G11=$D$26,G11=$D$27),\"CENTRO-OESTE\",IF(OR(G11=$D$40,G11=$D$34,G11=$D$28,G11=$D$23),\"SUDESTE\",IF(OR(G11=$D$39,G11=$D$31,G11=$D$36),\"SUL\",\"\")))))","v":"CENTRO-OESTE"}]
[null,{"$f":"AA12","v":{"$error":"#VALUE!"}},2,null,"STRATURA ASFALTOS S/A","AVENIDA PRESIDENTE WILSON, 08  - JUNDIAÍ - CEP:75115-100","Goiás","ANÁPOLIS - GO","Goiânia - GO",null,null,{"$f":"IF(AND(J12=\"-\",K12=\"-\"),\"\",IF(AND(J12<>0,K12=\"-\"),J12*1000,IF(AND(J12=\"-\",K12<>0),K12*1000,IF(AND(J12<>0,K12<>0),J12*1000,\"\"))))","v":""},{"$f":"ROUND(((L12/(1-$O$5-$O$6-$O$7))-L12),2)","v":{"$error":"#VALUE!"}},{"$f":"L12+M12","v":{"$error":"#VALUE!"}},{"$f":"O79","v":443.5},null,{"$f":"ROUND((26.939+0.253*O12),2)","v":139.13999999999999},null,{"$f":"Q12+R12","v":139.13999999999999},{"$f":"TRUNC(S12*($O$7/(1-$O$7)),2)","v":0},{"$f":"TRUNC(IF($I$6=\"\",\"\",(($I$7-$I$6)/$I$6)*(S12+T12)),2)","v":152.84},{"$f":"S12+T12+U12","v":291.98},null,null,291.98,{"$error":"#VALUE!"},{"$f":"IF(OR(Y12=\"\",Z12=\"\"),\"\",Y12+Z12)","v":{"$error":"#VALUE!"}},null,{"$f":"AA12","v":{"$error":"#VALUE!"}},{"$f":"Y12","v":291.98},{"$error":"#VALUE!"},null,null,{"$f":"IF(OR(G12=$D$32,G12=$D$33,G12=$D$35,G12=$D$41,G12=$D$25,G12=$D$21,G12=$D$17,G12=$D$30,G12=$D$20),\"NORDESTE\",IF(OR(G12=$D$16,G12=$D$18,G12=$D$19,G12=$D$29,G12=$D$37,G12=$D$38,G12=$D$42),\"NORTE\",IF(OR(G12=$D$22,G12=$D$24,G12=$D$26,G12=$D$27),\"CENTRO-OESTE\",IF(OR(G12=$D$40,G12=$D$34,G12=$D$28,G12=$D$23),\"SUDESTE\",IF(OR(G12=$D$39,G12=$D$31,G12=$D$36),\"SUL\",\"\")))))","v":"CENTRO-OESTE"}]
[null,{"$error":"#VALUE!"},3,null,"DISTRIBUIDORA BRASILEIRA DE ASFALTO SA - DISBRAL","VIA PRIMARIA 8, S/N QD-18, MODS. 24/47 - DAIAG - CEP:74980-970","Goiás","APARECIDA DE GOIANIA - GO","Goiânia - GO",null,null,"",{"$f":"ROUND(((L13/(1-$O$5-$O$6-$O$7))-L13),2)","v":{"$error":"#VALUE!"}},{"$error":"#VALUE!"},{"$f":"O84","v":453.75},null,141.74,null,141.74,{"$f":"TRUNC(S13*($O$7/(1-$O$7)),2)","v":0},{"$f":"TRUNC(IF($I$6=\"\",\"\",(($I$7-$I$6)/$I$6)*(S13+T13)),2)","v":155.69999999999999},297.44,null,null,297.44,{"$error":"#VALUE!"},{"$error":"#VALUE!"},null,{"$error":"#VALUE!"},297.44,{"$error":"#VALUE!"},null,null,{"$f":"IF(OR(G13=$D$32,G13=$D$33,G13=$D$35,G13=$D$41,G13=$D$25,G13=$D$21,G13=$D$17,G13=$D$30,G13=$D$20),\"NORDESTE\",IF(OR(G13=$D$16,G13=$D$18,G13=$D$19,G13=$D$29,G13=$D$37,G13=$D$38,G13=$D$42),\"NORTE\",IF(OR(G13=$D$22,G13=$D$24,G13=$D$26,G13=$D$27),\"CENTRO-OESTE\",IF(OR(G13=$D$40,G13=$D$34,G13=$D$28,G13=$D$23),\"SUDESTE\",IF(OR(G13=$D$39,G13=$D$31,G13=$D$36),\"SUL\",\"\")))))","v":"CENTRO-OESTE"}]
[2403,{"$error":"#VALUE!"},4,null,"INDÚSTRIA NACIONAL DE ASFALTOS LTDA.","VIA PRIMEIRA E SEGUNDA 3, S/N.º LOTES 01 A 10 - DISTRITO AGROINDUSTRIAL - CEP:75370-000","Goiás","GOIANIRA - GO","Goiânia - GO",null,null,"",{"$f":"ROUND(((L14/(1-$O$5-$O$6-$O$7))-L14),2)","v":{"$error":"#VALUE!"}},{"$error":"#VALUE!"},{"$f":"O89","v":457},null,142.56,null,142.56,{"$f":"TRUNC(S14*($O$7/(1-$O$7)),2)","v":0},{"$f":"TRUNC(IF($I$6=\"\",\"\",(($I$7-$I$6)/$I$6)*(S14+T14)),2)","v":156.6},299.15999999999997,null,null,299.15999999999997,{"$error":"#VALUE!"},{"$error":"#VALUE!"},null,{"$error":"#VALUE!"},299.15999999999997,{"$error":"#VALUE!"},null,null,{"$f":"IF(OR(G14=$D$32,G14=$D$33,G14=$D$35,G14=$D$41,G14=$D$25,G14=$D$21,G14=$D$17,G14=$D$30,G14=$D$20),\"NORDESTE\",IF(OR(G14=$D$16,G14=$D$18,G14=$D$19,G14=$D$29,G14=$D$37,G14=$D$38,G14=$D$42),\"NORTE\",IF(OR(G14=$D$22,G14=$D$24,G14=$D$26,G14=$D$27),\"CENTRO-OESTE\",IF(OR(G14=$D$40,G14=$D$34,G14=$D$28,G14=$D$23),\"SUDESTE\",IF(OR(G14=$D$39,G14=$D$31,G14=$D$36),\"SUL\",\"\")))))","v":"CENTRO-OESTE"}]
[]
[null,null,null,"Acre"]
[null,null,null,"Alagoas"]
[null,null,null,"Amapá"]
[null,null,null,"Amazonas"]
[null,null,null,"Bahia"]
[null,null,null,"Ceará"]
[null,null,null,"Distrito Federal"]
[null,null,null,"Espírito Santo"]
[null,null,null,"Goiás"]
[null,null,null,"Maranhão"]
[null,null,null,"Mato Grosso"]
[null,null,null,"Mato Grosso do Sul"]
[null,null,null,"Minas Gerais"]
[null,null,null,"Pará"]
[null,null,null,"Paraíba"]
[null,null,null,"Paraná"]
[null,null,null,"Pernambuco"]
[null,null,null,"Piauí"]
[null,null,null,"Rio de Janeiro"]
[null,null,null,"Rio Grande do Norte"]
[null,null,null,"Rio Grande do Sul"]
[null,null,null,"Rondônia"]
[null,null,null,"Roraima"]
[null,null,null,"Santa Catarina"]
[null,null,null,"São Paulo"]
[null,null,null,"Sergipe"]
[null,null,null,"Tocantins"]
[]
[]
[]
[null,null,null,"ASFALTOS DILUÍDOS CM-30"]
[null,null,null,"ASFALTOS DILUÍDOS CM-70"]
[null,null,null,"ASFALTOS DILUÍDOS CR-250"]
[null,null,null,"ASFALTOS DILUÍDOS CR-70"]
[null,null,null,"CAP MODIFICADO POR BORRACHA DE PNEU AB22"]
[null,null,null,"CAP MODIFICADO POR BORRACHA DE PNEU AB8"]
[null,null,null,"CAP MODIFICADO POR POLÍMERO 55-75-E"]
[null,null,null,"CAP MODIFICADO POR POLÍMERO 60-85-E"]
[null,null,null,"CAP MODIFICADO POR POLÍMERO 65-90-E"]
[null,null,null,"CIMENTOS ASFÁLTICOS CAP-150-200"]
[null,null,null,"CIMENTOS ASFÁLTICOS CAP-30-45"]
[null,null,null,"CIMENTOS ASFÁLTICOS CAP-50-70"]
[null,null,null,"CIMENTOS ASFÁLTICOS CAP-85-100"]
[null,null,null,"EMULSÃO ASFÁLTICA CATIÔNICA DE RUPTURA CONTROLADA PARA SERVIÇO DE LAMA ASFÁLTICA"]
[null,null,null,"EMULSÃO ASFÁLTICA DE RUPTURA LENTA CATIÔNICA PARA SERVIÇO DE LAMA ASFÁLTICA"]
[null,null,null,"EMULSÃO ASFÁLTICA DE RUPTURA LENTA DE CARGA NEUTRA PARA SERVIÇO DE LAMA ASFÁLTICA"]
[null,null,null,"EMULSÃO ASFÁLTICA PARA SERVIÇO DE IMPRIMAÇÃO"]
[null,null,null,"EMULSÕES ASF. MOD. POR POLÍMEROS RC1C-E"]
[null,null,null,"EMULSÕES ASF. MOD. POR POLÍMEROS RL1C-E"]
[null,null,null,"EMULSÕES ASF. MOD. POR POLÍMEROS RM1C-E"]
[null,null,null,"EMULSÕES ASF. MOD. POR POLÍMEROS RR1C-E"]
[null,null,null,"EMULSÕES ASF. MOD. POR POLÍMEROS RR2C-E"]
[null,null,null,"EMULSÕES ASFÁLTICAS RL-1C"]
[null,null,null,"EMULSÕES ASFÁLTICAS RM-1C"]
[null,null,null,"EMULSÕES ASFÁLTICAS RM-2C"]
[null,null,null,"EMULSÕES ASFÁLTICAS RR-1C"]
[null,null,null,"EMULSÕES ASFÁLTICAS RR-2C"]
[]
[{"$nulls":4},"CAMPOS BELOS","Setor Inflamáveis Sin 1100 - tr 2, Brasília - DF, 71225-000",409,"https://www.google.com.br/maps/dir/Centro+Oeste+Asfaltos,+Setor+Inflam%C3%A1veis+Sin+1100+-+tr+2,+Bras%C3%ADlia+-+DF,+71225-000/Campos+Belos,+GO,+73840-000/@-14.4108146,-48.6812557,8z/data=!3m1!4b1!4m14!4m13!1m5!1m1!1s0x935a316dd0fb71c3:0xc43458a6c824bb12!2m2!1d-47.9782441!2d-15.7962276!1m5!1m1!1s0x93491f18c7b13639:0xd1034d7b6ba87906!2m2!1d-46.7722996!2d-13.0370837!3e0?entry=ttu",{"$nulls":6},{"$f":"AVERAGE(G74:G77)","v":454.5}]
[{"$nulls":4},"BALIZA",null,608,"https://www.google.com.br/maps/dir/Centro+Oeste+Asfaltos,+Setor+Inflam%C3%A1veis+Sin+1100+-+tr+2,+Bras%C3%ADlia+-+DF,+71225-000/Baliza,+GO,+76250-000/@-16.065852,-51.5938521,8z/data=!3m1!4b1!4m14!4m13!1m5!1m1!1s0x935a316dd0fb71c3:0xc43458a6c824bb12!2m2!1d-47.9782441!2d-15.7962276!1m5!1m1!1s0x9365307b9d2245d1:0xdb2d6f69d7d7b0a9!2m2!1d-52.5464374!2d-16.196968!3e0?entry=ttu"]
[{"$nulls":4},"APORÉ",null,671,"https://www.google.com.br/maps/dir/Centro+Oeste+Asfaltos,+Setor+Inflam%C3%A1veis+Sin+1100+-+tr+2,+Bras%C3%ADlia+-+DF,+71225-000/Apor%C3%A9,+GO/@-17.4468739,-51.3702228,8z/data=!3m1!4b1!4m14!4m13!1m5!1m1!1s0x935a316dd0fb71c3:0xc43458a6c824bb12!2m2!1d-47.9782441!2d-15.7962276!1m5!1m1!1s0x949c5a0f2a9ba177:0x7af8cec9490b47fc!2m2!1d-51.9255012!2d-18.9660716!3e0?entry=ttu"]
[{"$nulls":4},"CRISTALINA",null,130,"https://www.google.com.br/maps/dir/SIN+Centro+Oeste+Asfaltos+-+Guar%C3%A1,+Bras%C3%ADlia+-+DF/Cristalina,+GO/@-16.2700243,-48.1207914,10z/data=!3m1!4b1!4m14!4m13!1m5!1m1!1s0x935a316dd0fb71c3:0xc43458a6c824bb12!2m2!1d-47.9782441!2d-15.7962276!1m5!1m1!1s0x93583d29b2aa9011:0x9d039879fad265bc!2m2!1d-47.6085589!2d-16.7639015!3e0?entry=ttu"]
[]
[{"$nulls":4},{"$f":"$E$74","v":"CAMPOS BELOS"},"Av. Pres. Wilson - Vila Industrial, Anápolis - GO, 75115-100",552,"https://www.google.com.br/maps/dir/Av.+Pres.+Wilson+-+Vila+Industrial,+An%C3%A1polis+-+GO,+75115-100/Campos+Belos,+GO,+73840-000/@-14.6894847,-49.1676121,8z/data=!3m1!4b1!4m14!4m13!1m5!1m1!1s0x935ea48f1beb975b:0xeb4fbf0256937b0c!2m2!1d-48.9487569!2d-16.3407178!1m5!1m1!1s0x93491f18c7b13639:0xd1034d7b6ba87906!2m2!1d-46.7722996!2d-13.0370837!3e0?entry=ttu",{"$nulls":6},{"$f":"AVERAGE(G79:G82)","v":443.5}]
[{"$nulls":4},{"$f":"$E$75","v":"BALIZA"},null,462,"https://www.google.com.br/maps/dir/Av.+Pres.+Wilson+-+Vila+Industrial,+An%C3%A1polis+-+GO,+75115-100/Baliza,+GO,+76250-000/@-16.2307926,-52.074116,8z/data=!3m1!4b1!4m14!4m13!1m5!1m1!1s0x935ea48f1beb975b:0xeb4fbf0256937b0c!2m2!1d-48.9487569!2d-16.3407178!1m5!1m1!1s0x9365307b9d2245d1:0xdb2d6f69d7d7b0a9!2m2!1d-52.5464374!2d-16.196968!3e0?entry=ttu"]
[{"$nulls":4},{"$f":"$E$76","v":"APORÉ"},null,531,"https://www.google.com.br/maps/dir/Av.+Pres.+Wilson+-+Vila+Industrial,+An%C3%A1polis+-+GO,+75115-100/Apor%C3%A9,+GO/@-17.7173876,-51.8461076,8z/data=!3m1!4b1!4m14!4m13!1m5!1m1!1s0x935ea48f1beb975b:0xeb4fbf0256937b0c!2m2!1d-48.9487569!2d-16.3407178!1m5!1m1!1s0x949c5a0f2a9ba177:0x7af8cec9490b47fc!2m2!1d-51.9255012!2d-18.9660716!3e0?entry=ttu"]
[{"$nulls":4},{"$f":"$E$77","v":"CRISTALINA"},null,229,"https://www.google.com.br/maps/dir/Av.+Pres.+Wilson+-+Vila+Industrial,+An%C3%A1polis+-+GO,+75115-100/Cristalina,+GO/@-16.3846397,-48.6122212,10z/data=!3m1!4b1!4m14!4m13!1m5!1m1!1s0x935ea48f1beb975b:0xeb4fbf0256937b0c!2m2!1d-48.9487569!2d-16.3407178!1m5!1m1!1s0x93583d29b2aa9011:0x9d039879fad265bc!2m2!1d-47.6085589!2d-16.7639015!3e0?entry=ttu"]
[]
[{"$nulls":4},{"$f":"$E$74","v":"CAMPOS BELOS"},"Via Primária Oito, S/N - Daiag, Aparecida de Goiânia - GO, 74993-430",620,"https://www.google.com.br/maps/dir/Grupo+Disbral+-+GO,+Via+Prim%C3%A1ria+Oito,+S%2FN+-+Daiag,+Aparecida+de+Goi%C3%A2nia+-+GO,+74993-430/Campos+Belos,+GO,+73840-000/@-14.9171518,-49.3139526,8z/data=!3m1!4b1!4m14!4m13!1m5!1m1!1s0x935ef764ffffffff:0x625ace78c18cd76!2m2!1d-49.2058789!2d-16.8044187!1m5!1m1!1s0x93491f18c7b13639:0xd1034d7b6ba87906!2m2!1d-46.7722996!2d-13.0370837!3e0?entry=ttu",{"$nulls":6},{"$f":"AVERAGE(G84:G87)","v":453.75}]
[{"$nulls":4},{"$f":"$E$75","v":"BALIZA"},null,433,"https://www.google.com.br/maps/dir/Grupo+Disbral+-+GO,+Via+Prim%C3%A1ria+Oito,+S%2FN+-+Daiag,+Aparecida+de+Goi%C3%A2nia+-+GO,+74993-430/Baliza,+GO,+76250-000/@-16.3091556,-51.5520313,9z/data=!3m1!4b1!4m14!4m13!1m5!1m1!1s0x935ef764ffffffff:0x625ace78c18cd76!2m2!1d-49.2058789!2d-16.8044187!1m5!1m1!1s0x9365307b9d2245d1:0xdb2d6f69d7d7b0a9!2m2!1d-52.5464374!2d-16.196968!3e0?entry=ttu"]
[{"$nulls":4},{"$f":"$E$76","v":"APORÉ"},null,483,"https://www.google.com.br/maps/dir/Grupo+Disbral+-+GO,+Via+Prim%C3%A1ria+Oito,+S%2FN+-+Daiag,+Aparecida+de+Goi%C3%A2nia+-+GO,+74993-430/Apor%C3%A9,+GO/@-17.9037953,-51.9583361,8z/data=!3m1!4b1!4m14!4m13!1m5!1m1!1s0x935ef764ffffffff:0x625ace78c18cd76!2m2!1d-49.2058789!2d-16.8044187!1m5!1m1!1s0x949c5a0f2a9ba177:0x7af8cec9490b47fc!2m2!1d-51.9255012!2d-18.9660716!3e0?entry=ttu"]
[{"$nulls":4},{"$f":"$E$77","v":"CRISTALINA"},null,279,"https://www.google.com.br/maps/dir/Grupo+Disbral+-+GO,+Via+Prim%C3%A1ria+Oito,+S%2FN+-+Daiag,+Aparecida+de+Goi%C3%A2nia+-+GO,+74993-430/Cristalina,+GO/@-16.713848,-49.0820341,9z/data=!3m1!4b1!4m14!4m13!1m5!1m1!1s0x935ef764ffffffff:0x625ace78c18cd76!2m2!1d-49.2058789!2d-16.8044187!1m5!1m1!1s0x93583d29b2aa9011:0x9d039879fad265bc!2m2!1d-47.6085589!2d-16.7639015!3e0?entry=ttu"]
[]
[{"$nulls":4},{"$f":"$E$74","v":"CAMPOS BELOS"},"Nacional Asfaltos, Goianira - GO, 75370-000",626,"https://www.google.com.br/maps/dir/Nacional+Asfaltos,+Goianira+-+GO,+75370-000/Campos+Belos,+GO,+73840-000/@-14.8391896,-49.4118934,8z/data=!3m1!4b1!4m14!4m13!1m5!1m1!1s0x935e63b5a4f41e4f:0xba5b241b3d264990!2m2!1d-49.4089889!2d-16.5359687!1m5!1m1!1s0x93491f18c7b13639:0xd1034d7b6ba87906!2m2!1d-46.7722996!2d-13.0370837!3e0?entry=ttu",{"$nulls":6},{"$f":"AVERAGE(G89:G92)","v":457}]
[{"$nulls":4},{"$f":"$E$75","v":"BALIZA"},null,407,"https://www.google.com.br/maps/dir/Nacional+Asfaltos,+Goianira+-+GO,+75370-000/Baliza,+GO,+76250-000/@-16.5398893,-51.6489793,9z/data=!3m1!4b1!4m14!4m13!1m5!1m1!1s0x935e63b5a4f41e4f:0xba5b241b3d264990!2m2!1d-49.4089889!2d-16.5359687!1m5!1m1!1s0x9365307b9d2245d1:0xdb2d6f69d7d7b0a9!2m2!1d-52.5464374!2d-16.196968!3e0?entry=ttu"]
[{"$nulls":4},{"$f":"$E$76","v":"APORÉ"},null,483,"https://www.google.com.br/maps/dir/Nacional+Asfaltos,+Goianira+-+GO,+75370-000/Apor%C3%A9,+GO/@-17.8167798,-52.0809011,8z/data=!3m1!4b1!4m14!4m13!1m5!1m1!1s0x935e63b5a4f41e4f:0xba5b241b3d264990!2m2!1d-49.4089889!2d-16.5359687!1m5!1m1!1s0x949c5a0f2a9ba177:0x7af8cec9490b47fc!2m2!1d-51.9255012!2d-18.9660716!3e0?entry=ttu"]
[{"$nulls":4},{"$f":"$E$77","v":"CRISTALINA"},null,312,"https://www.google.com.br/maps/dir/Nacional+Asfaltos,+Goianira+-+GO,+75370-000/Cristalina,+GO/@-16.713848,-49.1646956,9z/data=!3m1!4b1!4m14!4m13!1m5!1m1!1s0x935e63b5a4f41e4f:0xba5b241b3d264990!2m2!1d-49.4089889!2d-16.5359687!1m5!1m1!1s0x93583d29b2aa9011:0x9d039879fad265bc!2m2!1d-47.6085589!2d-16.7639015!3e0?entry=ttu"]

{"sheet":"Transp. RR-2C","index":12,"n_rows":92,"n_cols":34,"rows_kept":92,"cut":false,"hidden":false,"merged":[[10,3,13,3],[88,14,91,14],[73,14,76,14],[78,14,81,14],[83,14,86,14],[1,2,1,8],[4,4,4,5],[4,6,4,8],[4,12,6,12],[8,3,9,3],[8,4,8,8],[8,9,8,10],[8,22,8,23],[73,5,76,5],[78,5,81,5],[83,5,86,5],[88,5,91,5]]}
[]
[null,null,"MEMÓRIA DE CÁLCULO"]
[{"$nulls":5},"LEGENDA","ENTRADA DE DADOS","RESULTADO PARCIAL","RESULTADO FINAL"]
[]
[{"$nulls":4},"DADOS ANP",null,"ÍNDICE DE PAVIMENTAÇÃO DNIT",{"$nulls":5},"IMPOSTOS","COFINS"]
[{"$nulls":4},"TIPOLOGIA DO MATERIAL","EMULSÕES ASFÁLTICAS RR-2C","ÍNDICE INICIAL","2014-07-01",270.23700000000002,{"$nulls":4},"PIS",{"$nulls":14},"As empresas tributadas pelo Lucro Presumido pagam 0,65% de PIS e 3% de COFINS"]
[{"$nulls":4},"DATA ANP","2024-04-01","ÍNDICE FINAL","2024-04-01",567.09199999999998,{"$nulls":4}," ICMS",null,null,{"$f":"1-(O7/1)","v":1},{"$f":"1-(P7/1)","v":1},{"$f":"1-(Q7/1)","v":0},{"$nulls":9},"As empresas tributadas pelo Lucro Real pagam 1,65% de PIS e 7,60% de COFINS"]
[]
[null,null,"DATA-BASE","PRODUTOS","LOCALIDADES",{"$nulls":4},"CUSTO ANP (R$/Kg)",null,"CUSTO ANP","IMPOSTOS DO PRODUTO","CUSTO DO PRODUTO COM IMPOSTOS","DMT's","DMT's FLUVIAL","CUSTO DO TRANSPORTE RODOVIA PAVIMENTADA","CUSTO DO TRANSPORTE FLUVIAL","CUSTO DO TRANSPORTE TOTAL","ICMS","ATUALIZAÇÃO DO CUSTO DE TRANSPORTE","CUSTO DO TRANSPORTE RODOVIA PAVIMENTADA COM IMPOSTOS E ATUALIZAÇÃO MONETÁRIA","PEDÁGIO ",null,"TOTAL TRANSPORTE","AQUISIÇÃO DO PRODUTO","TOTAL GERAL \n(TRANSP + AQUISIÇÃO)",null,1,2,3]
[null,null,{"$f":"H7","v":"2024-04-01"},null,"REFINARIAS","ENDEREÇO","ESTADO","CIDADE","DESTINO","ESTADO","REGIÃO","R$/t","R$/t","R$/t","KM","KM","R$/t","R$/t","R$/t","R$/t","R$/t","R$/t","CUSTO ","R$/t","R$/t","R$/t","R$/t",null,"TOTAL GERAL ( TRANSP + AQUISIÇÃO)","TOTAL TRANSPORTE","AQUISIÇÃO DO PRODUTO"]
[null,{"$f":"AA11","v":{"$error":"#VALUE!"}},1,{"$f":"F6","v":"EMULSÕES ASFÁLTICAS RR-2C"},"'CENTRO OESTE ASFALTOS LTDA.","SETOR DE INFLAMÁVEIS, S/N TRECHO 02 - LOTE 1.100 - GUARÁ - CEP:71225-000","Distrito Federal","BRASÍLIA - DF",{"$f":"'Transp. EAI'!I11","v":"Goiânia - GO"},null,null,{"$f":"IF(AND(J11=\"-\",K11=\"-\"),\"\",IF(AND(J11<>0,K11=\"-\"),J11*1000,IF(AND(J11=\"-\",K11<>0),K11*1000,IF(AND(J11<>0,K11<>0),J11*1000,\"\"))))","v":""},{"$f":"ROUND(((L11/(1-$O$5-$O$6-$O$7))-L11),2)","v":{"$error":"#VALUE!"}},{"$f":"L11+M11","v":{"$error":"#VALUE!"}},{"$f":"'Transp. EAI'!O11","v":454.5},null,{"$f":"ROUND((26.939+0.253*O11),2)","v":141.93},null,{"$f":"Q11+R11","v":141.93},{"$f":"TRUNC(S11*($O$7/(1-$O$7)),2)","v":0},{"$f":"TRUNC(IF($I$6=\"\",\"\",(($I$7-$I$6)/$I$6)*(S11+T11)),2)","v":155.9},{"$f":"S11+T11+U11","v":297.83000000000004},null,null,{"$f":"IF(AND(Q11=\"\",T11=\"\"),\"\",V11+X11)","v":297.83000000000004},{"$f":"IF(OR(L11=\"\",M11=\"\"),\"\",L11+M11)","v":{"$error":"#VALUE!"}},{"$f":"IF(OR(Y11=\"\",Z11=\"\"),\"\",Y11+Z11)","v":{"$error":"#VALUE!"}},null,{"$f":"AA11","v":{"$error":"#VALUE!"}},{"$f":"Y11","v":297.83000000000004},{"$f":"Z11","v":{"$error":"#VALUE!"}},null,null,{"$f":"IF(OR(G11=$D$32,G11=$D$33,G11=$D$35,G11=$D$41,G11=$D$25,G11=$D$21,G11=$D$17,G11=$D$30,G11=$D$20),\"NORDESTE\",IF(OR(G11=$D$16,G11=$D$18,G11=$D$19,G11=$D$29,G11=$D$37,G11=$D$38,G11=$D$42),\"NORTE\",IF(OR(G11=$D$22,G11=$D$24,G11=$D$26,G11=$D$27),\"CENTRO-OESTE\",IF(OR(G11=$D$40,G11=$D$34,G11=$D$28,G11=$D$23),\"SUDESTE\",IF(OR(G11=$D$39,G11=$D$31,G11=$D$36),\"SUL\",\"\")))))","v":"CENTRO-OESTE"}]
[null,{"$f":"AA12","v":{"$error":"#VALUE!"}},2,null,"STRATURA ASFALTOS S/A","AVENIDA PRESIDENTE WILSON, 08  - JUNDIAÍ - CEP:75115-100","Goiás","ANÁPOLIS - GO",{"$f":"'Transp. EAI'!I12","v":"Goiânia - GO"},null,null,{"$f":"IF(AND(J12=\"-\",K12=\"-\"),\"\",IF(AND(J12<>0,K12=\"-\"),J12*1000,IF(AND(J12=\"-\",K12<>0),K12*1000,IF(AND(J12<>0,K12<>0),J12*1000,\"\"))))","v":""},{"$f":"ROUND(((L12/(1-$O$5-$O$6-$O$7))-L12),2)","v":{"$error":"#VALUE!"}},{"$f":"L12+M12","v":{"$error":"#VALUE!"}},{"$f":"'Transp. EAI'!O12","v":443.5},null,{"$f":"ROUND((26.939+0.253*O12),2)","v":139.13999999999999},null,{"$f":"Q12+R12","v":139.13999999999999},{"$f":"TRUNC(S12*($O$7/(1-$O$7)),2)","v":0},{"$f":"TRUNC(IF($I$6=\"\",\"\",(($I$7-$I$6)/$I$6)*(S12+T12)),2)","v":152.84},{"$f":"S12+T12+U12","v":291.98},null,null,291.98,{"$error":"#VALUE!"},{"$f":"IF(OR(Y12=\"\",Z12=\"\"),\"\",Y12+Z12)","v":{"$error":"#VALUE!"}},null,{"$f":"AA12","v":{"$error":"#VALUE!"}},{"$f":"Y12","v":291.98},{"$error":"#VALUE!"},null,null,{"$f":"IF(OR(G12=$D$32,G12=$D$33,G12=$D$35,G12=$D$41,G12=$D$25,G12=$D$21,G12=$D$17,G12=$D$30,G12=$D$20),\"NORDESTE\",IF(OR(G12=$D$16,G12=$D$18,G12=$D$19,G12=$D$29,G12=$D$37,G12=$D$38,G12=$D$42),\"NORTE\",IF(OR(G12=$D$22,G12=$D$24,G12=$D$26,G12=$D$27),\"CENTRO-OESTE\",IF(OR(G12=$D$40,G12=$D$34,G12=$D$28,G12=$D$23),\"SUDESTE\",IF(OR(G12=$D$39,G12=$D$31,G12=$D$36),\"SUL\",\"\")))))","v":"CENTRO-OESTE"}]
[null,{"$error":"#VALUE!"},3,null,"DISTRIBUIDORA BRASILEIRA DE ASFALTO SA - DISBRAL","VIA PRIMARIA 8, S/N QD-18, MODS. 24/47 - DAIAG - CEP:74980-970","Goiás","APARECIDA DE GOIANIA - GO",{"$f":"'Transp. EAI'!I13","v":"Goiânia - GO"},null,null,"",{"$f":"ROUND(((L13/(1-$O$5-$O$6-$O$7))-L13),2)","v":{"$error":"#VALUE!"}},{"$error":"#VALUE!"},{"$f":"'Transp. EAI'!O13","v":453.75},null,141.74,null,141.74,{"$f":"TRUNC(S13*($O$7/(1-$O$7)),2)","v":0},{"$f":"TRUNC(IF($I$6=\"\",\"\",(($I$7-$I$6)/$I$6)*(S13+T13)),2)","v":155.69999999999999},297.44,null,null,297.44,{"$error":"#VALUE!"},{"$error":"#VALUE!"},null,{"$error":"#VALUE!"},297.44,{"$error":"#VALUE!"},null,null,{"$f":"IF(OR(G13=$D$32,G13=$D$33,G13=$D$35,G13=$D$41,G13=$D$25,G13=$D$21,G13=$D$17,G13=$D$30,G13=$D$20),\"NORDESTE\",IF(OR(G13=$D$16,G13=$D$18,G13=$D$19,G13=$D$29,G13=$D$37,G13=$D$38,G13=$D$42),\"NORTE\",IF(OR(G13=$D$22,G13=$D$24,G13=$D$26,G13=$D$27),\"CENTRO-OESTE\",IF(OR(G13=$D$40,G13=$D$34,G13=$D$28,G13=$D$23),\"SUDESTE\",IF(OR(G13=$D$39,G13=$D$31,G13=$D$36),\"SUL\",\"\")))))","v":"CENTRO-OESTE"}]
[2403,{"$error":"#VALUE!"},4,null,"INDÚSTRIA NACIONAL DE ASFALTOS LTDA.","VIA PRIMEIRA E SEGUNDA 3, S/N.º LOTES 01 A 10 - DISTRITO AGROINDUSTRIAL - CEP:75370-000","Goiás","GOIANIRA - GO",{"$f":"'Transp. EAI'!I14","v":"Goiânia - GO"},null,null,"",{"$f":"ROUND(((L14/(1-$O$5-$O$6-$O$7))-L14),2)","v":{"$error":"#VALUE!"}},{"$error":"#VALUE!"},{"$f":"'Transp. EAI'!O14","v":457},null,142.56,null,142.56,{"$f":"TRUNC(S14*($O$7/(1-$O$7)),2)","v":0},{"$f":"TRUNC(IF($I$6=\"\",\"\",(($I$7-$I$6)/$I$6)*(S14+T14)),2)","v":156.6},299.15999999999997,null,null,299.15999999999997,{"$error":"#VALUE!"},{"$error":"#VALUE!"},null,{"$error":"#VALUE!"},299.15999999999997,{"$error":"#VALUE!"},null,null,{"$f":"IF(OR(G14=$D$32,G14=$D$33,G14=$D$35,G14=$D$41,G14=$D$25,G14=$D$21,G14=$D$17,G14=$D$30,G14=$D$20),\"NORDESTE\",IF(OR(G14=$D$16,G14=$D$18,G14=$D$19,G14=$D$29,G14=$D$37,G14=$D$38,G14=$D$42),\"NORTE\",IF(OR(G14=$D$22,G14=$D$24,G14=$D$26,G14=$D$27),\"CENTRO-OESTE\",IF(OR(G14=$D$40,G14=$D$34,G14=$D$28,G14=$D$23),\"SUDESTE\",IF(OR(G14=$D$39,G14=$D$31,G14=$D$36),\"SUL\",\"\")))))","v":"CENTRO-OESTE"}]
[]
[null,null,null,"Acre"]
[null,null,null,"Alagoas"]
[null,null,null,"Amapá"]
[null,null,null,"Amazonas"]
[null,null,null,"Bahia"]
[null,null,null,"Ceará"]
[null,null,null,"Distrito Federal"]
[null,null,null,"Espírito Santo"]
[null,null,null,"Goiás"]
[null,null,null,"Maranhão"]
[null,null,null,"Mato Grosso"]
[null,null,null,"Mato Grosso do Sul"]
[null,null,null,"Minas Gerais"]
[null,null,null,"Pará"]
[null,null,null,"Paraíba"]
[null,null,null,"Paraná"]
[null,null,null,"Pernambuco"]
[null,null,null,"Piauí"]
[null,null,null,"Rio de Janeiro"]
[null,null,null,"Rio Grande do Norte"]
[null,null,null,"Rio Grande do Sul"]
[null,null,null,"Rondônia"]
[null,null,null,"Roraima"]
[null,null,null,"Santa Catarina"]
[null,null,null,"São Paulo"]
[null,null,null,"Sergipe"]
[null,null,null,"Tocantins"]
[]
[]
[]
[null,null,null,"ASFALTOS DILUÍDOS CM-30"]
[null,null,null,"ASFALTOS DILUÍDOS CM-70"]
[null,null,null,"ASFALTOS DILUÍDOS CR-250"]
[null,null,null,"ASFALTOS DILUÍDOS CR-70"]
[null,null,null,"CAP MODIFICADO POR BORRACHA DE PNEU AB22"]
[null,null,null,"CAP MODIFICADO POR BORRACHA DE PNEU AB8"]
[null,null,null,"CAP MODIFICADO POR POLÍMERO 55-75-E"]
[null,null,null,"CAP MODIFICADO POR POLÍMERO 60-85-E"]
[null,null,null,"CAP MODIFICADO POR POLÍMERO 65-90-E"]
[null,null,null,"CIMENTOS ASFÁLTICOS CAP-150-200"]
[null,null,null,"CIMENTOS ASFÁLTICOS CAP-30-45"]
[null,null,null,"CIMENTOS ASFÁLTICOS CAP-50-70"]
[null,null,null,"CIMENTOS ASFÁLTICOS CAP-85-100"]
[null,null,null,"EMULSÃO ASFÁLTICA CATIÔNICA DE RUPTURA CONTROLADA PARA SERVIÇO DE LAMA ASFÁLTICA"]
[null,null,null,"EMULSÃO ASFÁLTICA DE RUPTURA LENTA CATIÔNICA PARA SERVIÇO DE LAMA ASFÁLTICA"]
[null,null,null,"EMULSÃO ASFÁLTICA DE RUPTURA LENTA DE CARGA NEUTRA PARA SERVIÇO DE LAMA ASFÁLTICA"]
[null,null,null,"EMULSÃO ASFÁLTICA PARA SERVIÇO DE IMPRIMAÇÃO"]
[null,null,null,"EMULSÕES ASF. MOD. POR POLÍMEROS RC1C-E"]
[null,null,null,"EMULSÕES ASF. MOD. POR POLÍMEROS RL1C-E"]
[null,null,null,"EMULSÕES ASF. MOD. POR POLÍMEROS RM1C-E"]
[null,null,null,"EMULSÕES ASF. MOD. POR POLÍMEROS RR1C-E"]
[null,null,null,"EMULSÕES ASF. MOD. POR POLÍMEROS RR2C-E"]
[null,null,null,"EMULSÕES ASFÁLTICAS RL-1C"]
[null,null,null,"EMULSÕES ASFÁLTICAS RM-1C"]
[null,null,null,"EMULSÕES ASFÁLTICAS RM-2C"]
[null,null,null,"EMULSÕES ASFÁLTICAS RR-1C"]
[null,null,null,"EMULSÕES ASFÁLTICAS RR-2C"]
[]
[{"$nulls":4},"CAMPOS BELOS","Setor Inflamáveis Sin 1100 - tr 2, Brasília - DF, 71225-000",409,"https://www.google.com.br/maps/dir/Centro+Oeste+Asfaltos,+Setor+Inflam%C3%A1veis+Sin+1100+-+tr+2,+Bras%C3%ADlia+-+DF,+71225-000/Campos+Belos,+GO,+73840-000/@-14.4108146,-48.6812557,8z/data=!3m1!4b1!4m14!4m13!1m5!1m1!1s0x935a316dd0fb71c3:0xc43458a6c824bb12!2m2!1d-47.9782441!2d-15.7962276!1m5!1m1!1s0x93491f18c7b13639:0xd1034d7b6ba87906!2m2!1d-46.7722996!2d-13.0370837!3e0?entry=ttu",{"$nulls":6},454.5]
[{"$nulls":4},"BALIZA",null,608,"https://www.google.com.br/maps/dir/Centro+Oeste+Asfaltos,+Setor+Inflam%C3%A1veis+Sin+1100+-+tr+2,+Bras%C3%ADlia+-+DF,+71225-000/Baliza,+GO,+76250-000/@-16.065852,-51.5938521,8z/data=!3m1!4b1!4m14!4m13!1m5!1m1!1s0x935a316dd0fb71c3:0xc43458a6c824bb12!2m2!1d-47.9782441!2d-15.7962276!1m5!1m1!1s0x9365307b9d2245d1:0xdb2d6f69d7d7b0a9!2m2!1d-52.5464374!2d-16.196968!3e0?entry=ttu"]
[{"$nulls":4},"APORÉ",null,671,"https://www.google.com.br/maps/dir/Centro+Oeste+Asfaltos,+Setor+Inflam%C3%A1veis+Sin+1100+-+tr+2,+Bras%C3%ADlia+-+DF,+71225-000/Apor%C3%A9,+GO/@-17.4468739,-51.3702228,8z/data=!3m1!4b1!4m14!4m13!1m5!1m1!1s0x935a316dd0fb71c3:0xc43458a6c824bb12!2m2!1d-47.9782441!2d-15.7962276!1m5!1m1!1s0x949c5a0f2a9ba177:0x7af8cec9490b47fc!2m2!1d-51.9255012!2d-18.9660716!3e0?entry=ttu"]
[{"$nulls":4},"CRISTALINA",null,130,"https://www.google.com.br/maps/dir/SIN+Centro+Oeste+Asfaltos+-+Guar%C3%A1,+Bras%C3%ADlia+-+DF/Cristalina,+GO/@-16.2700243,-48.1207914,10z/data=!3m1!4b1!4m14!4m13!1m5!1m1!1s0x935a316dd0fb71c3:0xc43458a6c824bb12!2m2!1d-47.9782441!2d-15.7962276!1m5!1m1!1s0x93583d29b2aa9011:0x9d039879fad265bc!2m2!1d-47.6085589!2d-16.7639015!3e0?entry=ttu"]
[]
[{"$nulls":4},{"$f":"$E$74","v":"CAMPOS BELOS"},"Av. Pres. Wilson - Vila Industrial, Anápolis - GO, 75115-100",552,"https://www.google.com.br/maps/dir/Av.+Pres.+Wilson+-+Vila+Industrial,+An%C3%A1polis+-+GO,+75115-100/Campos+Belos,+GO,+73840-000/@-14.6894847,-49.1676121,8z/data=!3m1!4b1!4m14!4m13!1m5!1m1!1s0x935ea48f1beb975b:0xeb4fbf0256937b0c!2m2!1d-48.9487569!2d-16.3407178!1m5!1m1!1s0x93491f18c7b13639:0xd1034d7b6ba87906!2m2!1d-46.7722996!2d-13.0370837!3e0?entry=ttu",{"$nulls":6},443.5]
[{"$nulls":4},{"$f":"$E$75","v":"BALIZA"},null,462,"https://www.google.com.br/maps/dir/Av.+Pres.+Wilson+-+Vila+Industrial,+An%C3%A1polis+-+GO,+75115-100/Baliza,+GO,+76250-000/@-16.2307926,-52.074116,8z/data=!3m1!4b1!4m14!4m13!1m5!1m1!1s0x935ea48f1beb975b:0xeb4fbf0256937b0c!2m2!1d-48.9487569!2d-16.3407178!1m5!1m1!1s0x9365307b9d2245d1:0xdb2d6f69d7d7b0a9!2m2!1d-52.5464374!2d-16.196968!3e0?entry=ttu"]
[{"$nulls":4},{"$f":"$E$76","v":"APORÉ"},null,531,"https://www.google.com.br/maps/dir/Av.+Pres.+Wilson+-+Vila+Industrial,+An%C3%A1polis+-+GO,+75115-100/Apor%C3%A9,+GO/@-17.7173876,-51.8461076,8z/data=!3m1!4b1!4m14!4m13!1m5!1m1!1s0x935ea48f1beb975b:0xeb4fbf0256937b0c!2m2!1d-48.9487569!2d-16.3407178!1m5!1m1!1s0x949c5a0f2a9ba177:0x7af8cec9490b47fc!2m2!1d-51.9255012!2d-18.9660716!3e0?entry=ttu"]
[{"$nulls":4},{"$f":"$E$77","v":"CRISTALINA"},null,229,"https://www.google.com.br/maps/dir/Av.+Pres.+Wilson+-+Vila+Industrial,+An%C3%A1polis+-+GO,+75115-100/Cristalina,+GO/@-16.3846397,-48.6122212,10z/data=!3m1!4b1!4m14!4m13!1m5!1m1!1s0x935ea48f1beb975b:0xeb4fbf0256937b0c!2m2!1d-48.9487569!2d-16.3407178!1m5!1m1!1s0x93583d29b2aa9011:0x9d039879fad265bc!2m2!1d-47.6085589!2d-16.7639015!3e0?entry=ttu"]
[]
[{"$nulls":4},{"$f":"$E$74","v":"CAMPOS BELOS"},"Via Primária Oito, S/N - Daiag, Aparecida de Goiânia - GO, 74993-430",620,"https://www.google.com.br/maps/dir/Grupo+Disbral+-+GO,+Via+Prim%C3%A1ria+Oito,+S%2FN+-+Daiag,+Aparecida+de+Goi%C3%A2nia+-+GO,+74993-430/Campos+Belos,+GO,+73840-000/@-14.9171518,-49.3139526,8z/data=!3m1!4b1!4m14!4m13!1m5!1m1!1s0x935ef764ffffffff:0x625ace78c18cd76!2m2!1d-49.2058789!2d-16.8044187!1m5!1m1!1s0x93491f18c7b13639:0xd1034d7b6ba87906!2m2!1d-46.7722996!2d-13.0370837!3e0?entry=ttu",{"$nulls":6},453.75]
[{"$nulls":4},{"$f":"$E$75","v":"BALIZA"},null,433,"https://www.google.com.br/maps/dir/Grupo+Disbral+-+GO,+Via+Prim%C3%A1ria+Oito,+S%2FN+-+Daiag,+Aparecida+de+Goi%C3%A2nia+-+GO,+74993-430/Baliza,+GO,+76250-000/@-16.3091556,-51.5520313,9z/data=!3m1!4b1!4m14!4m13!1m5!1m1!1s0x935ef764ffffffff:0x625ace78c18cd76!2m2!1d-49.2058789!2d-16.8044187!1m5!1m1!1s0x9365307b9d2245d1:0xdb2d6f69d7d7b0a9!2m2!1d-52.5464374!2d-16.196968!3e0?entry=ttu"]
[{"$nulls":4},{"$f":"$E$76","v":"APORÉ"},null,483,"https://www.google.com.br/maps/dir/Grupo+Disbral+-+GO,+Via+Prim%C3%A1ria+Oito,+S%2FN+-+Daiag,+Aparecida+de+Goi%C3%A2nia+-+GO,+74993-430/Apor%C3%A9,+GO/@-17.9037953,-51.9583361,8z/data=!3m1!4b1!4m14!4m13!1m5!1m1!1s0x935ef764ffffffff:0x625ace78c18cd76!2m2!1d-49.2058789!2d-16.8044187!1m5!1m1!1s0x949c5a0f2a9ba177:0x7af8cec9490b47fc!2m2!1d-51.9255012!2d-18.9660716!3e0?entry=ttu"]
[{"$nulls":4},{"$f":"$E$77","v":"CRISTALINA"},null,279,"https://www.google.com.br/maps/dir/Grupo+Disbral+-+GO,+Via+Prim%C3%A1ria+Oito,+S%2FN+-+Daiag,+Aparecida+de+Goi%C3%A2nia+-+GO,+74993-430/Cristalina,+GO/@-16.713848,-49.0820341,9z/data=!3m1!4b1!4m14!4m13!1m5!1m1!1s0x935ef764ffffffff:0x625ace78c18cd76!2m2!1d-49.2058789!2d-16.8044187!1m5!1m1!1s0x93583d29b2aa9011:0x9d039879fad265bc!2m2!1d-47.6085589!2d-16.7639015!3e0?entry=ttu"]
[]
[{"$nulls":4},{"$f":"$E$74","v":"CAMPOS BELOS"},"Nacional Asfaltos, Goianira - GO, 75370-000",626,"https://www.google.com.br/maps/dir/Nacional+Asfaltos,+Goianira+-+GO,+75370-000/Campos+Belos,+GO,+73840-000/@-14.8391896,-49.4118934,8z/data=!3m1!4b1!4m14!4m13!1m5!1m1!1s0x935e63b5a4f41e4f:0xba5b241b3d264990!2m2!1d-49.4089889!2d-16.5359687!1m5!1m1!1s0x93491f18c7b13639:0xd1034d7b6ba87906!2m2!1d-46.7722996!2d-13.0370837!3e0?entry=ttu",{"$nulls":6},457]
[{"$nulls":4},{"$f":"$E$75","v":"BALIZA"},null,407,"https://www.google.com.br/maps/dir/Nacional+Asfaltos,+Goianira+-+GO,+75370-000/Baliza,+GO,+76250-000/@-16.5398893,-51.6489793,9z/data=!3m1!4b1!4m14!4m13!1m5!1m1!1s0x935e63b5a4f41e4f:0xba5b241b3d264990!2m2!1d-49.4089889!2d-16.5359687!1m5!1m1!1s0x9365307b9d2245d1:0xdb2d6f69d7d7b0a9!2m2!1d-52.5464374!2d-16.196968!3e0?entry=ttu"]
[{"$nulls":4},{"$f":"$E$76","v":"APORÉ"},null,483,"https://www.google.com.br/maps/dir/Nacional+Asfaltos,+Goianira+-+GO,+75370-000/Apor%C3%A9,+GO/@-17.8167798,-52.0809011,8z/data=!3m1!4b1!4m14!4m13!1m5!1m1!1s0x935e63b5a4f41e4f:0xba5b241b3d264990!2m2!1d-49.4089889!2d-16.5359687!1m5!1m1!1s0x949c5a0f2a9ba177:0x7af8cec9490b47fc!2m2!1d-51.9255012!2d-18.9660716!3e0?entry=ttu"]
[{"$nulls":4},{"$f":"$E$77","v":"CRISTALINA"},null,312,"https://www.google.com.br/maps/dir/Nacional+Asfaltos,+Goianira+-+GO,+75370-000/Cristalina,+GO/@-16.713848,-49.1646956,9z/data=!3m1!4b1!4m14!4m13!1m5!1m1!1s0x935e63b5a4f41e4f:0xba5b241b3d264990!2m2!1d-49.4089889!2d-16.5359687!1m5!1m1!1s0x93583d29b2aa9011:0x9d039879fad265bc!2m2!1d-47.6085589!2d-16.7639015!3e0?entry=ttu"]

{"sheet":"Resumo_Transp","index":13,"n_rows":25,"n_cols":23,"rows_kept":25,"cut":false,"hidden":false,"merged":[[21,2,24,2],[16,2,19,2],[14,2,15,2],[14,3,14,6],[14,7,14,8],[14,18,14,19],[10,1,10,3],[10,4,10,6],[10,10,12,10],[11,1,11,2],[12,1,12,2]]}
{"$rows_empty":8}
[null,null,null,"LEGENDA",null,"RESULTADO PARCIAL","RESULTADO FINAL"]
[]
[null,"DADOS ANP",null,null,"ÍNDICE DE PAVIMENTAÇÃO DNIT",{"$nulls":5},"IMPOSTOS","COFINS",{"$f":"'Transp. EAI'!$P$5","v":0},{"$f":"'Transp. EAI'!$P$5","v":0}]
[null,"TIPOLOGIA DO MATERIAL",null,"LIGANTE BETUMINOSO","ÍNDICE INICIAL","2014-07-01",{"$f":"'Transp. EAI'!$I$6","v":270.23700000000002},{"$nulls":4},"PIS",{"$f":"'Transp. EAI'!$P$6","v":0},{"$f":"'Transp. EAI'!$P$6","v":0}]
[null,"DATA ANP","DATA ANP",{"$f":"'Transp. EAI'!$F$7","v":"2024-04-01"},"ÍNDICE FINAL",{"$f":"'Transp. EAI'!$H$7","v":"2024-04-01"},{"$f":"'Transp. EAI'!$I$7","v":567.09199999999998},{"$nulls":4}," ICMS",{"$f":"'Transp. EAI'!$P$7","v":0},{"$f":"'Transp. EAI'!$P$7","v":0}]
[]
[null,"DATA-BASE","PRODUTOS","LOCALIDADES",null,null,null,"CUSTO ANP (R$/Kg)",null,"CUSTO ANP","IMPOSTOS DO PRODUTO","CUSTO DO PRODUTO COM IMPOSTOS","DMT's","DMT's","CUSTO DO TRANSPORTE TOTAL","ICMS","ATUALIZAÇÃO DO CUSTO DE TRANSPORTE","CUSTO DO TRANSPORTE RODOVIA PAVIMENTADA COM IMPOSTOS E ATUALIZAÇÃO MONETÁRIA","PEDÁGIO ",null,"TOTAL TRANSPORTE","TOTAL PRODUTO","TOTAL GERAL"]
[null,{"$f":"F13","v":"2024-04-01"},null,"REFINARIAS","ENDEREÇO","ORIGEM\nREFINARIAS / DISTRIBUIDORAS","DESTINO","ESTADO","REGIÃO","R$/t","R$/t","R$/t","KM","KM","R$/t","R$/t","R$/t","R$/t","CUSTO POR EIXO","R$/t","R$/t","R$/t","R$/t"]
[null,1,"EAI",{"$f":"VLOOKUP($W17,'Transp. EAI'!$B$11:$AA$14,4,FALSE)","v":{"$error":"#VALUE!"}},{"$f":"VLOOKUP($W17,'Transp. EAI'!$B$11:$AA$14,5,FALSE)","v":{"$error":"#VALUE!"}},{"$f":"VLOOKUP($W17,'Transp. EAI'!$B$11:$AA$14,7,FALSE)","v":{"$error":"#VALUE!"}},{"$f":"VLOOKUP($W17,'Transp. EAI'!$B$11:$AA$14,8,FALSE)","v":{"$error":"#VALUE!"}},{"$f":"VLOOKUP($W17,'Transp. EAI'!$B$11:$AA$14,9,FALSE)","v":{"$error":"#VALUE!"}},{"$f":"VLOOKUP($W17,'Transp. EAI'!$B$11:$AA$14,10,FALSE)","v":{"$error":"#VALUE!"}},{"$f":"VLOOKUP($W17,'Transp. EAI'!$B$11:$AA$14,11,FALSE)","v":{"$error":"#VALUE!"}},{"$f":"VLOOKUP($W17,'Transp. EAI'!$B$11:$AA$14,12,FALSE)","v":{"$error":"#VALUE!"}},{"$f":"VLOOKUP($W17,'Transp. EAI'!$B$11:$AA$14,13,FALSE)","v":{"$error":"#VALUE!"}},{"$f":"VLOOKUP($W17,'Transp. EAI'!$B$11:$AA$14,14,FALSE)","v":{"$error":"#VALUE!"}},{"$f":"VLOOKUP($W17,'Transp. EAI'!$B$11:$AA$14,15,FALSE)","v":{"$error":"#VALUE!"}},{"$f":"VLOOKUP($W17,'Transp. EAI'!$B$11:$AA$14,18,FALSE)","v":{"$error":"#VALUE!"}},{"$f":"VLOOKUP($W17,'Transp. EAI'!$B$11:$AA$14,19,FALSE)","v":{"$error":"#VALUE!"}},{"$f":"VLOOKUP($W17,'Transp. EAI'!$B$11:$AA$14,20,FALSE)","v":{"$error":"#VALUE!"}},{"$f":"VLOOKUP($W17,'Transp. EAI'!$B$11:$AA$14,21,FALSE)","v":{"$error":"#VALUE!"}},{"$f":"VLOOKUP($W17,'Transp. EAI'!$B$11:$AA$14,22,FALSE)","v":{"$error":"#VALUE!"}},{"$f":"VLOOKUP($W17,'Transp. EAI'!$B$11:$AA$14,23,FALSE)","v":{"$error":"#VALUE!"}},{"$f":"VLOOKUP($W17,'Transp. EAI'!$B$11:$AA$14,24,FALSE)","v":{"$error":"#VALUE!"}},{"$f":"VLOOKUP($W17,'Transp. EAI'!$B$11:$AA$14,25,FALSE)","v":{"$error":"#VALUE!"}},{"$f":"SMALL('Transp. EAI'!$AA$11:$AA$14,1)","v":{"$error":"#VALUE!"}}]
[null,2,null,{"$f":"VLOOKUP($W18,'Transp. EAI'!$B$11:$AA$14,4,FALSE)","v":{"$error":"#VALUE!"}},{"$f":"VLOOKUP($W18,'Transp. EAI'!$B$11:$AA$14,5,FALSE)","v":{"$error":"#VALUE!"}},{"$f":"VLOOKUP($W18,'Transp. EAI'!$B$11:$AA$14,7,FALSE)","v":{"$error":"#VALUE!"}},{"$f":"VLOOKUP($W18,'Transp. EAI'!$B$11:$AA$14,8,FALSE)","v":{"$error":"#VALUE!"}},{"$f":"VLOOKUP($W18,'Transp. EAI'!$B$11:$AA$14,9,FALSE)","v":{"$error":"#VALUE!"}},{"$f":"VLOOKUP($W18,'Transp. EAI'!$B$11:$AA$14,10,FALSE)","v":{"$error":"#VALUE!"}},{"$f":"VLOOKUP($W18,'Transp. EAI'!$B$11:$AA$14,11,FALSE)","v":{"$error":"#VALUE!"}},{"$f":"VLOOKUP($W18,'Transp. EAI'!$B$11:$AA$14,12,FALSE)","v":{"$error":"#VALUE!"}},{"$f":"VLOOKUP($W18,'Transp. EAI'!$B$11:$AA$14,13,FALSE)","v":{"$error":"#VALUE!"}},{"$f":"VLOOKUP($W18,'Transp. EAI'!$B$11:$AA$14,14,FALSE)","v":{"$error":"#VALUE!"}},{"$f":"VLOOKUP($W18,'Transp. EAI'!$B$11:$AA$14,15,FALSE)","v":{"$error":"#VALUE!"}},{"$f":"VLOOKUP($W18,'Transp. EAI'!$B$11:$AA$14,18,FALSE)","v":{"$error":"#VALUE!"}},{"$f":"VLOOKUP($W18,'Transp. EAI'!$B$11:$AA$14,19,FALSE)","v":{"$error":"#VALUE!"}},{"$f":"VLOOKUP($W18,'Transp. EAI'!$B$11:$AA$14,20,FALSE)","v":{"$error":"#VALUE!"}},{"$f":"VLOOKUP($W18,'Transp. EAI'!$B$11:$AA$14,21,FALSE)","v":{"$error":"#VALUE!"}},{"$f":"VLOOKUP($W18,'Transp. EAI'!$B$11:$AA$14,22,FALSE)","v":{"$error":"#VALUE!"}},{"$f":"VLOOKUP($W18,'Transp. EAI'!$B$11:$AA$14,23,FALSE)","v":{"$error":"#VALUE!"}},{"$f":"VLOOKUP($W18,'Transp. EAI'!$B$11:$AA$14,24,FALSE)","v":{"$error":"#VALUE!"}},{"$f":"VLOOKUP($W18,'Transp. EAI'!$B:$AA,25,FALSE)","v":{"$error":"#VALUE!"}},{"$f":"SMALL('Transp. EAI'!$AA$11:$AA$14,2)","v":{"$error":"#VALUE!"}}]
[null,3,null,{"$f":"VLOOKUP($W19,'Transp. EAI'!$B$11:$AA$14,4,FALSE)","v":{"$error":"#VALUE!"}},{"$f":"VLOOKUP($W19,'Transp. EAI'!$B$11:$AA$14,5,FALSE)","v":{"$error":"#VALUE!"}},{"$f":"VLOOKUP($W19,'Transp. EAI'!$B$11:$AA$14,7,FALSE)","v":{"$error":"#VALUE!"}},{"$f":"VLOOKUP($W19,'Transp. EAI'!$B$11:$AA$14,8,FALSE)","v":{"$error":"#VALUE!"}},{"$f":"VLOOKUP($W19,'Transp. EAI'!$B$11:$AA$14,9,FALSE)","v":{"$error":"#VALUE!"}},{"$f":"VLOOKUP($W19,'Transp. EAI'!$B$11:$AA$14,10,FALSE)","v":{"$error":"#VALUE!"}},{"$f":"VLOOKUP($W19,'Transp. EAI'!$B$11:$AA$14,11,FALSE)","v":{"$error":"#VALUE!"}},{"$f":"VLOOKUP($W19,'Transp. EAI'!$B$11:$AA$14,12,FALSE)","v":{"$error":"#VALUE!"}},{"$f":"VLOOKUP($W19,'Transp. EAI'!$B$11:$AA$14,13,FALSE)","v":{"$error":"#VALUE!"}},{"$f":"VLOOKUP($W19,'Transp. EAI'!$B$11:$AA$14,14,FALSE)","v":{"$error":"#VALUE!"}},{"$f":"VLOOKUP($W19,'Transp. EAI'!$B$11:$AA$14,15,FALSE)","v":{"$error":"#VALUE!"}},{"$f":"VLOOKUP($W19,'Transp. EAI'!$B$11:$AA$14,18,FALSE)","v":{"$error":"#VALUE!"}},{"$f":"VLOOKUP($W19,'Transp. EAI'!$B$11:$AA$14,19,FALSE)","v":{"$error":"#VALUE!"}},{"$f":"VLOOKUP($W19,'Transp. EAI'!$B$11:$AA$14,20,FALSE)","v":{"$error":"#VALUE!"}},{"$f":"VLOOKUP($W19,'Transp. EAI'!$B$11:$AA$14,21,FALSE)","v":{"$error":"#VALUE!"}},{"$f":"VLOOKUP($W19,'Transp. EAI'!$B$11:$AA$14,22,FALSE)","v":{"$error":"#VALUE!"}},{"$f":"VLOOKUP($W19,'Transp. EAI'!$B$11:$AA$14,23,FALSE)","v":{"$error":"#VALUE!"}},{"$f":"VLOOKUP($W19,'Transp. EAI'!$B$11:$AA$14,24,FALSE)","v":{"$error":"#VALUE!"}},{"$f":"VLOOKUP($W19,'Transp. EAI'!$B:$AA,25,FALSE)","v":{"$error":"#VALUE!"}},{"$f":"SMALL('Transp. EAI'!$AA$11:$AA$14,3)","v":{"$error":"#VALUE!"}}]
[null,4,null,{"$f":"VLOOKUP($W20,'Transp. EAI'!$B$11:$AA$14,4,FALSE)","v":{"$error":"#VALUE!"}},{"$f":"VLOOKUP($W20,'Transp. EAI'!$B$11:$AA$14,5,FALSE)","v":{"$error":"#VALUE!"}},{"$f":"VLOOKUP($W20,'Transp. EAI'!$B$11:$AA$14,7,FALSE)","v":{"$error":"#VALUE!"}},{"$f":"VLOOKUP($W20,'Transp. EAI'!$B$11:$AA$14,8,FALSE)","v":{"$error":"#VALUE!"}},{"$f":"VLOOKUP($W20,'Transp. EAI'!$B$11:$AA$14,9,FALSE)","v":{"$error":"#VALUE!"}},{"$f":"VLOOKUP($W20,'Transp. EAI'!$B$11:$AA$14,10,FALSE)","v":{"$error":"#VALUE!"}},{"$f":"VLOOKUP($W20,'Transp. EAI'!$B$11:$AA$14,11,FALSE)","v":{"$error":"#VALUE!"}},{"$f":"VLOOKUP($W20,'Transp. EAI'!$B$11:$AA$14,12,FALSE)","v":{"$error":"#VALUE!"}},{"$f":"VLOOKUP($W20,'Transp. EAI'!$B$11:$AA$14,13,FALSE)","v":{"$error":"#VALUE!"}},{"$f":"VLOOKUP($W20,'Transp. EAI'!$B$11:$AA$14,14,FALSE)","v":{"$error":"#VALUE!"}},{"$f":"VLOOKUP($W20,'Transp. EAI'!$B$11:$AA$14,15,FALSE)","v":{"$error":"#VALUE!"}},{"$f":"VLOOKUP($W20,'Transp. EAI'!$B$11:$AA$14,18,FALSE)","v":{"$error":"#VALUE!"}},{"$f":"VLOOKUP($W20,'Transp. EAI'!$B$11:$AA$14,19,FALSE)","v":{"$error":"#VALUE!"}},{"$f":"VLOOKUP($W20,'Transp. EAI'!$B$11:$AA$14,20,FALSE)","v":{"$error":"#VALUE!"}},{"$f":"VLOOKUP($W20,'Transp. EAI'!$B$11:$AA$14,21,FALSE)","v":{"$error":"#VALUE!"}},{"$f":"VLOOKUP($W20,'Transp. EAI'!$B$11:$AA$14,22,FALSE)","v":{"$error":"#VALUE!"}},{"$f":"VLOOKUP($W20,'Transp. EAI'!$B$11:$AA$14,23,FALSE)","v":{"$error":"#VALUE!"}},{"$f":"VLOOKUP($W20,'Transp. EAI'!$B$11:$AA$14,24,FALSE)","v":{"$error":"#VALUE!"}},{"$f":"VLOOKUP($W20,'Transp. EAI'!$B:$AA,25,FALSE)","v":{"$error":"#VALUE!"}},{"$f":"SMALL('Transp. EAI'!$AA$11:$AA$14,4)","v":{"$error":"#VALUE!"}}]
[]
[null,1,"RR2-C",{"$f":"VLOOKUP($W22,'Transp. RR-2C'!$B:$AA,4,FALSE)","v":{"$error":"#VALUE!"}},{"$f":"VLOOKUP($W22,'Transp. RR-2C'!$B:$AA,5,FALSE)","v":{"$error":"#VALUE!"}},{"$f":"VLOOKUP($W22,'Transp. RR-2C'!$B:$AA,7,FALSE)","v":{"$error":"#VALUE!"}},{"$f":"VLOOKUP($W22,'Transp. RR-2C'!$B:$AA,8,FALSE)","v":{"$error":"#VALUE!"}},{"$f":"VLOOKUP($W22,'Transp. RR-2C'!$B:$AA,9,FALSE)","v":{"$error":"#VALUE!"}},{"$f":"VLOOKUP($W22,'Transp. RR-2C'!$B:$AA,10,FALSE)","v":{"$error":"#VALUE!"}},{"$f":"VLOOKUP($W22,'Transp. RR-2C'!$B:$AA,11,FALSE)","v":{"$error":"#VALUE!"}},{"$f":"VLOOKUP($W22,'Transp. RR-2C'!$B:$AA,12,FALSE)","v":{"$error":"#VALUE!"}},{"$f":"VLOOKUP($W22,'Transp. RR-2C'!$B:$AA,13,FALSE)","v":{"$error":"#VALUE!"}},{"$f":"VLOOKUP($W22,'Transp. RR-2C'!$B:$AA,14,FALSE)","v":{"$error":"#VALUE!"}},{"$f":"VLOOKUP($W22,'Transp. RR-2C'!$B:$AA,15,FALSE)","v":{"$error":"#VALUE!"}},{"$f":"VLOOKUP($W22,'Transp. RR-2C'!$B:$AA,18,FALSE)","v":{"$error":"#VALUE!"}},{"$f":"VLOOKUP($W22,'Transp. RR-2C'!$B:$AA,19,FALSE)","v":{"$error":"#VALUE!"}},{"$f":"VLOOKUP($W22,'Transp. RR-2C'!$B:$AA,20,FALSE)","v":{"$error":"#VALUE!"}},{"$f":"VLOOKUP($W22,'Transp. RR-2C'!$B:$AA,21,FALSE)","v":{"$error":"#VALUE!"}},{"$f":"VLOOKUP($W22,'Transp. RR-2C'!$B:$AA,22,FALSE)","v":{"$error":"#VALUE!"}},{"$f":"VLOOKUP($W22,'Transp. RR-2C'!$B:$AA,23,FALSE)","v":{"$error":"#VALUE!"}},{"$f":"VLOOKUP($W22,'Transp. RR-2C'!$B:$AA,24,FALSE)","v":{"$error":"#VALUE!"}},{"$f":"VLOOKUP($W22,'Transp. RR-2C'!$B:$AA,25,FALSE)","v":{"$error":"#VALUE!"}},{"$f":"SMALL('Transp. RR-2C'!$AA$11:$AA$14,1)","v":{"$error":"#VALUE!"}}]
[null,2,null,{"$f":"VLOOKUP($W23,'Transp. RR-2C'!$B:$AA,4,FALSE)","v":{"$error":"#VALUE!"}},{"$f":"VLOOKUP($W23,'Transp. RR-2C'!$B:$AA,5,FALSE)","v":{"$error":"#VALUE!"}},{"$f":"VLOOKUP($W23,'Transp. RR-2C'!$B:$AA,7,FALSE)","v":{"$error":"#VALUE!"}},{"$f":"VLOOKUP($W23,'Transp. RR-2C'!$B:$AA,8,FALSE)","v":{"$error":"#VALUE!"}},{"$f":"VLOOKUP($W23,'Transp. RR-2C'!$B:$AA,9,FALSE)","v":{"$error":"#VALUE!"}},{"$f":"VLOOKUP($W23,'Transp. RR-2C'!$B:$AA,10,FALSE)","v":{"$error":"#VALUE!"}},{"$f":"VLOOKUP($W23,'Transp. RR-2C'!$B:$AA,11,FALSE)","v":{"$error":"#VALUE!"}},{"$f":"VLOOKUP($W23,'Transp. RR-2C'!$B:$AA,12,FALSE)","v":{"$error":"#VALUE!"}},{"$f":"VLOOKUP($W23,'Transp. RR-2C'!$B:$AA,13,FALSE)","v":{"$error":"#VALUE!"}},{"$f":"VLOOKUP($W23,'Transp. RR-2C'!$B:$AA,14,FALSE)","v":{"$error":"#VALUE!"}},{"$f":"VLOOKUP($W23,'Transp. RR-2C'!$B:$AA,15,FALSE)","v":{"$error":"#VALUE!"}},{"$f":"VLOOKUP($W23,'Transp. RR-2C'!$B:$AA,18,FALSE)","v":{"$error":"#VALUE!"}},{"$f":"VLOOKUP($W23,'Transp. RR-2C'!$B:$AA,19,FALSE)","v":{"$error":"#VALUE!"}},{"$f":"VLOOKUP($W23,'Transp. RR-2C'!$B:$AA,20,FALSE)","v":{"$error":"#VALUE!"}},{"$f":"VLOOKUP($W23,'Transp. RR-2C'!$B:$AA,21,FALSE)","v":{"$error":"#VALUE!"}},{"$f":"VLOOKUP($W23,'Transp. RR-2C'!$B:$AA,22,FALSE)","v":{"$error":"#VALUE!"}},{"$f":"VLOOKUP($W23,'Transp. RR-2C'!$B:$AA,23,FALSE)","v":{"$error":"#VALUE!"}},{"$f":"VLOOKUP($W23,'Transp. RR-2C'!$B:$AA,24,FALSE)","v":{"$error":"#VALUE!"}},{"$f":"VLOOKUP($W23,'Transp. RR-2C'!$B:$AA,25,FALSE)","v":{"$error":"#VALUE!"}},{"$f":"SMALL('Transp. RR-2C'!$AA$11:$AA$14,2)","v":{"$error":"#VALUE!"}}]
[null,3,null,{"$f":"VLOOKUP($W24,'Transp. RR-2C'!$B:$AA,4,FALSE)","v":{"$error":"#VALUE!"}},{"$f":"VLOOKUP($W24,'Transp. RR-2C'!$B:$AA,5,FALSE)","v":{"$error":"#VALUE!"}},{"$f":"VLOOKUP($W24,'Transp. RR-2C'!$B:$AA,7,FALSE)","v":{"$error":"#VALUE!"}},{"$f":"VLOOKUP($W24,'Transp. RR-2C'!$B:$AA,8,FALSE)","v":{"$error":"#VALUE!"}},{"$f":"VLOOKUP($W24,'Transp. RR-2C'!$B:$AA,9,FALSE)","v":{"$error":"#VALUE!"}},{"$f":"VLOOKUP($W24,'Transp. RR-2C'!$B:$AA,10,FALSE)","v":{"$error":"#VALUE!"}},{"$f":"VLOOKUP($W24,'Transp. RR-2C'!$B:$AA,11,FALSE)","v":{"$error":"#VALUE!"}},{"$f":"VLOOKUP($W24,'Transp. RR-2C'!$B:$AA,12,FALSE)","v":{"$error":"#VALUE!"}},{"$f":"VLOOKUP($W24,'Transp. RR-2C'!$B:$AA,13,FALSE)","v":{"$error":"#VALUE!"}},{"$f":"VLOOKUP($W24,'Transp. RR-2C'!$B:$AA,14,FALSE)","v":{"$error":"#VALUE!"}},{"$f":"VLOOKUP($W24,'Transp. RR-2C'!$B:$AA,15,FALSE)","v":{"$error":"#VALUE!"}},{"$f":"VLOOKUP($W24,'Transp. RR-2C'!$B:$AA,18,FALSE)","v":{"$error":"#VALUE!"}},{"$f":"VLOOKUP($W24,'Transp. RR-2C'!$B:$AA,19,FALSE)","v":{"$error":"#VALUE!"}},{"$f":"VLOOKUP($W24,'Transp. RR-2C'!$B:$AA,20,FALSE)","v":{"$error":"#VALUE!"}},{"$f":"VLOOKUP($W24,'Transp. RR-2C'!$B:$AA,21,FALSE)","v":{"$error":"#VALUE!"}},{"$f":"VLOOKUP($W24,'Transp. RR-2C'!$B:$AA,22,FALSE)","v":{"$error":"#VALUE!"}},{"$f":"VLOOKUP($W24,'Transp. RR-2C'!$B:$AA,23,FALSE)","v":{"$error":"#VALUE!"}},{"$f":"VLOOKUP($W24,'Transp. RR-2C'!$B:$AA,24,FALSE)","v":{"$error":"#VALUE!"}},{"$f":"VLOOKUP($W24,'Transp. RR-2C'!$B:$AA,25,FALSE)","v":{"$error":"#VALUE!"}},{"$f":"SMALL('Transp. RR-2C'!$AA$11:$AA$14,3)","v":{"$error":"#VALUE!"}}]
[null,4,null,{"$f":"VLOOKUP($W25,'Transp. RR-2C'!$B:$AA,4,FALSE)","v":{"$error":"#VALUE!"}},{"$f":"VLOOKUP($W25,'Transp. RR-2C'!$B:$AA,5,FALSE)","v":{"$error":"#VALUE!"}},{"$f":"VLOOKUP($W25,'Transp. RR-2C'!$B:$AA,7,FALSE)","v":{"$error":"#VALUE!"}},{"$f":"VLOOKUP($W25,'Transp. RR-2C'!$B:$AA,8,FALSE)","v":{"$error":"#VALUE!"}},{"$f":"VLOOKUP($W25,'Transp. RR-2C'!$B:$AA,9,FALSE)","v":{"$error":"#VALUE!"}},{"$f":"VLOOKUP($W25,'Transp. RR-2C'!$B:$AA,10,FALSE)","v":{"$error":"#VALUE!"}},{"$f":"VLOOKUP($W25,'Transp. RR-2C'!$B:$AA,11,FALSE)","v":{"$error":"#VALUE!"}},{"$f":"VLOOKUP($W25,'Transp. RR-2C'!$B:$AA,12,FALSE)","v":{"$error":"#VALUE!"}},{"$f":"VLOOKUP($W25,'Transp. RR-2C'!$B:$AA,13,FALSE)","v":{"$error":"#VALUE!"}},{"$f":"VLOOKUP($W25,'Transp. RR-2C'!$B:$AA,14,FALSE)","v":{"$error":"#VALUE!"}},{"$f":"VLOOKUP($W25,'Transp. RR-2C'!$B:$AA,15,FALSE)","v":{"$error":"#VALUE!"}},{"$f":"VLOOKUP($W25,'Transp. RR-2C'!$B:$AA,18,FALSE)","v":{"$error":"#VALUE!"}},{"$f":"VLOOKUP($W25,'Transp. RR-2C'!$B:$AA,19,FALSE)","v":{"$error":"#VALUE!"}},{"$f":"VLOOKUP($W25,'Transp. RR-2C'!$B:$AA,20,FALSE)","v":{"$error":"#VALUE!"}},{"$f":"VLOOKUP($W25,'Transp. RR-2C'!$B:$AA,21,FALSE)","v":{"$error":"#VALUE!"}},{"$f":"VLOOKUP($W25,'Transp. RR-2C'!$B:$AA,22,FALSE)","v":{"$error":"#VALUE!"}},{"$f":"VLOOKUP($W25,'Transp. RR-2C'!$B:$AA,23,FALSE)","v":{"$error":"#VALUE!"}},{"$f":"VLOOKUP($W25,'Transp. RR-2C'!$B:$AA,24,FALSE)","v":{"$error":"#VALUE!"}},{"$f":"VLOOKUP($W25,'Transp. RR-2C'!$B:$AA,25,FALSE)","v":{"$error":"#VALUE!"}},{"$f":"SMALL('Transp. RR-2C'!$AA$11:$AA$14,4)","v":{"$error":"#VALUE!"}}]

{"sheet":"Mom. Transporte","index":14,"n_rows":83,"n_cols":15,"rows_kept":83,"cut":false,"hidden":false,"merged":[[76,5,76,7],[83,5,83,7]]}
[]
[]
[]
[]
[null,{"$f":"'RESUMO MODULO TOTAL'!$C$5","v":"Execução De Serviços De Pavimentação Com Tratamento Superficial Duplo Em Vias De Municípios Diversos Inseridos Na Área De Atuação Da Codevasf, No Estado De Goiás "}]
[null,null,"RESUMO DO TRANSPORTE PRINCIPAL",null,null,"DMT ATÉ 50 KM NÃO DEVE SER PAGA",null,null,null,"KM POR TIPO DE REVESTIMENTO",null,null,"% POR TIPO DE REVESTIMENTO"]
[null,"CODIGO ","DESCRIÇÃO","TKM",null,"ADICIONAR APENAS A DISTÂNCIA EXCEDENTE A 50 KM",null,null,"LN","RP","P","LN","RP","P"]
[null,5914359,"Transporte com caminhão basculante de 10 m³ - rodovia em leito natural",{"$f":"ROUND(SUMIF($F$19:$F$85,B8,$L$19:$L$85),2)","v":142087.09},4016096,"Escavação e carga de material de jazida - Cam.basc. 10 m³",null,null,10,10,10]
[null,5914374,"Transporte com caminhão basculante de 10 m³ - rodovia em revestimento primário",{"$f":"ROUND(SUMIF($G$19:$G$85,B9,$M$19:$M$85),2)","v":142087.09},"M0028","Areia média - Caminhão basculante 10 m³",null,null,10,10,10,0.1,0.1,0.8]
[null,5914389,"Transporte com caminhão basculante de 10 m³ - rodovia pavimentada",{"$f":"ROUND(SUMIF($H$19:$H$85,B10,$N$19:$N$85),2)","v":1136696.72},"M0082","Areia média lavada - Caminhão basculante 10 m³",null,null,10,10,10]
[null,5914314,"Transporte com caminhão basculante de 6 m³ - rodovia em leito natural",{"$f":"ROUND(SUMIF($F$19:$F$85,B11,$L$19:$L$85),2)","v":913.5},"M0005","Brita 0 - Caminhão basculante 10 m³",null,null,10,10,10]
[null,5914329,"Transporte com caminhão basculante de 6 m³ - rodovia em revestimento primário",{"$f":"ROUND(SUMIF($G$19:$G$85,B12,$M$19:$M$85),2)","v":913.5},"M0191","Brita 1 - Caminhão basculante 10 m³",null,null,10,10,10]
[null,5914344,"Transporte com caminhão basculante de 6 m³ - rodovia pavimentada",{"$f":"ROUND(SUMIF($H$19:$H$85,B13,$N$19:$N$85),2)","v":7308},"M0192","Brita 2 - Caminhão basculante 10 m³",null,null,10,10,10]
[null,5914449,"Transporte com caminhão carroceria de 15 t - rodovia em leito natural",{"$f":"ROUND(SUMIF($F$19:$F$85,B14,$L$19:$L$85),2)","v":683.44},"M0030","Aditivo plastificante - Cam.carroc. 15 t",null,null,10,10,10]
[null,5914464,"Transporte com caminhão carroceria de 15 t - rodovia em revestimento primário",{"$f":"ROUND(SUMIF($G$19:$G$85,B15,$M$19:$M$85),2)","v":683.44},"M0424","Cimento Portland CP II - 32 - saco - Cam.carroc. 15 t",null,null,10,10,10]
[null,5914479,"Transporte com caminhão carroceria de 15 t - rodovia pavimentada",{"$f":"ROUND(SUMIF($H$19:$H$85,B16,$N$19:$N$85),2)","v":5467.53},"M2158","Argamassa asfáltica - Cam.carroc. 15 t",null,null,10,10,10]
[]
[]
[null,"SISTEMA DE CUSTOS REFERENCIAIS DE OBRAS - SICRO"]
[null,"Custo Unitário de Referência",null,"Quantitativo","Unidade"]
[null,"4011370","Tratamento superficial duplo com emulsão - brita comercial",{"$f":"SUMIF('RESUMO MODULO TOTAL'!C:C,B21,'RESUMO MODULO TOTAL'!H:H)","v":210000},"m²"]
[null,"F - MOMENTO DE TRANSPORTE",null,"Quantidade","Unidade",null,"CÓDIGO TRANSPORTE",null,null,"KM POR TIPO DE REVESTIMENTO",null,null,"QUANTITATIVO TOTAL DE TRANSPORTE (tkm)"]
[{"$nulls":5},"LN","RP","P","LN","RP","P","LN","RP","P"]
[null,"M0005","Brita 0 - Caminhão basculante 10 m³",1.0999999999999999E-2,"tkm","5914359","5914374","5914389",{"$f":"INDEX($E$6:$K$16,MATCH(B24,$E$6:$E$16,0),5)","v":10},{"$f":"INDEX($E$6:$K$16,MATCH(B24,$E$6:$E$16,0),6)","v":10},{"$f":"INDEX($E$6:$K$16,MATCH(B24,$E$6:$E$16,0),7)","v":10},{"$f":"ROUND(I24*D24*D21*$L$9,2)","v":2310},{"$f":"ROUND(J24*D24*D21*$M$9,2)","v":2310},{"$f":"ROUND(K24*D24*D21*$N$9,2)","v":18480}]
[null,"M0191","Brita 1 - Caminhão basculante 10 m³",2.2499999999999999E-2,"tkm","5914359","5914374","5914389",{"$f":"INDEX($E$6:$K$16,MATCH(B25,$E$6:$E$16,0),5)","v":10},{"$f":"INDEX($E$6:$K$16,MATCH(B25,$E$6:$E$16,0),6)","v":10},{"$f":"INDEX($E$6:$K$16,MATCH(B25,$E$6:$E$16,0),7)","v":10},{"$f":"ROUND(I25*D25*D21*$L$9,2)","v":4725},{"$f":"ROUND(J25*D25*D21*$M$9,2)","v":4725},{"$f":"ROUND(K25*D25*D21*$N$9,2)","v":37800}]
[]
[null,"SISTEMA DE CUSTOS REFERENCIAIS DE OBRAS - SICRO"]
[null,"Custo Unitário de Referência",null,"Quantitativo","Unidade"]
[null,"4915637","Capa selante - areia comercial",{"$f":"SUMIF('RESUMO MODULO TOTAL'!C:C,B29,'RESUMO MODULO TOTAL'!H:H)","v":210000},"m²"]
[null,"F - MOMENTO DE TRANSPORTE",null,"Quantidade","Unidade",null,"CÓDIGO TRANSPORTE",null,null,"KM POR TIPO DE REVESTIMENTO",null,null,"QUANTITATIVO TOTAL DE TRANSPORTE (tkm)"]
[{"$nulls":5},"LN","RP","P","LN","RP","P","LN","RP","P"]
[null,"M0028","Areia média - Caminhão basculante 6 m³",4.3499999999999997E-3,"tkm","5914314","5914329","5914344",{"$f":"INDEX($E$6:$K$16,MATCH(B32,$E$6:$E$16,0),5)","v":10},{"$f":"INDEX($E$6:$K$16,MATCH(B32,$E$6:$E$16,0),6)","v":10},{"$f":"INDEX($E$6:$K$16,MATCH(B32,$E$6:$E$16,0),7)","v":10},{"$f":"ROUND(I32*D32*D29*$L$9,2)","v":913.5},{"$f":"ROUND(J32*D32*D29*$M$9,2)","v":913.5},{"$f":"ROUND(K32*D32*D29*$N$9,2)","v":7308}]
[]
[null,"SISTEMA DE CUSTOS REFERENCIAIS DE OBRAS - SICRO"]
[null,"Custo Unitário de Referência",null,"Quantitativo","Unidade"]
[null,4011256,"Base estabilizada granulometricamente com mistura solo brita (70% - 30%) na pista com material de jazida e brita comercial",{"$f":"SUMIF('RESUMO MODULO TOTAL'!C:C,B36,'RESUMO MODULO TOTAL'!H:H)","v":31500},"m³"]
[null,"F - MOMENTO DE TRANSPORTE",null,"Quantidade","Unidade",null,"CÓDIGO TRANSPORTE",null,null,"KM POR TIPO DE REVESTIMENTO",null,null,"QUANTITATIVO TOTAL DE TRANSPORTE (tkm)"]
[{"$nulls":5},"LN","RP","P","LN","RP","P","LN","RP","P"]
[null,4016096,"Escavação e carga de material de jazida - Cam.basc. 10 m³",1.44411,"tkm",5914359,5914374,5914389,{"$f":"INDEX($E$6:$K$16,MATCH(B39,$E$6:$E$16,0),5)","v":10},{"$f":"INDEX($E$6:$K$16,MATCH(B39,$E$6:$E$16,0),6)","v":10},{"$f":"INDEX($E$6:$K$16,MATCH(B39,$E$6:$E$16,0),7)","v":10},{"$f":"ROUND(I39*D39*D36*$L$9,2)","v":45489.47},{"$f":"ROUND(J39*D39*D36*$M$9,2)","v":45489.47},{"$f":"ROUND(K39*D39*D36*$N$9,2)","v":363915.72}]
[null,"M0191","Brita 1 - Caminhão basculante 10 m³",0.61890000000000001,"tkm",5914359,5914374,5914389,{"$f":"INDEX($E$6:$K$16,MATCH(B40,$E$6:$E$16,0),5)","v":10},{"$f":"INDEX($E$6:$K$16,MATCH(B40,$E$6:$E$16,0),6)","v":10},{"$f":"INDEX($E$6:$K$16,MATCH(B40,$E$6:$E$16,0),7)","v":10},{"$f":"ROUND(I40*D40*D36*$L$9,2)","v":19495.349999999999},{"$f":"ROUND(J40*D40*D36*$M$9,2)","v":19495.349999999999},{"$f":"ROUND(K40*D40*D36*$N$9,2)","v":155962.79999999999}]
[]
[null,"SISTEMA DE CUSTOS REFERENCIAIS DE OBRAS - SICRO"]
[null,"Custo Unitário de Referência",null,"Quantitativo","Unidade"]
[null,4011233,"Sub-base estabilizada granulometricamente com mistura solo brita (70% - 30%) na pista com material de jazida e brita comercial",{"$f":"SUMIF('RESUMO MODULO TOTAL'!C:C,B44,'RESUMO MODULO TOTAL'!H:H)","v":31500},"m³"]
[null,"F - MOMENTO DE TRANSPORTE",null,"Quantidade","Unidade",null,"CÓDIGO TRANSPORTE",null,null,"KM POR TIPO DE REVESTIMENTO",null,null,"QUANTITATIVO TOTAL DE TRANSPORTE (tkm)"]
[{"$nulls":5},"LN","RP","P","LN","RP","P","LN","RP","P"]
[null,4016096,"Escavação e carga de material de jazida - Cam.basc. 10 m³",1.44411,"tkm",5914359,5914374,5914389,{"$f":"INDEX($E$6:$K$16,MATCH(B47,$E$6:$E$16,0),5)","v":10},{"$f":"INDEX($E$6:$K$16,MATCH(B47,$E$6:$E$16,0),6)","v":10},{"$f":"INDEX($E$6:$K$16,MATCH(B47,$E$6:$E$16,0),7)","v":10},{"$f":"ROUND(I47*D47*D44*$L$9,2)","v":45489.47},{"$f":"ROUND(J47*D47*D44*$M$9,2)","v":45489.47},{"$f":"ROUND(K47*D47*D44*$N$9,2)","v":363915.72}]
[null,"M0191","Brita 1 - Caminhão basculante 10 m³",0.61890000000000001,"tkm",5914359,5914374,5914389,{"$f":"INDEX($E$6:$K$16,MATCH(B48,$E$6:$E$16,0),5)","v":10},{"$f":"INDEX($E$6:$K$16,MATCH(B48,$E$6:$E$16,0),6)","v":10},{"$f":"INDEX($E$6:$K$16,MATCH(B48,$E$6:$E$16,0),7)","v":10},{"$f":"ROUND(I48*D48*D44*$L$9,2)","v":19495.349999999999},{"$f":"ROUND(J48*D48*D44*$M$9,2)","v":19495.349999999999},{"$f":"ROUND(K48*D48*D44*$N$9,2)","v":155962.79999999999}]
[]
[null,"SISTEMA DE CUSTOS REFERENCIAIS DE OBRAS - SICRO"]
[null,"Custo Unitário de Referência",null,"Quantitativo","Unidade"]
[null,"2003943-A","Meio-fio de concreto - MFC 03 moldado no local com extrusora e concreto betoneira - areia e brita comerciais",{"$f":"SUMIF('RESUMO MODULO TOTAL'!C:C,B52,'RESUMO MODULO TOTAL'!H:H)","v":54000},"m"]
[null,"D - ATIVIDADES AUXILIARES",null,"Quantidade","Unidade",{"$nulls":9},"QUANTIDADE DE ATIVIDADES AUXILIARES"]
[null,1107892,"Concreto fck = 20 MPa - confecção em betoneira e lançamento manual - areia e brita comerciais",4.2000000000000003E-2,"m³",{"$nulls":9},{"$f":"ROUND(D52*D54,2)","v":2268}]
[null,2003842,"Enchimento de junta de concreto com argamassa asfáltica de densidade 1.700 kg/m³ - espessura de 1 cm",5.9499999999999997E-2,"kg",{"$nulls":9},{"$f":"ROUND(D52*D55,2)","v":3213}]
[null,4805750,"Escavação manual em material de 1ª categoria na profundidade de até 1 m",0.03,"m³",{"$nulls":9},{"$f":"ROUND(D52*D56,2)","v":1620}]
[]
[null,"SISTEMA DE CUSTOS REFERENCIAIS DE OBRAS - SICRO"]
[null,"Custo Unitário de Referência",null,"Quantitativo","Unidade"]
[null,"2003947-A","Meio-fio de concreto - MFC 05 moldado no local com extrusora e concreto betoneira - areia e brita comerciais",{"$f":"SUMIF('RESUMO MODULO TOTAL'!C:C,B60,'RESUMO MODULO TOTAL'!H:H)","v":6000},"m"]
[null,"D - ATIVIDADES AUXILIARES",null,"Quantidade","Unidade",{"$nulls":9},"QUANTIDADE DE ATIVIDADES AUXILIARES"]
[null,1107892,"Concreto fck = 20 MPa - confecção em betoneira e lançamento manual - areia e brita comerciais",3.3399999999999999E-2,"m³",{"$nulls":9},{"$f":"ROUND(D60*D62,2)","v":200.4}]
[null,2003842,"Enchimento de junta de concreto com argamassa asfáltica de densidade 1.700 kg/m³ - espessura de 1 cm",4.7300000000000002E-2,"kg",{"$nulls":9},{"$f":"ROUND(D60*D63,2)","v":283.8}]
[null,4805750,"Escavação manual em material de 1ª categoria na profundidade de até 1 m",1.7999999999999999E-2,"m³",{"$nulls":9},{"$f":"ROUND(D60*D64,2)","v":108}]
[]
[]
[null,"SISTEMA DE CUSTOS REFERENCIAIS DE OBRAS - SICRO"]
[null,"Custo Unitário de Referência",null,"Quantitativo","Unidade"]
[null,1107892,"Concreto fck = 20 MPa - confecção em betoneira e lançamento manual - areia e brita comerciais",{"$f":"SUMIF($B$19:$B$65,B69,$O$19:$O$65)","v":2468.4},"m³"]
[null,"F - MOMENTO DE TRANSPORTE",null,"Quantidade","Unidade",null,"CÓDIGO TRANSPORTE",null,null,"KM POR TIPO DE REVESTIMENTO",null,null,"QUANTITATIVO TOTAL DE TRANSPORTE (tkm)"]
[{"$nulls":5},"LN","RP","P","LN","RP","P","LN","RP","P"]
[null,"M0030","Aditivo plastificante - Cam.carroc. 15 t",8.1999999999999998E-4,"tkm",5914449,5914464,5914479,{"$f":"INDEX($E$6:$K$16,MATCH(B72,$E$6:$E$16,0),5)","v":10},{"$f":"INDEX($E$6:$K$16,MATCH(B72,$E$6:$E$16,0),6)","v":10},{"$f":"INDEX($E$6:$K$16,MATCH(B72,$E$6:$E$16,0),7)","v":10},{"$f":"ROUND(I72*D72*D69*$L$9,2)","v":2.02},{"$f":"ROUND(J72*D72*D69*$M$9,2)","v":2.02},{"$f":"ROUND(K72*D72*D69*$N$9,2)","v":16.190000000000001}]
[null,"M0082","Areia média lavada - Caminhão basculante 10 m³",0.95638999999999996,"tkm",5914359,5914374,5914389,{"$f":"INDEX($E$6:$K$16,MATCH(B73,$E$6:$E$16,0),5)","v":10},{"$f":"INDEX($E$6:$K$16,MATCH(B73,$E$6:$E$16,0),6)","v":10},{"$f":"INDEX($E$6:$K$16,MATCH(B73,$E$6:$E$16,0),7)","v":10},{"$f":"ROUND(I73*D73*D69*$L$9,2)","v":2360.75},{"$f":"ROUND(J73*D73*D69*$M$9,2)","v":2360.75},{"$f":"ROUND(K73*D73*D69*$N$9,2)","v":18886.02}]
[null,"M0191","Brita 1 - Caminhão basculante 10 m³",0.55130999999999997,"tkm",5914359,5914374,5914389,{"$f":"INDEX($E$6:$K$16,MATCH(B74,$E$6:$E$16,0),5)","v":10},{"$f":"INDEX($E$6:$K$16,MATCH(B74,$E$6:$E$16,0),6)","v":10},{"$f":"INDEX($E$6:$K$16,MATCH(B74,$E$6:$E$16,0),7)","v":10},{"$f":"ROUND(I74*D74*D69*$L$9,2)","v":1360.85},{"$f":"ROUND(J74*D74*D69*$M$9,2)","v":1360.85},{"$f":"ROUND(K74*D74*D69*$N$9,2)","v":10886.83}]
[null,"M0192","Brita 2 - Caminhão basculante 10 m³",0.55130999999999997,"tkm",5914359,5914374,5914389,{"$f":"INDEX($E$6:$K$16,MATCH(B75,$E$6:$E$16,0),5)","v":10},{"$f":"INDEX($E$6:$K$16,MATCH(B75,$E$6:$E$16,0),6)","v":10},{"$f":"INDEX($E$6:$K$16,MATCH(B75,$E$6:$E$16,0),7)","v":10},{"$f":"ROUND(I75*D75*D69*$L$9,2)","v":1360.85},{"$f":"ROUND(J75*D75*D69*$M$9,2)","v":1360.85},{"$f":"ROUND(K75*D75*D69*$N$9,2)","v":10886.83}]
[null,"M0424","Cimento Portland CP II - 32 - saco - Cam.carroc. 15 t",0.27464,"tkm",5914449,5914464,5914479,{"$f":"INDEX($E$6:$K$16,MATCH(B76,$E$6:$E$16,0),5)","v":10},{"$f":"INDEX($E$6:$K$16,MATCH(B76,$E$6:$E$16,0),6)","v":10},{"$f":"INDEX($E$6:$K$16,MATCH(B76,$E$6:$E$16,0),7)","v":10},{"$f":"ROUND(I76*D76*D69*$L$9,2)","v":677.92},{"$f":"ROUND(J76*D76*D69*$M$9,2)","v":677.92},{"$f":"ROUND(K76*D76*D69*$N$9,2)","v":5423.37}]
[]
[null,"SISTEMA DE CUSTOS REFERENCIAIS DE OBRAS - SICRO"]
[null,"Custo Unitário de Referência",null,"Quantitativo","Unidade"]
[null,2003842,"Enchimento de junta de concreto com argamassa asfáltica de densidade 1.700 kg/m³ - espessura de 1 cm",{"$f":"SUMIF($B$19:$B$65,B80,$O$19:$O$65)","v":3496.8},"kg"]
[null,"F - MOMENTO DE TRANSPORTE",null,"Quantidade","Unidade",null,"CÓDIGO TRANSPORTE",null,null,"KM POR TIPO DE REVESTIMENTO",null,null,"QUANTITATIVO TOTAL DE TRANSPORTE (tkm)"]
[{"$nulls":5},"LN","RP","P","LN","RP","P","LN","RP","P"]
[null,"M2158","Argamassa asfáltica - Cam.carroc. 15 t",1E-3,"tkm",5914449,5914464,5914479,{"$f":"INDEX($E$6:$K$16,MATCH(B83,$E$6:$E$16,0),5)","v":10},{"$f":"INDEX($E$6:$K$16,MATCH(B83,$E$6:$E$16,0),6)","v":10},{"$f":"INDEX($E$6:$K$16,MATCH(B83,$E$6:$E$16,0),7)","v":10},{"$f":"ROUND(I83*D83*D80*$L$9,2)","v":3.5},{"$f":"ROUND(J83*D83*D80*$M$9,2)","v":3.5},{"$f":"ROUND(K83*D83*D80*$N$9,2)","v":27.97}]